Vendor,Category,Amount Paid,Payment Date
10 S. Riverside Property Owner LLC,Rental Expense,851.29,1/18/2024
10 S. Riverside Property Owner LLC,Rental Expense,11881.29,1/18/2024
10 S. Riverside Property Owner LLC,Rental Expense,11881.29,2/2/2024
10 S. Riverside Property Owner LLC,Rental Expense,851.29,2/5/2024
10 S. Riverside Property Owner LLC,Rental Expense,11881.29,2/20/2024
10 S. Riverside Property Owner LLC,Rental Expense,851.29,2/20/2024
10 S. Riverside Property Owner LLC,Rental Expense,11881.29,3/20/2024
10 S. Riverside Property Owner LLC,Rental Expense,851.29,3/28/2024
10 S. Riverside Property Owner LLC,Rental Expense,12732.58,4/22/2024
10 S. Riverside Property Owner LLC,Rental Expense,12732.58,6/11/2024
10 S. Riverside Property Owner LLC,Rental Expense,902.37,6/18/2024
22Vets LLC,Capital Purchases,24886.39,3/8/2024
2423 Partners  LLC,Rental Expense,17415.71,1/10/2024
320 SOUTH CANAL TITLEHOLDER LLC,Services,2080,6/18/2024
4 Imprint,Services,690.65,6/12/2024
4 Imprint,Services,607.08,6/17/2024
401 Properties Lp C/O: Eric Janssen  Receiver #133,Rental Expense,25787.88,1/8/2024
401 Properties Lp C/O: Eric Janssen  Receiver #133,Rental Expense,25682.88,2/2/2024
401 Properties Lp C/O: Eric Janssen  Receiver #133,Rental Expense,26567.88,2/22/2024
401 Properties Lp C/O: Eric Janssen  Receiver #133,Rental Expense,32811.96,4/1/2024
401 Properties Lp C/O: Eric Janssen  Receiver #133,Rental Expense,28747.51,4/22/2024
401 Properties Lp C/O: Eric Janssen  Receiver #133,Rental Expense,30770.84,6/6/2024
440 South Lasalle St.(Chicago)Owner Llc,Rental Expense,123165.01,1/18/2024
440 South Lasalle St.(Chicago)Owner Llc,Rental Expense,123165.01,2/5/2024
440 South Lasalle St.(Chicago)Owner Llc,Rental Expense,123165.01,3/4/2024
440 South Lasalle St.(Chicago)Owner Llc,Rental Expense,124143.01,3/28/2024
440 South Lasalle St.(Chicago)Owner Llc,Rental Expense,123540.01,4/30/2024
440 South Lasalle St.(Chicago)Owner Llc,Rental Expense,123165.01,5/28/2024
5 Star Interpreting Chicago LLC,Services,346.5,2/1/2024
A & K Railroad Materials  Inc.,Materials,19841.76,2/8/2024
A & K Railroad Materials  Inc.,Materials,138892.32,2/8/2024
A & K Railroad Materials  Inc.,Materials,39683.52,2/8/2024
A & K Railroad Materials  Inc.,Materials,158734.08,4/15/2024
A-1 Equipment Sales,Services,4113.78,5/21/2024
A-Alert Exterminating Service,Services,95,1/1/2024
A-Alert Exterminating Service,Services,95,1/2/2024
A-Alert Exterminating Service,Services,435,1/2/2024
A-Alert Exterminating Service,Services,95,1/2/2024
A-Alert Exterminating Service,Services,165,1/2/2024
A-Alert Exterminating Service,Services,201.67,1/5/2024
A-Alert Exterminating Service,Services,1335,1/5/2024
A-Alert Exterminating Service,Services,165,1/5/2024
A-Alert Exterminating Service,Services,95,1/16/2024
A-Alert Exterminating Service,Services,111.5,2/1/2024
A-Alert Exterminating Service,Services,190,2/1/2024
A-Alert Exterminating Service,Services,95,2/15/2024
A-Alert Exterminating Service,Services,435,2/20/2024
Aaron Gulbransen,Services,180.94,3/20/2024
Aaron Gulbransen,Services,48.11,3/20/2024
Aaron Gulbransen,Services,45,3/20/2024
Aaron Gulbransen,Services,835.48,3/20/2024
Aaron Gulbransen,Services,197.5,3/20/2024
Aaron Gulbransen,Services,124.49,4/16/2024
Aaron Gulbransen,Services,46.9,5/2/2024
Aaron Gulbransen,Services,204.18,5/2/2024
Aaron Gulbransen,Services,45,5/2/2024
Aaron Gulbransen,Services,81.3,5/2/2024
Aaron Gulbransen,Services,185,5/2/2024
Aaron Maertins,Services,125.92,4/4/2024
Aaron Maertins,Services,22.65,4/4/2024
Aaron Maertins,Services,776.85,4/4/2024
Aaron Maertins,Services,45,4/4/2024
Aaron Maertins,Services,185,4/4/2024
Aaron Maertins,Services,965.39,6/10/2024
Aaron Maertins,Services,11.12,6/10/2024
Aaron Maertins,Services,160,6/10/2024
Aaron Willie,Services,101.84,4/10/2024
"ABM Industry Groups, LLC",Services,171.76,1/2/2024
"ABM Industry Groups, LLC",Services,65954.72,2/13/2024
"ABM Industry Groups, LLC",Services,51878.23,2/14/2024
"ABM Industry Groups, LLC",Services,57121.05,3/6/2024
"ABM Industry Groups, LLC",Services,166777.2,3/12/2024
"ABM Industry Groups, LLC",Services,7203.64,3/15/2024
"ABM Industry Groups, LLC",Services,43899.38,5/1/2024
"ABM Industry Groups, LLC",Services,107377.37,5/14/2024
"ABM Industry Groups, LLC",Services,52197.87,6/6/2024
"ABM Industry Groups, LLC",Services,87653.3,6/6/2024
"ABM Industry Groups, LLC",Services,59435.31,6/26/2024
Abraham R. Castellano,Services,160.8,4/15/2024
"AbsenceSoft, LLC",Materials,25000,4/15/2024
"AbsenceSoft, LLC",Materials,6083.33,4/30/2024
"AbsenceSoft, LLC",Materials,6083.33,5/21/2024
"AbsenceSoft, LLC",Materials,6083.33,6/1/2024
Abt,Materials,256.58,1/2/2024
Abt,Materials,289.99,1/16/2024
Abt,Materials,513.16,1/16/2024
Abt,Materials,1999,2/2/2024
Abt,Materials,499.99,2/13/2024
Abt,Materials,3471.96,2/16/2024
Abt,Materials,108,2/16/2024
Abt,Materials,259,3/1/2024
Abt,Materials,109,3/1/2024
Abt,Materials,2826.99,3/1/2024
Abt,Materials,289.99,3/1/2024
Abt,Materials,189.99,3/6/2024
Abt,Materials,249,3/12/2024
Abt,Materials,999.98,3/12/2024
Abt,Materials,324,3/12/2024
Abt,Materials,241,4/1/2024
Abt,Materials,509.98,4/12/2024
Abt,Materials,1598,5/1/2024
Abt,Capital Purchases,23839.95,5/1/2024
Abt,Materials,289.99,5/1/2024
Abt,Materials,189.99,5/14/2024
Abt,Materials,229,5/21/2024
Abt,Materials,777,5/22/2024
Abt,Materials,3368.95,6/1/2024
Abt,Materials,649,6/13/2024
Abt,Materials,189.99,6/13/2024
Abt,Materials,1036,6/26/2024
Aca Compliance Services  Inc.,Services,13708,2/2/2024
Acacia Financial Group  Inc.,Services,1531.25,2/16/2024
Acacia Financial Group  Inc.,Services,768.75,5/14/2024
Aci Worldwide Corp.,Services,59790,3/1/2024
Aci Worldwide Corp.,Services,29895,4/17/2024
Aci Worldwide Corp.,Services,29895,6/17/2024
Aci Worldwide Corp.,Services,29895,6/26/2024
Active Transportation Alliance,Services,3500,5/28/2024
Adam Farence,Services,462.56,1/12/2024
Adam Farence,Services,58.96,3/12/2024
Adam Farence,Services,92.76,3/12/2024
Adam Farence,Services,191.62,5/15/2024
Adam Farence,Services,44.22,6/4/2024
Adam Farence,Services,111.22,6/12/2024
Adams & Westlake  Ltd.,Materials,2850,1/24/2024
Adams & Westlake  Ltd.,Materials,5628.2,1/25/2024
Adams & Westlake  Ltd.,Materials,9220.82,2/1/2024
Adams & Westlake  Ltd.,Materials,5985.96,4/1/2024
Adams & Westlake  Ltd.,Materials,828.96,4/12/2024
Adams & Westlake  Ltd.,Materials,32594.06,4/22/2024
Adams & Westlake  Ltd.,Materials,5175.6,5/1/2024
Adams & Westlake  Ltd.,Materials,16906.2,5/14/2024
Adams & Westlake  Ltd.,Materials,9411.2,5/21/2024
Adams & Westlake  Ltd.,Materials,39773.6,5/22/2024
Adams & Westlake  Ltd.,Materials,1512.88,6/10/2024
Adorama Inc,Services,150,3/1/2024
Adorama Inc,Services,1349,3/1/2024
Adriana Margarita Turcios,Services,32.92,6/17/2024
Adriana S. Mena,Services,20.93,3/12/2024
Aecom Technical Services  Inc.,Capital Purchases,29982.44,1/2/2024
Aecom Technical Services  Inc.,Capital Purchases,45641.07,1/10/2024
"Aero Manufacturing Co., Inc.",Materials,4360,6/1/2024
"Aero Manufacturing Co., Inc.",Services,479.4,6/1/2024
Afc International  Inc.,Materials,7920,4/12/2024
"Ahead of Our Time Publishing, Inc.",Services,500,1/3/2024
Ahmad Abusini,Services,9289.6,2/22/2024
Aircraft & Commercial Enterprises Inc.,Capital Purchases,599,2/22/2024
Aircraft & Commercial Enterprises Inc.,Capital Purchases,1797,3/18/2024
Aircraft & Commercial Enterprises Inc.,Materials,3594,3/18/2024
Aka Comp Solutions  Inc.,Capital Purchases,34892,1/3/2024
Aka Comp Solutions  Inc.,Services,79783.55,1/3/2024
Aka Comp Solutions  Inc.,Capital Purchases,54844.69,2/1/2024
Aka Comp Solutions  Inc.,Capital Purchases,150984.8,5/14/2024
"Al Warren Oil Co., Inc.",Materials,82926,1/16/2024
"Al Warren Oil Co., Inc.",Materials,12614.85,1/25/2024
"Al Warren Oil Co., Inc.",Materials,83589,2/8/2024
"Al Warren Oil Co., Inc.",Materials,82161,2/8/2024
"Al Warren Oil Co., Inc.",Claims & Insurance,32065.99,2/15/2024
"Al Warren Oil Co., Inc.",Materials,73644,2/16/2024
"Al Warren Oil Co., Inc.",Materials,95399.32,3/18/2024
"Al Warren Oil Co., Inc.",Materials,69054,4/12/2024
"Al Warren Oil Co., Inc.",Materials,82683.75,4/22/2024
"Al Warren Oil Co., Inc.",Materials,12844.35,5/30/2024
"Al Warren Oil Co., Inc.",Materials,82224.75,6/6/2024
Alan B. Bakotic,Services,31.64,1/2/2024
Alan B. Bakotic,Services,288,1/2/2024
Alan B. Bakotic,Services,98.33,1/2/2024
Alan B. Bakotic,Services,276.5,1/29/2024
Alan B. Bakotic,Services,32.36,1/29/2024
Alan B. Bakotic,Services,206.5,3/12/2024
Alan B. Bakotic,Services,937.3,4/23/2024
Alan B. Bakotic,Services,55.54,4/23/2024
Alan B. Bakotic,Services,310.5,4/23/2024
Alan B. Bakotic,Services,41.87,4/23/2024
Alan B. Bakotic,Services,96,5/16/2024
Alan B. Bakotic,Services,865.36,5/23/2024
Alan B. Bakotic,Services,55.95,5/23/2024
Alan B. Bakotic,Services,197.5,5/23/2024
Alan B. Bakotic,Services,46.3,5/30/2024
Alan B. Bakotic,Services,22.3,5/30/2024
Alan B. Bakotic,Services,197.5,5/30/2024
Aldridge Electric  Inc.,Capital Purchases,602452.26,2/16/2024
Aldridge Electric  Inc.,Capital Purchases,536625,4/12/2024
Aldridge Electric  Inc.,Capital Purchases,379933.2,6/1/2024
Alejandro Andrade,Services,117.25,5/14/2024
Alejandro Andrade,Services,80.4,5/15/2024
ALEJANDRO MONTES,Services,120.6,2/12/2024
ALEJANDRO MONTES,Services,80.4,4/16/2024
ALEJANDRO MONTES,Services,308.2,6/11/2024
Alejandro Reyes,Services,23.52,5/7/2024
Alejandro Reyes,Services,1.35,5/7/2024
Alera Group,Services,19915.08,3/4/2024
Alera Group,Services,13203.36,3/26/2024
Alera Group,Services,19833.51,4/12/2024
Alexandru Vitalis,Services,98.91,3/1/2024
Alexandru Vitalis,Services,172.5,3/1/2024
Alexandru Vitalis,Services,325.81,3/1/2024
Alexis Rojas,Services,308.2,4/15/2024
Alexis Rojas,Services,65.66,4/15/2024
Alexis Rojas,Services,80.4,5/15/2024
Alexis Rojas,Services,80.4,5/15/2024
Alfred Benesch & Co.,Capital Purchases,99369.2,1/1/2024
Alfred Benesch & Co.,Capital Purchases,88949.9,1/24/2024
Alfred Benesch & Co.,Capital Purchases,1298525.36,2/16/2024
Alfred Benesch & Co.,Capital Purchases,74830.14,2/16/2024
Alfred Benesch & Co.,Capital Purchases,145476.45,3/6/2024
Alfred Benesch & Co.,Capital Purchases,209161.65,3/26/2024
Alfred Benesch & Co.,Services,69290.56,4/9/2024
Alfred Benesch & Co.,Services,80838.99,4/9/2024
Alfred Benesch & Co.,Services,69290.56,4/9/2024
Alfred Benesch & Co.,Services,69290.56,4/9/2024
Alfred Benesch & Co.,Capital Purchases,163478.54,4/22/2024
Alfred Benesch & Co.,Services,37686.67,5/1/2024
Alfred Benesch & Co.,Services,43967.79,5/1/2024
Alfred Benesch & Co.,Services,38590.68,5/1/2024
Alfred Benesch & Co.,Services,37686.68,5/1/2024
Alfred Benesch & Co.,Capital Purchases,172937.62,5/8/2024
Alfred Benesch & Co.,Capital Purchases,186747.12,6/7/2024
Alfred Benesch & Co.,Services,41531.38,6/24/2024
Alfred Benesch & Co.,Services,35598.33,6/24/2024
Alfred Benesch & Co.,Services,36507.32,6/24/2024
Alfred Benesch & Co.,Services,35598.33,6/24/2024
Alfred Benesch & Co.,Services,1100,6/24/2024
"Alfredo Godinez, Jr.",Services,1532.38,6/27/2024
"Alfredo Godinez, Jr.",Services,31.62,6/27/2024
Alicia Hernandez,,25,2/5/2024
"ALLIED WIRE & CABLE, LLC",Capital Purchases,10824,6/17/2024
"ALLIED WIRE & CABLE, LLC",Capital Purchases,5783,6/17/2024
"ALLIED WIRE & CABLE, LLC",Capital Purchases,101897,6/17/2024
"ALLIED WIRE & CABLE, LLC",Capital Purchases,14423.95,6/20/2024
"ALLIED WIRE & CABLE, LLC",Capital Purchases,18924.8,6/20/2024
"ALLIED WIRE & CABLE, LLC",Capital Purchases,9525,6/24/2024
Alma Cervantes,Services,199.5,5/8/2024
Alma Cervantes,Services,186.55,5/8/2024
Alma Cervantes,Services,172.69,6/27/2024
Alma Cervantes,Services,254.25,6/27/2024
Aloha Print Group,Services,17401.07,2/1/2024
Aloha Print Group,Services,8012.84,4/8/2024
Aloha Print Group,Services,2883,4/12/2024
Aloha Print Group,Services,13259,6/4/2024
Alstom,Materials,3429.32,6/17/2024
Alstom Signaling Operation  LLC,Materials,1922.62,2/14/2024
Alstom Signaling Operation  LLC,Materials,42821.03,2/16/2024
Alstom Signaling Operation  LLC,Capital Purchases,17980,2/16/2024
Alstom Signaling Operation  LLC,Capital Purchases,16890,2/23/2024
Alstom Signaling Operation  LLC,Materials,4918.76,2/23/2024
Alstom Signaling Operation  LLC,Materials,716.6,3/8/2024
Alstom Signaling Operation  LLC,Capital Purchases,83600,4/1/2024
Alstom Signaling Operation  LLC,Capital Purchases,107722,4/1/2024
Alstom Signaling Operation  LLC,Services,838.45,4/5/2024
Alstom Signaling Operation  LLC,Services,7505.15,4/8/2024
Alstom Signaling Operation  LLC,Materials,13169.14,4/11/2024
Alstom Signaling Operation  LLC,Services,950.93,5/2/2024
Alstom Signaling Operation  LLC,Services,11523.59,5/14/2024
Alstom Signaling Operation  LLC,Materials,9910.8,5/15/2024
Alstom Signaling Operation  LLC,Materials,16946.6,5/16/2024
Alstom Signaling Operation  LLC,Materials,991.08,5/23/2024
Alstom Signaling Operation  LLC,Services,2658.5,6/1/2024
Alstom Signaling Operation  LLC,Materials,3159.69,6/14/2024
Alstom Signaling Operation LLC,Capital Purchases,3140.84,1/4/2024
Alstom Signaling Operation LLC,Capital Purchases,936.62,1/4/2024
Alstom Signaling Operation LLC,Materials,1404.93,1/4/2024
Alstom Signaling Operation LLC,Capital Purchases,3930.5,1/5/2024
Alstom Signaling Operation LLC,Capital Purchases,5603.3,1/5/2024
Alstom Signaling Operation LLC,Capital Purchases,777.1,2/14/2024
Alstom Signaling Operation LLC,Capital Purchases,10102.3,2/14/2024
Alstom Signaling Operation LLC,Capital Purchases,11877.36,2/16/2024
Alstom Signaling Operation LLC,Capital Purchases,72362.36,3/1/2024
Alstom Signaling Operation LLC,Capital Purchases,1328.23,3/8/2024
Alstom Signaling Operation LLC,Capital Purchases,291.41,3/19/2024
Alstom Signaling Operation LLC,Capital Purchases,112287.79,3/25/2024
Alstom Signaling Operation LLC,Capital Purchases,142998.69,4/25/2024
Alstom Signaling Operation LLC,Materials,1067.4,5/15/2024
Alstom Signaling Operation LLC,Capital Purchases,5848.7,6/14/2024
Alstom Transportation Inc.,Capital Purchases,3976,1/3/2024
Alstom Transportation Inc.,Materials,428007.36,1/4/2024
Alstom Transportation Inc.,,6272383.02,1/29/2024
Alstom Transportation Inc.,Capital Purchases,129600,2/1/2024
Alstom Transportation Inc.,Capital Purchases,15652226,2/14/2024
Alstom Transportation Inc.,Materials,175093.92,2/14/2024
Alstom Transportation Inc.,Materials,175093.92,2/14/2024
Alstom Transportation Inc.,Materials,18972.32,3/1/2024
Alstom Transportation Inc.,Materials,94861.6,3/1/2024
Alstom Transportation Inc.,Capital Purchases,5459204.75,3/4/2024
Alstom Transportation Inc.,Materials,173646.24,6/3/2024
Alstom Transportation Inc.,Materials,426077.12,6/14/2024
Alstom Transportation Inc.,Materials,58364.64,6/18/2024
Alternate Power  Inc.,Services,398.67,5/23/2024
Altorfer Industries Inc.,Services,1533,4/1/2024
Altorfer Industries Inc.,Materials,45.44,4/1/2024
Altorfer Industries Inc.,Materials,876.08,4/1/2024
Altorfer Industries Inc.,Materials,3000,4/12/2024
Altorfer Industries Inc.,Materials,3000,4/12/2024
Altorfer Industries Inc.,Materials,211.36,4/17/2024
Altorfer Industries Inc.,Materials,66.24,4/18/2024
Altorfer Industries Inc.,Materials,11084.5,4/22/2024
Altorfer Industries Inc.,Services,679.58,5/1/2024
Altorfer Industries Inc.,Materials,136.2,5/14/2024
Altorfer Industries Inc.,Materials,609.36,5/14/2024
Altorfer Industries Inc.,Capital Purchases,8834.2,5/30/2024
Altorfer Industries Inc.,Services,3229.87,6/1/2024
Altorfer Industries Inc.,Materials,251.43,6/10/2024
Altorfer Industries Inc.,Materials,2137.45,6/10/2024
Alvarez  Inc.,Services,3301,2/1/2024
Alvarez  Inc.,Services,8185.5,2/1/2024
Alvarez  Inc.,Services,1215,2/1/2024
Alvarez  Inc.,Services,800,2/1/2024
Alvarez  Inc.,Services,1100,2/1/2024
Alvarez  Inc.,Materials,900,3/18/2024
Alvarez  Inc.,Materials,540,5/14/2024
Alvarez  Inc.,Services,8185.5,5/28/2024
Alvarez  Inc.,Services,2986,6/1/2024
Alvarez  Inc.,Materials,1440,6/1/2024
Alvarez  Inc.,Services,1215,6/1/2024
Alvarez  Inc.,Services,800,6/1/2024
Alvarez  Inc.,Services,1100,6/1/2024
Alvin Hollins Jr,Services,124.45,1/17/2024
Alvin Hollins Jr,Services,49.58,2/13/2024
Alvin Hollins Jr,Services,147.4,3/13/2024
Alvin Hollins Jr,Services,155.44,4/10/2024
Alvin Hollins Jr,Services,77.72,5/7/2024
Alvin Hollins Jr,Services,140.7,6/10/2024
Amalgamated Bank Of Chicago,Services,11087.74,2/13/2024
Amalgamated Bank Of Chicago,Services,11057.81,5/30/2024
Amanda Alequin,Services,43.59,3/14/2024
Amazon.Com/Tool Crib,Services,4031.44,1/9/2024
Amazon.Com/Tool Crib,Services,0,1/9/2024
Amazon.Com/Tool Crib,Materials,521.46,1/10/2024
Amazon.Com/Tool Crib,Materials,601.92,1/10/2024
Amazon.Com/Tool Crib,Services,28.29,2/27/2024
Amazon.Com/Tool Crib,Materials,487.73,2/27/2024
Amazon.Com/Tool Crib,Materials,449.99,4/9/2024
Amazon.Com/Tool Crib,Materials,83.32,4/9/2024
Amazon.Com/Tool Crib,Materials,705.46,4/9/2024
Amazon.Com/Tool Crib,Services,3.99,4/9/2024
Amazon.Com/Tool Crib,Services,1020.8,4/9/2024
Amazon.Com/Tool Crib,Materials,1777.5,4/10/2024
Amazon.Com/Tool Crib,Materials,519,4/10/2024
Amazon.Com/Tool Crib,Materials,8081.16,4/10/2024
Amazon.Com/Tool Crib,Materials,597,4/10/2024
Amazon.Com/Tool Crib,Materials,276.17,4/10/2024
Amazon.Com/Tool Crib,Services,4.4,6/17/2024
Amazon.Com/Tool Crib,Services,3577.82,6/17/2024
Amazon.Com/Tool Crib,Materials,603.97,6/18/2024
Amazon.Com/Tool Crib,Materials,17383.02,6/18/2024
Amazon.Com/Tool Crib,Materials,1520.27,6/18/2024
Amazon.Com/Tool Crib,Materials,758.96,6/18/2024
Amazon.Com/Tool Crib,Services,1104.06,6/18/2024
Amazon.Com/Tool Crib,Materials,1795.97,6/18/2024
Amazon.Com/Tool Crib,Materials,10041.5,6/18/2024
Amazon.Com/Tool Crib,Services,14.96,6/18/2024
Amazon.Com/Tool Crib,Services,21.99,6/18/2024
Amazon.Com/Tool Crib,Services,1456.19,6/24/2024
Amber Spencer,Services,47.84,5/2/2024
Amber Spencer,Services,131.33,5/14/2024
Amber Spencer,Services,18.69,6/10/2024
Amber Spencer,Services,958.5,6/10/2024
Amber Spencer,Services,60,6/10/2024
Amber Spencer,Services,241.5,6/10/2024
Amber Spencer,Services,150.57,6/10/2024
American Bar Assn.,Services,525,6/18/2024
American Calibration  Inc.,Services,990,1/1/2024
American Calibration  Inc.,Services,1562,1/1/2024
American Calibration  Inc.,Services,330,1/4/2024
American Calibration  Inc.,Services,2392.5,1/4/2024
American Calibration  Inc.,Services,957,2/8/2024
American Calibration  Inc.,Services,792,2/14/2024
American Calibration  Inc.,Materials,990,3/25/2024
American Calibration  Inc.,Services,66,3/25/2024
American Calibration  Inc.,Services,264,3/26/2024
American Calibration  Inc.,Services,1699.5,4/24/2024
American Calibration  Inc.,Services,1452,5/15/2024
American Calibration  Inc.,Services,660,5/15/2024
American Calibration  Inc.,Services,792,5/31/2024
American Calibration  Inc.,Materials,350,5/31/2024
American Calibration  Inc.,Services,594,5/31/2024
American Calibration  Inc.,Services,1495,6/1/2024
American Calibration  Inc.,Services,528,6/14/2024
American Demolition Corp.,Capital Purchases,46146,6/21/2024
American Legal Publishing Corporation,Services,2075,4/17/2024
American Legal Publishing Corporation,Services,495,5/24/2024
American Planning Assn.,Services,1333.99,4/9/2024
American Public Transit Assoc.,Services,1100,2/27/2024
American Public Transportation Ass Meeting Department Apta,Services,1100,5/1/2024
American Public Transportation Ass Meeting Department Apta,Services,975,5/23/2024
American Solutions For Business,Services,17053.7,3/15/2024
American Solutions For Business,Services,5726.1,3/15/2024
American Solutions For Business,Services,2440,3/15/2024
American Surveying & Engineering Pc,Capital Purchases,6278.81,1/26/2024
American Surveying & Engineering Pc,Capital Purchases,2347.04,5/24/2024
"Amsted Rail Company, Inc.",Capital Purchases,7950,1/1/2024
"Amsted Rail Company, Inc.",Capital Purchases,5300,1/17/2024
"Amsted Rail Company, Inc.",Capital Purchases,23850,1/30/2024
"Amsted Rail Company, Inc.",Capital Purchases,58022.4,3/8/2024
"Amsted Rail Company, Inc.",Capital Purchases,32122.53,3/27/2024
"Amsted Rail Company, Inc.",Capital Purchases,39471.87,4/1/2024
"Amsted Rail Company, Inc.",Capital Purchases,71550,5/1/2024
"Amsted Rail Company, Inc.",Capital Purchases,10600,5/28/2024
"Amsted Rail Company, Inc.",Materials,6800,6/13/2024
"Amundsen Davis, LLC",Services,9990,1/2/2024
"Amundsen Davis, LLC",Claims & Insurance,38834.28,1/3/2024
"Amundsen Davis, LLC",Claims & Insurance,19602.5,4/22/2024
"Amundsen Davis, LLC",Claims & Insurance,45017.5,6/6/2024
Anali De La O,Services,115.51,4/25/2024
Anali De La O,Services,59.43,5/14/2024
Analytic Systems,Materials,29590.6,6/21/2024
Anchor Brake Shoe Co.,Materials,8355.6,1/3/2024
Anchor Brake Shoe Co.,Materials,10444.5,1/22/2024
Anchor Brake Shoe Co.,Materials,33660,1/22/2024
Anchor Brake Shoe Co.,Materials,33660,1/25/2024
Anchor Brake Shoe Co.,Materials,20196,2/2/2024
Anchor Brake Shoe Co.,Materials,33660,3/15/2024
Anchor Brake Shoe Co.,Materials,33660,3/26/2024
Anchor Brake Shoe Co.,Materials,23562,4/5/2024
Anchor Brake Shoe Co.,Materials,57222,4/5/2024
Anchor Brake Shoe Co.,Materials,20196,4/11/2024
Anchor Brake Shoe Co.,Materials,53856,5/1/2024
Anchor Brake Shoe Co.,Materials,16830,5/14/2024
Anchor Brake Shoe Co.,Materials,43758,5/23/2024
Anchor Brake Shoe Co.,Materials,57222,6/13/2024
Anchor Brake Shoe Co.,Materials,37026,6/19/2024
"Anderson Analytical, INC DBA USA LIFT-Service",Services,2835.84,4/1/2024
Anderson Paint Store LLC,Materials,520,6/10/2024
Anderson Paint Store LLC,Materials,312,6/13/2024
Andre Hunt,Services,185,5/2/2024
Andre Hunt,Services,40,5/2/2024
Andre Hunt,Services,78.24,5/2/2024
Andre Hunt,Services,30,5/2/2024
Andre Hunt,Services,325.04,5/2/2024
Andre R. Feliciano,Services,160.8,2/5/2024
Andre R. Feliciano,Services,53.6,5/13/2024
Andre R. Feliciano,Services,53.6,6/10/2024
Andrea N. Parker,Services,30,6/4/2024
Andres Hernandez Rodriguez,Services,565,1/11/2024
Andres Hernandez Rodriguez,Services,56.5,1/12/2024
Andrew Michael Simons,Services,97.69,4/1/2024
Andrew Shay,Services,352.88,6/13/2024
Andrew Shay,Services,147.5,6/13/2024
Angela Hinton,Services,4.5,5/15/2024
Angela Hinton,Services,43.68,5/15/2024
ANGELINA ROSAS,Services,120.6,6/11/2024
Anita Ayala-Ortega,Services,50.92,2/5/2024
Anita Ayala-Ortega,Services,25.46,4/1/2024
Anita Ayala-Ortega,Services,50.92,4/18/2024
Anita Ayala-Ortega,Services,25.46,5/7/2024
Anita Ayala-Ortega,Services,25.46,6/7/2024
Anita Ayala-Ortega,Services,25.46,6/18/2024
Anixter  Inc.,Materials,7718.56,1/3/2024
Anixter  Inc.,Materials,269.89,5/23/2024
Anixter  Inc.,Materials,14680.6,6/1/2024
Ann Hammo,Services,730.47,5/23/2024
Anna Searle Jones,,20,2/5/2024
Anthem Insurance Companies  Inc.,Services,103172.28,1/4/2024
Anthony Belarmino,Services,238.84,1/2/2024
Anthony Belarmino,Services,248.04,4/1/2024
Anthony Belarmino,Services,150.99,5/2/2024
Anthony Belarmino,Services,30.28,5/30/2024
Anthony Belarmino,Services,403.1,5/30/2024
Anthony Belarmino,Services,154.81,6/27/2024
Anthony Dellorto,,761.79,5/16/2024
ANTHONY MILLS,Services,251.07,2/20/2024
ANTHONY MILLS,Services,559.11,2/20/2024
ANTHONY MILLS,Services,276.5,2/20/2024
ANTHONY MILLS,Services,37,3/7/2024
ANTHONY SIRIANO,Services,452.43,1/16/2024
ANTHONY SIRIANO,Services,679.37,1/16/2024
ANTHONY SIRIANO,Services,118.5,1/16/2024
ANTHONY SIRIANO,Services,70,1/16/2024
Anthony Tyrell Alexander,Services,134,3/12/2024
Anthony Tyrell Alexander,Services,112.56,4/9/2024
Anthony Tyrell Alexander,Services,168.84,4/9/2024
Anthony Tyrell Alexander,Services,105.86,5/14/2024
Antoine Haynes,Services,48.47,1/12/2024
Antoine Haynes,Services,105.86,2/20/2024
Antoine Haynes,Services,49.58,6/11/2024
Antoinette Collymore,Services,14.74,3/19/2024
Antoinette Collymore,Services,42.88,4/10/2024
Antoinette Collymore,Services,42.88,5/20/2024
Antoinette Collymore,Services,14.74,6/4/2024
Applied Industrial Technologies,Materials,2491.68,5/23/2024
Applied Industrial Technologies,Services,124.68,5/23/2024
April Kilgore-Wooden,Services,4354,4/16/2024
Aql Technologies  Inc.,Services,19000,1/3/2024
Aql Technologies  Inc.,Services,17000,4/1/2024
Aql Technologies  Inc.,Services,17000,5/23/2024
Aql Technologies  Inc.,Services,21000,5/23/2024
Aql Technologies  Inc.,Services,20000,5/23/2024
Aqua Chill of Chicago LLC,Rental Expense,1505,1/3/2024
Aqua Chill of Chicago LLC,Rental Expense,1505,2/20/2024
Aqua Chill of Chicago LLC,Rental Expense,1505,3/7/2024
Aqua Chill of Chicago LLC,Rental Expense,1505,5/1/2024
Aqua Chill of Chicago LLC,Rental Expense,1505,5/23/2024
Aqua Illinois,Utilities,374.47,1/9/2024
Aqua Illinois,Utilities,173.73,2/8/2024
Aqua Illinois,Utilities,167.04,2/29/2024
Aqua Illinois,Utilities,115.7,4/2/2024
Aqua Illinois,Utilities,134.26,5/6/2024
Aqua Illinois,Utilities,89.37,6/5/2024
Aramark Refreshment Services,Materials,1462.3,4/8/2024
Aramark Refreshment Services,Materials,1462.3,4/8/2024
Aramark Refreshment Services,Materials,762.3,4/8/2024
Arcadis Us  Inc.,Capital Purchases,101117.5,1/10/2024
Arcadis Us  Inc.,Services,3028.8,1/10/2024
Arcadis Us  Inc.,Capital Purchases,37120.77,1/19/2024
Arcadis Us  Inc.,Capital Purchases,66578.4,1/24/2024
Arcadis Us  Inc.,Capital Purchases,298065.21,2/1/2024
Arcadis Us  Inc.,Services,3575.48,2/1/2024
Arcadis Us  Inc.,Capital Purchases,98946.72,2/13/2024
Arcadis Us  Inc.,Services,1128.09,2/13/2024
Arcadis Us  Inc.,Capital Purchases,6242.22,2/16/2024
Arcadis Us  Inc.,Capital Purchases,97188.32,2/22/2024
Arcadis Us  Inc.,Capital Purchases,177149.46,2/26/2024
Arcadis Us  Inc.,Capital Purchases,2362.9,3/4/2024
Arcadis Us  Inc.,Services,22377.15,3/5/2024
Arcadis Us  Inc.,Capital Purchases,9026.47,3/14/2024
Arcadis Us  Inc.,Capital Purchases,106112.88,3/25/2024
Arcadis Us  Inc.,Capital Purchases,155900.62,4/4/2024
Arcadis Us  Inc.,Capital Purchases,98948.81,4/10/2024
Arcadis Us  Inc.,Capital Purchases,8500,4/11/2024
Arcadis Us  Inc.,Capital Purchases,190447.04,4/22/2024
Arcadis Us  Inc.,Services,19424.8,4/22/2024
Arcadis Us  Inc.,Capital Purchases,177975.33,5/1/2024
Arcadis Us  Inc.,Capital Purchases,35000,5/8/2024
Arcadis Us  Inc.,Capital Purchases,42682,5/8/2024
Arcadis Us  Inc.,Capital Purchases,4331.17,5/9/2024
Arcadis Us  Inc.,Capital Purchases,49541.14,5/14/2024
Arcadis Us  Inc.,Capital Purchases,96782.72,5/21/2024
Arcadis Us  Inc.,Capital Purchases,189019.64,5/24/2024
Arcadis Us  Inc.,Capital Purchases,9656,6/6/2024
Arcadis Us  Inc.,Capital Purchases,51624.6,6/17/2024
Arcadis Us  Inc.,Capital Purchases,59343.87,6/21/2024
Arcadis Us  Inc.,Capital Purchases,99971.23,7/1/2024
"ARM Camco, LLC",Capital Purchases,5875,2/5/2024
"ARM Camco, LLC",Capital Purchases,11750,2/26/2024
"ARM Camco, LLC",Services,1458.94,2/26/2024
"ARM Camco, LLC",Materials,2533.65,4/1/2024
"ARM Camco, LLC",Materials,3693.82,6/1/2024
Armando Palacios,Services,56.5,2/5/2024
Armando Palacios,Services,1469,2/22/2024
Armando Palacios,Services,56.5,2/29/2024
Armando Palacios,Services,847.5,3/19/2024
Armando Palacios,Services,452,3/28/2024
Armando Palacios,Services,734.5,4/11/2024
Arnold Maxey,Services,361.82,1/17/2024
Arnold Maxey,Services,400.66,1/22/2024
Arnold Maxey,Services,480.79,2/13/2024
Arnold Maxey,Services,801.32,3/12/2024
Arnold Maxey,Services,320.53,3/26/2024
Arnold Maxey,Services,160.26,4/9/2024
Arnold Maxey,Services,400.66,4/23/2024
Arnold Maxey,Services,420.29,5/7/2024
Arnold Maxey,Services,400.66,6/4/2024
Arnold Maxey,Services,320.53,6/6/2024
Ars Corp.,Services,7427.06,1/12/2024
Ars Corp.,Services,43651.2,1/12/2024
Ars Corp.,Services,25463.2,1/12/2024
Ars Corp.,Services,7275.2,1/22/2024
Arsenio Pomales,Services,268,3/7/2024
Arsenio Pomales,Services,147.5,3/7/2024
Arsenio Pomales,Services,72.49,3/14/2024
Arsenio Pomales,Services,62.5,4/18/2024
Arsenio Pomales,Services,268,4/18/2024
Arsenio Pomales,Services,434.5,4/30/2024
Arthur J Gallagher Risk Management Risk Management Services  Inc.,Claims & Insurance,316079,1/8/2024
Arthur J Gallagher Risk Management Risk Management Services  Inc.,Claims & Insurance,1020301,1/8/2024
Arthur J Gallagher Risk Management Risk Management Services  Inc.,Claims & Insurance,5827,1/11/2024
Arthur J Gallagher Risk Management Risk Management Services  Inc.,Claims & Insurance,125,1/23/2024
Arthur J Gallagher Risk Management Risk Management Services  Inc.,Claims & Insurance,4000,2/1/2024
Arthur J Gallagher Risk Management Risk Management Services  Inc.,Claims & Insurance,11054,2/15/2024
Arthur J Gallagher Risk Management Risk Management Services  Inc.,Claims & Insurance,1113,2/22/2024
Arthur J Gallagher Risk Management Risk Management Services  Inc.,Claims & Insurance,26403,3/12/2024
Arthur J Gallagher Risk Management Risk Management Services  Inc.,Claims & Insurance,4657,4/4/2024
Arthur J Gallagher Risk Management Risk Management Services  Inc.,Claims & Insurance,39259,4/24/2024
Arthur J Gallagher Risk Management Risk Management Services  Inc.,Services,17500,6/6/2024
Arthur R. Perez,Services,141.43,1/23/2024
Arturo J Mota,Services,314.4,1/4/2024
Arturo J Mota,Services,257.08,2/7/2024
Arturo J Mota,Services,293.39,3/5/2024
Arturo J Mota,Services,710.74,4/4/2024
Arturo J Mota,Services,758.71,5/13/2024
Arturo J Mota,Services,681.06,6/6/2024
Arturo Lopez,Services,379.5,1/12/2024
Arturo Lopez,Services,86.95,1/12/2024
Arturo Lopez,Services,35,1/12/2024
Arturo Lopez,Services,825.95,1/12/2024
Arturo Lopez,Services,435.44,5/15/2024
Arturo Lopez,Services,160,5/15/2024
Arturo Lopez,Services,30.01,5/15/2024
Arturo Tulian,Services,143.92,3/19/2024
Arturo Tulian,Services,47.97,4/16/2024
Asas/Tysol  Inc.,Materials,4905,5/28/2024
"Asplundh Tree Expert, LLC",Services,35401.6,1/3/2024
"Asplundh Tree Expert, LLC",Services,9531.2,1/3/2024
"Asplundh Tree Expert, LLC",Claims & Insurance,4394,4/1/2024
"Asplundh Tree Expert, LLC",Claims & Insurance,4394,4/1/2024
ASQ,Services,1249,1/16/2024
ASQ,Services,1249,1/16/2024
ASQ,Services,1249,1/17/2024
ASQ,Services,185,1/30/2024
ASQ,Services,185,6/13/2024
Assn. Of American Railroads (AAR),Services,939,1/3/2024
Assn. Of American Railroads (AAR),Services,939,1/24/2024
Assn. Of American Railroads (AAR),Services,939,2/26/2024
Assn. Of American Railroads (AAR),Services,939,3/27/2024
Assn. Of American Railroads (AAR),Services,70.56,4/10/2024
Assn. Of American Railroads (AAR),Services,5356,4/10/2024
Assn. Of American Railroads (AAR),Services,119503,4/25/2024
Assn. Of American Railroads (AAR),Services,939,4/30/2024
Assn. Of American Railroads (AAR),Services,939,5/30/2024
Assn. Of American Railroads (AAR),Services,63.06,6/18/2024
Assn. Of American Railroads (AAR),Services,3298,6/18/2024
Association for Financial Professionals,Services,495,6/3/2024
ASSOCIATION OF POLICE SOCIAL SERVICES,Services,150,5/10/2024
AT & T,Utilities,6835.5,1/8/2024
AT & T,Utilities,4084.84,1/8/2024
AT & T,Utilities,855.64,1/8/2024
AT & T,Utilities,14674.47,1/8/2024
AT & T,Utilities,8383.47,1/8/2024
AT & T,Utilities,5278.45,1/8/2024
AT & T,Utilities,75451.25,1/8/2024
AT & T,Utilities,10923.95,1/8/2024
AT & T,Utilities,5226.49,1/8/2024
AT & T,Utilities,15800.7,1/9/2024
AT & T,Utilities,5139.52,1/9/2024
AT & T,Utilities,11918.8,1/9/2024
AT & T,Utilities,703.06,1/9/2024
AT & T,Utilities,17685.7,1/9/2024
AT & T,Utilities,1927.04,1/9/2024
AT & T,Utilities,48141.51,1/9/2024
AT & T,Utilities,5258.21,1/9/2024
AT & T,Utilities,3313.1,1/9/2024
AT & T,Utilities,14863.63,1/9/2024
AT & T,Utilities,102445.39,1/9/2024
AT & T,Utilities,22706.84,1/9/2024
AT & T,Utilities,3.75,1/9/2024
AT & T,Utilities,3250,1/9/2024
AT & T,Utilities,5125,1/19/2024
AT & T,Utilities,3720,1/19/2024
AT & T,Utilities,35945.81,1/19/2024
AT & T,Utilities,1927.04,1/19/2024
AT & T,Utilities,38582.06,1/19/2024
AT & T,Utilities,8662.07,1/19/2024
AT & T,Utilities,2135.76,1/22/2024
AT & T,Utilities,676.23,1/22/2024
AT & T,Utilities,15508.9,1/24/2024
AT & T,Utilities,14470.47,1/24/2024
AT & T,Utilities,5261,1/29/2024
AT & T,Utilities,1479047.41,1/29/2024
AT & T,Utilities,3308.8,1/29/2024
AT & T,Utilities,6017.44,1/29/2024
AT & T,Utilities,17685.7,1/29/2024
AT & T,Utilities,3250,1/29/2024
AT & T,Utilities,12405.7,1/29/2024
AT & T,Utilities,1106.05,1/29/2024
AT & T,Utilities,48094.88,1/29/2024
AT & T,Utilities,3.75,1/29/2024
AT & T,Utilities,11918.8,1/29/2024
AT & T,Utilities,103347.47,1/29/2024
AT & T,Utilities,13581.04,1/29/2024
AT & T,Utilities,6938.03,2/6/2024
AT & T,Utilities,5230.35,2/6/2024
AT & T,Utilities,3167.07,2/6/2024
AT & T,Utilities,3142.18,2/6/2024
AT & T,Utilities,3720,2/6/2024
AT & T,Utilities,14672.55,2/6/2024
AT & T,Utilities,8730.06,2/6/2024
AT & T,Utilities,15800.7,2/6/2024
AT & T,Utilities,10923.95,2/6/2024
AT & T,Utilities,4878.04,2/8/2024
AT & T,Utilities,690981.99,2/8/2024
AT & T,Utilities,859.53,2/8/2024
AT & T,Utilities,74672.69,2/8/2024
AT & T,Utilities,8296.97,2/8/2024
AT & T,Utilities,13581.04,2/15/2024
AT & T,Utilities,5123.88,2/15/2024
AT & T,Utilities,682.57,2/15/2024
AT & T,Utilities,1036.05,2/15/2024
AT & T,Utilities,1927.04,2/15/2024
AT & T,Utilities,43873.55,2/15/2024
AT & T,Utilities,3250,2/15/2024
AT & T,Utilities,14038.82,2/15/2024
AT & T,Utilities,116415.24,2/15/2024
AT & T,Utilities,2179.86,2/22/2024
AT & T,Utilities,4067.49,2/22/2024
AT & T,Utilities,140.44,2/22/2024
AT & T,Utilities,3167.07,2/22/2024
AT & T,Utilities,41960.38,2/22/2024
AT & T,Utilities,17685.7,2/26/2024
AT & T,Utilities,5261,2/26/2024
AT & T,Utilities,6325.43,2/26/2024
AT & T,Utilities,11918.8,2/26/2024
AT & T,Utilities,3.75,2/26/2024
AT & T,Utilities,16425.95,3/5/2024
AT & T,Utilities,9686.73,3/5/2024
AT & T,Utilities,6919.97,3/5/2024
AT & T,Utilities,3720,3/5/2024
AT & T,Utilities,8894.08,3/5/2024
AT & T,Utilities,10923.95,3/7/2024
AT & T,Utilities,29579.81,3/7/2024
AT & T,Utilities,859.94,3/7/2024
AT & T,Utilities,8296.97,3/14/2024
AT & T,Utilities,74672.69,3/14/2024
AT & T,Utilities,2155.69,3/14/2024
AT & T,Utilities,39675.82,3/14/2024
AT & T,Utilities,2976.22,3/19/2024
AT & T,Utilities,5123.88,3/19/2024
AT & T,Utilities,672.26,3/19/2024
AT & T,Utilities,450203.02,3/19/2024
AT & T,Utilities,3284.19,3/19/2024
AT & T,Utilities,44477.98,3/19/2024
AT & T,Utilities,1927.04,3/19/2024
AT & T,Utilities,44570.05,3/19/2024
AT & T,Utilities,9374.07,3/19/2024
AT & T,Utilities,103132.7,3/19/2024
AT & T,Utilities,5261,3/21/2024
AT & T,Utilities,74.63,3/21/2024
AT & T,Utilities,19193.69,3/21/2024
AT & T,Utilities,11918.8,3/21/2024
AT & T,Utilities,17685.7,3/21/2024
AT & T,Utilities,3.75,3/21/2024
AT & T,Utilities,6835.5,4/4/2024
AT & T,Utilities,4063.71,4/4/2024
AT & T,Utilities,14673.32,4/4/2024
AT & T,Utilities,10507.95,4/4/2024
AT & T,Utilities,74672.69,4/8/2024
AT & T,Utilities,8296.97,4/8/2024
AT & T,Utilities,10923.95,4/8/2024
AT & T,Utilities,859.11,4/8/2024
AT & T,Utilities,15605.04,4/9/2024
AT & T,Utilities,1283102.66,4/9/2024
AT & T,Utilities,679.52,4/9/2024
AT & T,Utilities,1927.04,4/9/2024
AT & T,Utilities,3276,4/9/2024
AT & T,Utilities,25282.55,4/9/2024
AT & T,Utilities,134438.84,4/9/2024
AT & T,Utilities,9367.74,4/9/2024
AT & T,Utilities,44572.13,4/9/2024
AT & T,Utilities,2148.23,4/11/2024
AT & T,Utilities,8917.58,4/11/2024
AT & T,Utilities,3720,4/11/2024
AT & T,Utilities,2973.45,4/26/2024
AT & T,Utilities,2976.22,4/26/2024
AT & T,Utilities,5220.29,4/26/2024
AT & T,Utilities,5123.88,4/26/2024
AT & T,Utilities,11580.02,4/26/2024
AT & T,Utilities,11909.89,4/26/2024
AT & T,Utilities,12772.69,4/26/2024
AT & T,Utilities,3.75,4/26/2024
AT & T,Utilities,8993.99,4/30/2024
AT & T,Utilities,6832.5,4/30/2024
AT & T,Utilities,3720,4/30/2024
AT & T,Utilities,14614,4/30/2024
AT & T,Utilities,25282.55,4/30/2024
AT & T,Utilities,40602.85,4/30/2024
AT & T,Utilities,1106.05,5/1/2024
AT & T,Utilities,10923.95,5/6/2024
AT & T,Utilities,26358.37,6/24/2024
AT & T,Utilities,10149.73,6/26/2024
AT & T,Utilities,287788.55,6/26/2024
AT & T,Utilities,11918.8,6/26/2024
AT & T,Utilities,833.18,6/26/2024
AT & T,Utilities,1106.05,6/26/2024
AT & T,Utilities,5220.29,6/26/2024
AT & T,Utilities,1491.9,6/26/2024
AT & T,Utilities,5127.39,6/26/2024
AT & T,Utilities,862.11,6/26/2024
AT & T,Utilities,78708.08,6/26/2024
AT & T,Utilities,22531.44,6/26/2024
AT & T,Utilities,17685.7,6/26/2024
AT & T,Utilities,3255.35,6/26/2024
AT & T,Utilities,8745.34,6/26/2024
AT & T,Utilities,11580.02,6/26/2024
AT & T,Utilities,9357.45,6/26/2024
AT & T,Utilities,3276,6/26/2024
AT & T,Utilities,3.75,6/26/2024
AT & T,Utilities,48603.03,6/26/2024
AT & T,Utilities,15605.04,6/26/2024
AT & T,Utilities,157631.15,6/26/2024
A-Tire County Service  Inc.,Services,1665,1/22/2024
A-Tire County Service  Inc.,Materials,1202.91,1/22/2024
A-Tire County Service  Inc.,Services,750,1/22/2024
A-Tire County Service  Inc.,Materials,2647.52,1/22/2024
A-Tire County Service  Inc.,Services,1699.73,1/22/2024
A-Tire County Service  Inc.,Services,885.25,1/22/2024
A-Tire County Service  Inc.,Materials,3583.51,2/20/2024
A-Tire County Service  Inc.,Services,2261,2/20/2024
A-Tire County Service  Inc.,Services,150,2/20/2024
A-Tire County Service  Inc.,Materials,4398.86,3/14/2024
A-Tire County Service  Inc.,Services,2460,3/14/2024
A-Tire County Service  Inc.,Services,538,4/11/2024
A-Tire County Service  Inc.,Materials,577.81,4/11/2024
A-Tire County Service  Inc.,Services,35,4/11/2024
A-Tire County Service  Inc.,Services,35,6/17/2024
A-Tire County Service  Inc.,Materials,854.86,6/17/2024
A-Tire County Service  Inc.,Services,728,6/17/2024
Atlantic Track & Turnout Co.,Materials,41628.9,1/30/2024
Atlantic Track & Turnout Co.,Materials,83285.28,2/1/2024
Atlantic Track & Turnout Co.,Materials,137830,2/1/2024
Atlantic Track & Turnout Co.,Materials,35947.04,2/2/2024
Atlantic Track & Turnout Co.,Materials,24326.1,5/1/2024
Atlantic Track & Turnout Co.,Materials,26858.5,5/28/2024
Atlas Copco Compressors LLC,Materials,270,6/19/2024
Atlas First Access,Services,660,1/10/2024
Atlas First Access,Materials,627.67,1/10/2024
Atlas First Access,Materials,687,1/12/2024
Atlas First Access,Services,1017.5,1/12/2024
Atlas First Access,Services,1301.5,1/22/2024
Atlas First Access,Materials,1599.81,1/22/2024
Atlas First Access,Capital Purchases,86900,1/26/2024
Atlas First Access,Materials,3428.37,3/1/2024
Atlas First Access,Services,2113.75,3/1/2024
Atlas First Access,Services,2774.5,3/4/2024
Atlas First Access,Materials,1421.96,3/4/2024
Atlas First Access,Services,110,3/7/2024
Atlas First Access,Materials,4074.97,3/26/2024
Atlas First Access,Services,2090,3/26/2024
Atlas First Access,Materials,2960.7,4/19/2024
Atlas First Access,Services,3620,4/19/2024
Atlas First Access,Services,1430,4/22/2024
Atlas First Access,Materials,194.13,4/22/2024
Atlas First Access,Services,2062.5,5/7/2024
Atlas First Access,Capital Purchases,13700,5/7/2024
Atlas First Access,Materials,169.98,5/7/2024
Atlas First Access,Services,4754.5,5/15/2024
Atlas First Access,Materials,5515.73,5/15/2024
Atlas First Access,Materials,1106.72,5/23/2024
Atlas First Access,Services,593.75,5/23/2024
Atlas First Access,Materials,1160.1,6/17/2024
Atlas First Access,Services,4592.5,6/17/2024
Atlas Toyota Material Handling  LLC,Capital Purchases,59873.1,3/7/2024
Atlas Toyota Material Handling  LLC,Capital Purchases,24006.74,4/22/2024
Atlas Toyota Material Handling  LLC,Materials,9750,4/22/2024
Atlas Toyota Material Handling  LLC,Materials,9750,4/22/2024
Atlas Toyota Material Handling  LLC,Capital Purchases,38400,6/27/2024
Atul Mohlajee,Services,93.97,6/6/2024
Atul Mohlajee,Services,259,6/6/2024
Atul Mohlajee,Services,1161.42,6/6/2024
Auto Glass Plus Inc,Services,1470,4/11/2024
Auto Glass Plus Inc,Services,900,5/1/2024
Auto Glass Plus Inc,Services,817.92,5/23/2024
Auto Glass Plus Inc,Services,1710,6/27/2024
Automated Railroad Mntce. Systems  Inc. (Arms  Inc.),Capital Purchases,7170.4,3/1/2024
Automated Railroad Mntce. Systems  Inc. (Arms  Inc.),Capital Purchases,1434.08,3/14/2024
Automated Railroad Mntce. Systems  Inc. (Arms  Inc.),Capital Purchases,1434.08,3/14/2024
Automated Railroad Mntce. Systems  Inc. (Arms  Inc.),Capital Purchases,1434.09,4/11/2024
"Automotive Rentals, Inc.",Services,351,6/6/2024
AUTONOMOUS Inc.,Materials,2607.75,6/18/2024
AVI Systems Inc.,Capital Purchases,1182.21,1/18/2024
"Axon Enterprise, Inc",Materials,13956.6,1/18/2024
"Axon Enterprise, Inc",Services,1094,2/12/2024
"Axon Enterprise, Inc",Services,147350.88,3/4/2024
"Axon Enterprise, Inc",Services,1249,4/11/2024
"Axon Enterprise, Inc",Services,1156061.1,4/15/2024
Ayanna Walker,Services,9.92,4/10/2024
Azura Investigations Llc,Services,5367,2/20/2024
Azura Investigations Llc,Services,2045,3/1/2024
Azura Investigations Llc,Services,3982,3/18/2024
Azura Investigations Llc,Services,3300,4/11/2024
Azura Investigations Llc,Services,2050,6/1/2024
B & H Photo Video Corp.,Services,225.48,2/1/2024
B & H Photo Video Corp.,Services,618.26,2/1/2024
B & H Photo Video Corp.,Services,10119.64,6/21/2024
Bach-Simpson Div. Of Wabtec Canada  Inc.,Materials,63595,1/4/2024
Bach-Simpson Div. Of Wabtec Canada  Inc.,Materials,17130,1/4/2024
Bach-Simpson Div. Of Wabtec Canada  Inc.,Materials,11520,1/24/2024
Bach-Simpson Div. Of Wabtec Canada  Inc.,Materials,7975,2/1/2024
Bach-Simpson Div. Of Wabtec Canada  Inc.,Materials,6075,2/22/2024
Bach-Simpson Div. Of Wabtec Canada  Inc.,Materials,2150,2/22/2024
Bach-Simpson Div. Of Wabtec Canada  Inc.,Materials,545,2/23/2024
Bach-Simpson Div. Of Wabtec Canada  Inc.,Materials,19500,3/1/2024
Bach-Simpson Div. Of Wabtec Canada  Inc.,Materials,7960,3/5/2024
Bach-Simpson Div. Of Wabtec Canada  Inc.,Materials,3475,3/13/2024
Bach-Simpson Div. Of Wabtec Canada  Inc.,Materials,495,3/26/2024
Bach-Simpson Div. Of Wabtec Canada  Inc.,Materials,545,4/4/2024
Bach-Simpson Div. Of Wabtec Canada  Inc.,Materials,5925,4/25/2024
Bach-Simpson Div. Of Wabtec Canada  Inc.,Materials,4300,5/1/2024
Bach-Simpson Div. Of Wabtec Canada  Inc.,Materials,2430,5/16/2024
Bach-Simpson Div. Of Wabtec Canada  Inc.,Materials,7590,5/16/2024
Bach-Simpson Div. Of Wabtec Canada  Inc.,Materials,10550,5/16/2024
Bach-Simpson Div. Of Wabtec Canada  Inc.,Materials,3980,5/22/2024
Bach-Simpson Div. Of Wabtec Canada  Inc.,Materials,6815,6/10/2024
BAKERHOSTETLER,Services,3952,2/1/2024
Ballast Tools  Inc.,Materials,9312,2/23/2024
Ballast Tools  Inc.,Materials,9312,4/25/2024
Barbara A. Herodes,Services,1188.2,1/10/2024
Barbara A. Herodes,Services,19,1/10/2024
Barbara A. Herodes,Services,37.86,1/10/2024
Barbara A. Herodes,Services,60.15,1/10/2024
Barbara A. Herodes,Services,211.5,1/10/2024
Barrett Hardware & Industrial Suppl,Materials,1249.95,4/18/2024
Barrett Hardware & Industrial Suppl,Materials,348.7,6/10/2024
Barrett Hardware & Industrial Suppl,Services,22,6/10/2024
Barrett Hardware & Industrial Suppl,Services,0,6/17/2024
Barrett Hardware & Industrial Suppl,Materials,4516.22,6/17/2024
Baultar Concept  Inc.,Capital Purchases,23175,1/4/2024
Baultar Concept  Inc.,Capital Purchases,23175,2/1/2024
Baultar Concept  Inc.,Services,2410,2/8/2024
Baultar Concept  Inc.,Materials,26550,2/8/2024
Baultar Concept  Inc.,Capital Purchases,46350,2/23/2024
Baultar Concept  Inc.,Capital Purchases,5000,4/1/2024
Baultar Concept  Inc.,Capital Purchases,92700,5/1/2024
Baultar Concept  Inc.,Materials,15000,5/17/2024
BCBS Of Illinois,Services,1216978.02,1/5/2024
BCBS Of Illinois,Services,54741,1/5/2024
BCBS Of Illinois,Services,1206691.65,2/5/2024
BCBS Of Illinois,Services,53555.84,2/5/2024
BCBS Of Illinois,Services,1166378.57,3/4/2024
BCBS Of Illinois,Services,53733.59,3/4/2024
BCBS Of Illinois,Services,54878.83,4/2/2024
BCBS Of Illinois,Services,1219725.02,4/2/2024
BCBS Of Illinois,Services,1261563.63,5/2/2024
BCBS Of Illinois,Services,49166.45,5/14/2024
BCBS Of Illinois,Services,1207095.24,6/3/2024
BCBS Of Illinois,Services,55056.86,6/3/2024
Bearing Headquarters Co.,Materials,2825.61,3/5/2024
Becker Professional Development Corp.,Services,449,2/27/2024
Beggars Pizza,Services,437.5,4/9/2024
Beligh Sraieb,Services,52.05,2/1/2024
Beligh Sraieb,Services,828.84,2/1/2024
Beligh Sraieb,Services,1054.18,2/20/2024
Beligh Sraieb,Services,40.4,2/20/2024
Beligh Sraieb,Services,989.59,3/14/2024
Beligh Sraieb,Services,47.15,3/14/2024
Beligh Sraieb,Services,896.19,4/4/2024
Beligh Sraieb,Services,35.7,4/4/2024
Beligh Sraieb,Services,1691.82,6/18/2024
Beligh Sraieb,Services,59.35,6/18/2024
Bellwood Electric Motors Inc.,Services,19900,1/1/2024
Bellwood Electric Motors Inc.,Materials,18400,1/4/2024
Bellwood Electric Motors Inc.,Materials,18900,2/1/2024
Bellwood Electric Motors Inc.,Materials,61800,3/5/2024
Bellwood Electric Motors Inc.,Materials,4820,3/5/2024
Bellwood Electric Motors Inc.,Materials,4200,3/5/2024
Bellwood Electric Motors Inc.,Materials,2600,3/5/2024
Bellwood Electric Motors Inc.,Materials,3900,3/5/2024
Bellwood Electric Motors Inc.,Materials,7600,3/26/2024
Bellwood Electric Motors Inc.,Materials,8200,4/2/2024
Bellwood Electric Motors Inc.,Services,5300,4/25/2024
Bellwood Electric Motors Inc.,Materials,5100,5/17/2024
Bellwood Electric Motors Inc.,Materials,2800,6/10/2024
Bellwood Electric Motors Inc.,Materials,24000,6/10/2024
Bellwood Electric Motors Inc.,Materials,5400,6/21/2024
Bellwood Electric Motors Inc.,Materials,4200,6/27/2024
Benefit Resource Inc.,Services,4860.28,1/5/2024
Benefit Resource Inc.,Services,221835.2,1/8/2024
Benefit Resource Inc.,Services,27489.37,1/8/2024
Benefit Resource Inc.,Services,133616.68,2/5/2024
Benefit Resource Inc.,Services,12343.69,2/5/2024
Benefit Resource Inc.,Services,5201,2/5/2024
Benefit Resource Inc.,Services,5524.2,3/12/2024
Benefit Resource Inc.,Services,125059.89,3/12/2024
Benefit Resource Inc.,Services,4836,3/12/2024
Benefit Resource Inc.,Services,7601.47,5/2/2024
Benefit Resource Inc.,Services,158335.22,6/3/2024
Benefit Resource Inc.,Services,17067.2,6/3/2024
Benefit Resource Inc.,Services,9616.5,6/3/2024
Bentley Systems  Inc.,Services,43088.88,3/6/2024
Berkeley Simulation Software  LLC,Services,36000,5/1/2024
Bernard Powell,Services,339,1/9/2024
Bernard Powell,Services,169.5,1/12/2024
Bernard Powell,Services,621.5,4/23/2024
Bernard Powell,Services,395.5,5/7/2024
Bernard Powell,Services,621.5,5/28/2024
Bernard Powell,Services,226,6/18/2024
Bernard Powell,Services,565,6/27/2024
Berts Car Wash  Inc.,Services,931.75,1/24/2024
Berts Car Wash  Inc.,Services,1080,2/23/2024
Berts Car Wash  Inc.,Services,2228,3/26/2024
Berts Car Wash  Inc.,Services,1103,4/25/2024
Berts Car Wash  Inc.,Services,1292.75,6/5/2024
Berts Car Wash  Inc.,Services,1299.75,6/27/2024
Betenbender Mfg. Inc.,Services,1821.39,5/1/2024
Beverly Rutledge,Services,100.93,4/15/2024
Billy Chaney,Services,630.37,1/11/2024
Billy Chaney,Services,603,2/13/2024
Billy Chaney,Services,560.92,3/12/2024
Billy Chaney,Services,603,4/15/2024
Billy Chaney,Services,603,5/15/2024
Billy Chaney,Services,643.2,6/18/2024
BLAIRE THEUERKAUF,Services,73.48,3/19/2024
BLAIRE THEUERKAUF,Services,172.5,3/19/2024
BLAIRE THEUERKAUF,Services,80.44,6/18/2024
BLAIRE THEUERKAUF,Services,271.78,6/18/2024
BLAIRE THEUERKAUF,Services,160,6/18/2024
Blue Print Shoppe  Inc.,Capital Purchases,535.67,1/17/2024
Blue Print Shoppe  Inc.,Capital Purchases,1813.62,2/14/2024
Blue Print Shoppe  Inc.,Capital Purchases,704.29,3/5/2024
Blue Print Shoppe  Inc.,Capital Purchases,76.22,4/2/2024
Blue Print Shoppe  Inc.,Capital Purchases,837.84,4/29/2024
Blue Print Shoppe  Inc.,Capital Purchases,126.69,5/17/2024
Blue Print Shoppe  Inc.,Capital Purchases,101.97,5/17/2024
Blue Print Shoppe  Inc.,Capital Purchases,163.77,5/17/2024
Blue Print Shoppe  Inc.,Capital Purchases,377.88,6/1/2024
"BlueStar Computer Solutions, Inc. DBA BlueStar Case Solutions, Inc.",Claims & Insurance,10700.72,1/23/2024
"BlueStar Computer Solutions, Inc. DBA BlueStar Case Solutions, Inc.",Claims & Insurance,10493.72,1/26/2024
"BlueStar Computer Solutions, Inc. DBA BlueStar Case Solutions, Inc.",Claims & Insurance,10493.72,2/12/2024
"BlueStar Computer Solutions, Inc. DBA BlueStar Case Solutions, Inc.",Claims & Insurance,10493.72,4/26/2024
"BlueStar Computer Solutions, Inc. DBA BlueStar Case Solutions, Inc.",Claims & Insurance,10493.72,5/16/2024
"BlueStar Computer Solutions, Inc. DBA BlueStar Case Solutions, Inc.",Services,10493.72,5/16/2024
"BlueStar Computer Solutions, Inc. DBA BlueStar Case Solutions, Inc.",Claims & Insurance,10493.72,6/24/2024
Bnsf Railway Co.,Capital Purchases,5129.37,1/1/2024
Bnsf Railway Co.,Capital Purchases,14471.92,1/2/2024
Bnsf Railway Co.,Services,6256107,1/2/2024
Bnsf Railway Co.,Services,50,1/9/2024
Bnsf Railway Co.,Capital Purchases,17123.94,1/12/2024
Bnsf Railway Co.,Services,6859650,1/17/2024
Bnsf Railway Co.,Capital Purchases,606981.53,1/18/2024
Bnsf Railway Co.,Services,4500.02,1/29/2024
Bnsf Railway Co.,Services,4500.02,2/22/2024
Bnsf Railway Co.,Services,6757447,2/23/2024
Bnsf Railway Co.,Capital Purchases,74596.05,3/1/2024
Bnsf Railway Co.,Capital Purchases,958,3/6/2024
Bnsf Railway Co.,Capital Purchases,9438.11,3/6/2024
Bnsf Railway Co.,Capital Purchases,5977.75,3/7/2024
Bnsf Railway Co.,Capital Purchases,324212.42,3/14/2024
Bnsf Railway Co.,Capital Purchases,462792,3/14/2024
Bnsf Railway Co.,Services,6397310,3/19/2024
Bnsf Railway Co.,Services,4500.02,3/19/2024
Bnsf Railway Co.,Capital Purchases,277312.98,3/21/2024
Bnsf Railway Co.,Capital Purchases,6178.76,3/21/2024
Bnsf Railway Co.,Services,6683733,4/22/2024
Bnsf Railway Co.,Services,4500.02,4/22/2024
Bnsf Railway Co.,Capital Purchases,16527.35,5/1/2024
Bnsf Railway Co.,Capital Purchases,202478.8,5/7/2024
Bnsf Railway Co.,Services,6613892,5/21/2024
Bnsf Railway Co.,Services,4500.02,6/6/2024
Bnsf Railway Co.,Capital Purchases,733.63,6/18/2024
Bnsf Railway Co.,Capital Purchases,383198.84,6/18/2024
Bnsf Railway Co.,Capital Purchases,9279.16,6/24/2024
Bnsf Railway Co.,Services,6728900,6/26/2024
Bobby Brown,Services,205.02,4/11/2024
Bobby Brown,Services,233.16,5/15/2024
Bobby Brown,Services,148.74,6/18/2024
Borislav Apostolov,Services,113.23,5/7/2024
Borislav Apostolov,Services,113.23,5/7/2024
Bounce Houses R Us LLC,Services,6790,2/27/2024
Brad Methling,Services,42.88,2/14/2024
Brad Methling,Services,14.74,2/14/2024
Brad Methling,Services,29.48,2/14/2024
Brad Methling,Services,288.1,3/20/2024
Brad Methling,Services,72.36,5/13/2024
Brad Methling,Services,57.62,5/13/2024
Brandon Scott Wilson,Services,105.86,3/20/2024
Brandon Scott Wilson,Services,127.3,5/15/2024
Brandon Scott Wilson,Services,190.28,6/10/2024
Brandon Weaver,Services,8.31,6/20/2024
Brasco International  Inc.,Capital Purchases,150250,1/1/2024
BRAULIO Joel ZAMBONINO,Services,134.99,2/28/2024
BRAULIO Joel ZAMBONINO,Services,1915.64,2/28/2024
BRAULIO Joel ZAMBONINO,Services,434.5,2/28/2024
Brendan A. Stejskal,Services,290.82,1/2/2024
Brendan A. Stejskal,Services,297.48,2/13/2024
Brendan A. Stejskal,Services,307.53,2/26/2024
Brendan A. Stejskal,Services,307.53,3/12/2024
Brendan A. Stejskal,Services,297.48,3/21/2024
Brendan A. Stejskal,Services,297.48,4/4/2024
Brendan A. Stejskal,Services,347.06,4/18/2024
Brendan A. Stejskal,Services,304.18,5/2/2024
Brendan A. Stejskal,Services,307.53,5/20/2024
Brendan A. Stejskal,Services,335.67,6/10/2024
Brendan A. Stejskal,Services,310.88,6/18/2024
Brendan M. Ohara,Services,55.41,1/12/2024
BRIAN HARDY,Services,40.2,1/11/2024
BRIAN HARDY,Services,13.4,1/11/2024
BRIAN HARDY,Services,61.64,3/13/2024
BRIAN HARDY,Services,16.08,3/13/2024
BRIAN HARDY,Services,13.4,3/20/2024
BRIAN HARDY,Services,61.64,3/26/2024
BRIAN HARDY,Services,40.2,4/16/2024
BRIAN HARDY,Services,61.64,4/30/2024
BRIAN HARDY,Services,40.2,5/14/2024
BRIAN HARDY,Services,40.2,6/4/2024
BRIAN HARDY,Services,26.8,6/21/2024
Brian Richards,Services,60.26,1/4/2024
Brian Richards,Services,61.64,1/11/2024
Brian Richards,Services,61.64,1/30/2024
Brian Richards,Services,61.64,5/13/2024
Brian Richards,Services,182.24,5/28/2024
Brittany Bogan,Services,259,3/5/2024
Brittany Bogan,Services,142.67,3/5/2024
Brittany Bogan,Services,842.16,3/5/2024
Brittany Bogan,Services,5250,6/6/2024
Buona Catering LLC dba Beyond Catering & Events,Services,6580.67,2/27/2024
Burns & Mcdonnell Engineering Co.,Capital Purchases,37406.07,5/8/2024
Burns & Mcdonnell Engineering Co.,Capital Purchases,19295.38,6/7/2024
Cadient LLC,Services,12028,1/25/2024
Cadient LLC,Services,2400,3/7/2024
Cadient LLC,Services,5200,3/15/2024
Cadient LLC,Services,12028,5/3/2024
Calumet Harbor Lumber & Supplyco.,Materials,227181,2/2/2024
Calumet Lift Truck Service Co. Inc.,Rental Expense,1665,1/16/2024
Calumet Lift Truck Service Co. Inc.,Rental Expense,1380,2/8/2024
Calumet Lift Truck Service Co. Inc.,Rental Expense,1380,3/6/2024
Calumet Lift Truck Service Co. Inc.,Rental Expense,1380,4/5/2024
Calumet Lift Truck Service Co. Inc.,Rental Expense,1380,5/15/2024
Calumet Lift Truck Service Co. Inc.,Rental Expense,3240,5/24/2024
Calumet Lift Truck Service Co. Inc.,Rental Expense,2380,6/17/2024
Canadian National Railroad,Services,76934.48,1/2/2024
Canadian National Railroad,Services,97109.42,2/5/2024
Canadian National Railroad,Services,5802.49,2/15/2024
Canadian National Railroad,Services,357.44,2/26/2024
Canadian National Railroad,Services,514004.7,3/22/2024
Canadian National Railroad,Services,771007.08,3/22/2024
Canadian National Railroad,Services,41163.24,4/4/2024
Canadian National Railroad,Services,5344.04,4/4/2024
Canadian National Railroad,Services,1757.21,4/23/2024
Canadian National Railroad,Services,257002.36,5/9/2024
Canadian National Railroad,Services,171334.9,5/9/2024
Canadian National Railroad,Services,257002.36,6/6/2024
Canadian National Railroad,Services,171334.9,6/6/2024
Canadian National Railroad,Services,74009.08,6/11/2024
Canadian National Railroad,Services,79836.56,6/14/2024
Canadian National Railroad,Services,4206.32,7/1/2024
Canadian Pacific Railway Co.,Services,88683.02,3/7/2024
Canadian Pacific Railway Co.,Services,90761.47,3/8/2024
Canadian Pacific Railway Co.,Services,164147.66,6/17/2024
Canadian Urban Transit Association (CUTA),Services,56592.5,2/1/2024
Candice Randolph,Services,81.54,4/25/2024
Candice Randolph,Services,6.85,4/25/2024
Candice Randolph,Services,5.7,5/14/2024
Candice Randolph,Services,102.85,5/14/2024
Candice Randolph,Services,122.48,5/28/2024
Candice Randolph,Services,142.5,5/28/2024
Candice Randolph,Services,10.1,5/28/2024
Candice Randolph,Services,61.37,5/28/2024
Candice Randolph,Services,88.5,5/28/2024
Canteen Refreshment Services,Materials,226.46,1/2/2024
Canteen Refreshment Services,Materials,43.96,1/8/2024
Canteen Refreshment Services,Materials,1056,1/10/2024
Canteen Refreshment Services,Materials,323.46,1/16/2024
Canteen Refreshment Services,Materials,167.08,3/4/2024
Canteen Refreshment Services,Materials,220.4,3/19/2024
Canteen Refreshment Services,Materials,195,3/28/2024
Canteen Refreshment Services,Materials,141.98,5/13/2024
Canteen Refreshment Services,Materials,291.09,5/15/2024
Canteen Refreshment Services,Materials,120,5/24/2024
Carahsoft Technology Corp,Services,13118.55,6/4/2024
Carahsoft Technology Corp,Capital Purchases,2046.61,6/10/2024
Cardinal Color Group,Services,63795.33,2/13/2024
Cardinal Color Group,Services,14228.4,4/18/2024
Cardinal Color Group,Services,6500,4/18/2024
Cardinal Color Group,Services,4395.08,5/15/2024
Cardinal Color Group,Services,3844.99,5/16/2024
Cardinal Color Group,Services,2925.42,6/5/2024
Cardinal Color Group,Services,2224.95,6/13/2024
Cardinal Color Group,Services,3665.1,6/27/2024
Cardinal Color Group,Services,11811.55,6/28/2024
Carlos A. Del Toro,Services,489.29,1/11/2024
Carlos A. Del Toro,Services,464.85,1/22/2024
Carlos A. Del Toro,Services,93.71,1/30/2024
Carlos A. Del Toro,Services,499.02,2/8/2024
Carlos A. Del Toro,Services,66.46,2/12/2024
Carlos A. Del Toro,Services,480.39,2/27/2024
Carlos A. Del Toro,Services,410.71,3/12/2024
Carlos A. Del Toro,Services,499.42,3/20/2024
Carlos A. Del Toro,Services,492.72,4/9/2024
Carlos A. Del Toro,Services,384.98,4/23/2024
Carlos A. Del Toro,Services,451.71,4/30/2024
Carlos A. Del Toro,Services,291.32,5/23/2024
Carlos A. Del Toro,Services,489.9,6/10/2024
Carlos R Ochoa,Services,508.5,4/23/2024
Carlos R Ochoa,Services,791,5/8/2024
Carlos R Ochoa,Services,678,5/28/2024
Carlos R Ochoa,Services,508.5,6/18/2024
Carlos R Ochoa,Services,678,6/27/2024
Carmichael Leasing Co.  Inc.,Materials,4608.34,1/5/2024
Carmichael Leasing Co.  Inc.,Services,163.8,1/5/2024
Carmichael Leasing Co.  Inc.,Services,8911.11,1/5/2024
Carmichael Leasing Co.  Inc.,Services,3290.25,1/16/2024
Carmichael Leasing Co.  Inc.,Materials,7868.15,1/16/2024
Carmichael Leasing Co.  Inc.,Materials,163.8,1/31/2024
Carmichael Leasing Co.  Inc.,Materials,273,2/2/2024
Carmichael Leasing Co.  Inc.,Materials,218.4,2/13/2024
Carmichael Leasing Co.  Inc.,Materials,109.2,2/13/2024
Carmichael Leasing Co.  Inc.,Services,1231.6,3/4/2024
Carmichael Leasing Co.  Inc.,Materials,1245.96,3/4/2024
Carmichael Leasing Co.  Inc.,Materials,109.2,3/20/2024
Carmichael Leasing Co.  Inc.,Services,54.6,5/16/2024
CAROL MCNEAL,Services,37.52,6/21/2024
Catena Solutions LLC,Services,9408,6/19/2024
Catena Solutions LLC,Services,7392,6/24/2024
Catena Solutions LLC,Services,3000,6/26/2024
Cavalry Fire Protection Svc. LLC,Services,35,1/9/2024
Cavalry Fire Protection Svc. LLC,Materials,610,1/9/2024
Cavalry Fire Protection Svc. LLC,Services,1493.9,1/9/2024
Cavalry Fire Protection Svc. LLC,Services,226,1/10/2024
Cavalry Fire Protection Svc. LLC,Services,594.5,1/10/2024
Cavalry Fire Protection Svc. LLC,Services,1420.6,1/16/2024
Cavalry Fire Protection Svc. LLC,Services,752.5,2/2/2024
Cavalry Fire Protection Svc. LLC,Services,1163.8,2/5/2024
Cavalry Fire Protection Svc. LLC,Services,285.5,2/12/2024
Cavalry Fire Protection Svc. LLC,Services,693,2/12/2024
Cavalry Fire Protection Svc. LLC,Services,755.3,2/14/2024
Cavalry Fire Protection Svc. LLC,Services,205.3,2/14/2024
Cavalry Fire Protection Svc. LLC,Materials,3283.5,2/15/2024
Cavalry Fire Protection Svc. LLC,Services,659.4,3/4/2024
Cavalry Fire Protection Svc. LLC,Services,2680.1,3/11/2024
Cavalry Fire Protection Svc. LLC,Materials,2767.1,3/11/2024
Cavalry Fire Protection Svc. LLC,Services,756.3,3/12/2024
Cavalry Fire Protection Svc. LLC,Materials,4840.9,3/14/2024
Cavalry Fire Protection Svc. LLC,Services,150.6,3/14/2024
Cavalry Fire Protection Svc. LLC,Services,105,3/14/2024
Cavalry Fire Protection Svc. LLC,Services,585.1,3/28/2024
Cavalry Fire Protection Svc. LLC,Materials,1193.9,3/28/2024
Cavalry Fire Protection Svc. LLC,Services,638.8,3/28/2024
Cavalry Fire Protection Svc. LLC,Services,3767.8,3/28/2024
Cavalry Fire Protection Svc. LLC,Materials,1116.5,4/17/2024
Cavalry Fire Protection Svc. LLC,Services,1275.7,4/17/2024
Cavalry Fire Protection Svc. LLC,Services,497.9,4/18/2024
Cavalry Fire Protection Svc. LLC,Services,2844.2,4/30/2024
Cavalry Fire Protection Svc. LLC,Services,839.4,5/1/2024
Cavalry Fire Protection Svc. LLC,Services,2441.5,5/21/2024
Cavalry Fire Protection Svc. LLC,Materials,1387.65,5/23/2024
Cavalry Fire Protection Svc. LLC,Services,1160.75,5/23/2024
Cavalry Fire Protection Svc. LLC,Services,1231.4,5/23/2024
Cavalry Fire Protection Svc. LLC,Services,1575.9,5/23/2024
Cavalry Fire Protection Svc. LLC,Services,201.25,5/29/2024
Cavalry Fire Protection Svc. LLC,Services,94.4,5/29/2024
Cavalry Fire Protection Svc. LLC,Services,1516.4,6/17/2024
Cavalry Fire Protection Svc. LLC,Services,205,6/26/2024
Cavalry Fire Protection Svc. LLC,Services,703.75,6/26/2024
"CBFC Development, LLC",Rental Expense,24749.69,1/10/2024
"CBFC Development, LLC",Rental Expense,24749.69,2/8/2024
"CBFC Development, LLC",Rental Expense,24749.69,3/6/2024
"CBFC Development, LLC",Rental Expense,24749.69,4/8/2024
"CBFC Development, LLC",Rental Expense,49499.38,6/10/2024
CDECI,Materials,4623.34,1/1/2024
CDECI,Services,41098.51,1/1/2024
CDECI,Services,56637.69,1/5/2024
CDECI,Services,23645.38,2/5/2024
CDECI,Materials,301.05,3/1/2024
CDECI,Services,70067.18,3/1/2024
CDECI,Services,20924.5,3/4/2024
CDECI,Services,45792.64,4/1/2024
CDECI,Services,24303.88,4/10/2024
CDECI,Services,18578.28,5/7/2024
CDECI,Services,40899.1,5/13/2024
CDECI,Services,6004.83,5/15/2024
CDECI,Services,28730,5/24/2024
CDECI,Services,33358.36,6/11/2024
CDECI,Services,25146,6/17/2024
Cdm Smith  Inc.,Capital Purchases,105125.65,1/2/2024
Cdm Smith  Inc.,Capital Purchases,6494.99,1/2/2024
Cdm Smith  Inc.,Capital Purchases,3370.16,1/9/2024
Cdm Smith  Inc.,Capital Purchases,199328.2,1/9/2024
Cdm Smith  Inc.,Capital Purchases,25470.3,2/7/2024
Cdm Smith  Inc.,Capital Purchases,31100.83,2/14/2024
CDW Government  LLC,Materials,18000,1/1/2024
CDW Government  LLC,Capital Purchases,1090,1/10/2024
CDW Government  LLC,Materials,4360,2/14/2024
CDW Government  LLC,Materials,1336.5,2/21/2024
CDW Government  LLC,Capital Purchases,545,3/4/2024
Celeste Industries Corp.,Materials,1500,1/10/2024
Celeste Industries Corp.,Materials,3900,2/5/2024
Celeste Industries Corp.,Materials,1500,4/17/2024
Celeste Industries Corp.,Materials,1200,5/6/2024
Celeste Industries Corp.,Materials,2700,5/20/2024
Celeste Industries Corp.,Materials,3060,6/1/2024
Central Sales & Service Inc.,Materials,1759.6,1/10/2024
Central Sales & Service Inc.,Capital Purchases,26087.1,1/10/2024
Central Sales & Service Inc.,Capital Purchases,17627.77,3/4/2024
Central Sales & Service Inc.,Capital Purchases,14232.72,3/11/2024
Central Sales & Service Inc.,Capital Purchases,26668.8,3/28/2024
Central Sales & Service Inc.,Materials,357.6,4/5/2024
Central Sales & Service Inc.,Materials,356.32,5/20/2024
Central Sales & Service Inc.,Materials,8024,6/5/2024
Central Sales & Service Inc.,Capital Purchases,52174.2,6/14/2024
CenTrio Energy Chicago LLC,Utilities,25626.68,1/10/2024
CenTrio Energy Chicago LLC,Utilities,16017.54,1/16/2024
CenTrio Energy Chicago LLC,Utilities,17724.19,2/21/2024
CenTrio Energy Chicago LLC,Utilities,21298.19,3/14/2024
CenTrio Energy Chicago LLC,Utilities,27271.06,4/18/2024
CenTrio Energy Chicago LLC,Utilities,25349.07,5/20/2024
CenTrio Energy Chicago LLC,Utilities,38877.84,6/17/2024
Certified Languages International,Services,129.6,1/5/2024
Certified Languages International,Services,148.5,1/17/2024
Certified Languages International,Services,250,1/18/2024
Certified Languages International,Services,158.4,2/20/2024
Certified Languages International,Services,289.8,3/19/2024
Certified Languages International,Services,136.8,4/22/2024
Certified Languages International,Services,396.9,6/27/2024
Charles A. Wilson,Services,14.74,5/15/2024
CHARLES TILLMAN,Services,27.51,1/11/2024
CHARLES TILLMAN,Services,4.85,1/11/2024
CHARLES TILLMAN,Services,5.23,2/20/2024
CHARLES TILLMAN,Services,261.3,2/20/2024
CHARLES TILLMAN,Services,155.44,3/19/2024
CHARLES TILLMAN,Services,5.23,3/19/2024
CHARLES TILLMAN,Services,282.74,4/22/2024
CHARLES TILLMAN,Services,155.44,6/11/2024
Chauncey Lawrence,Services,129.85,1/2/2024
Chauncey Lawrence,Services,1058,4/18/2024
Chauncey Lawrence,Services,288,4/18/2024
"Checkfluid, Inc",Materials,300,1/16/2024
"Checkfluid, Inc",Materials,16.9,1/16/2024
"Checkfluid, Inc",Materials,67.6,1/17/2024
"Checkfluid, Inc",Materials,1200,1/17/2024
"Checkfluid, Inc",Materials,900,1/24/2024
"Checkfluid, Inc",Materials,50.7,1/24/2024
"Checkfluid, Inc",Materials,80.82,2/1/2024
"Checkfluid, Inc",Materials,1350,2/1/2024
"Checkfluid, Inc",Materials,1350,3/7/2024
"Checkfluid, Inc",Materials,67.6,3/7/2024
Chem & Consult  Inc.,Materials,4243.8,2/5/2024
Chem & Consult  Inc.,Materials,4243.8,4/17/2024
Chi Lam Darren Tam,Services,52.66,6/27/2024
Chicago Filter Supply,Materials,2288.12,5/24/2024
Chicago Metal Maintenance  Inc.,Services,615,2/5/2024
Chicago Metal Maintenance  Inc.,Services,615,2/15/2024
Chicago Metal Maintenance  Inc.,Services,615,4/17/2024
Chicago Metal Maintenance  Inc.,Services,615,5/6/2024
Chicago Metal Maintenance  Inc.,Services,615,6/7/2024
Chicago Minority Supplier Devel. Council  Inc.,Services,750,3/26/2024
Chicago Parts & Sound  Llc. Dba Police Department Systems,Services,4684,6/13/2024
Chicago Railroad Supply Inc.,Capital Purchases,109916.38,2/20/2024
Chicago Railroad Supply Inc.,Capital Purchases,25344,3/4/2024
Chicago Railroad Supply Inc.,Capital Purchases,27479.1,4/9/2024
Chicago Railroad Supply Inc.,Capital Purchases,13739.55,4/11/2024
Chicago Spence Tool & Rubber Co.,Materials,1107.88,2/21/2024
Chicago Tire Inc.,Services,1131.47,1/2/2024
Chicago Tire Inc.,Services,3050.65,1/2/2024
Chicago Tire Inc.,Services,25,1/10/2024
Chicago Tire Inc.,Services,699.08,1/16/2024
Chicago Tire Inc.,Services,2320.91,1/16/2024
Chicago Tire Inc.,Services,448.83,1/29/2024
Chicago Tire Inc.,Services,31499.16,1/29/2024
Chicago Tire Inc.,Services,973.95,1/29/2024
Chicago Tire Inc.,Materials,1650,2/1/2024
Chicago Tire Inc.,Services,2256,2/1/2024
Chicago Tire Inc.,Services,90,2/1/2024
Chicago Tire Inc.,Services,25,2/8/2024
Chicago Tire Inc.,Services,2967.02,2/8/2024
Chicago Tire Inc.,Services,225.79,2/9/2024
Chicago Tire Inc.,Services,1044.4,2/9/2024
Chicago Tire Inc.,Services,90,2/12/2024
Chicago Tire Inc.,Services,272.72,2/12/2024
Chicago Tire Inc.,Services,125,2/13/2024
Chicago Tire Inc.,Services,162.37,2/13/2024
Chicago Tire Inc.,Services,518.2,2/14/2024
Chicago Tire Inc.,Services,125,2/14/2024
Chicago Tire Inc.,Services,25,3/14/2024
Chicago Tire Inc.,Services,5568.75,3/26/2024
Chicago Tire Inc.,Services,23096,3/28/2024
Chicago Tire Inc.,Services,233.26,4/2/2024
Chicago Tire Inc.,Services,211.11,4/23/2024
Chicago Transit Authority,Services,17238,1/12/2024
Chicago Transit Authority,Services,10531.2,2/27/2024
Chicago Transit Authority,Services,2116.5,3/25/2024
Chicago Transit Authority,Services,2116.5,4/17/2024
Chicago Transit Authority,Services,2397,5/15/2024
Chicago Transit Authority,Services,2473.5,6/20/2024
Chicagoland Truck Parts LLC,Materials,416.96,1/5/2024
Chicagoland Truck Parts LLC,Materials,3598.78,2/9/2024
Chicagoland Truck Parts LLC,Materials,81.48,2/21/2024
Chicagoland Truck Parts LLC,Materials,2813.91,2/27/2024
Chicagoland Truck Parts LLC,Materials,121.8,3/4/2024
Chicagoland Truck Parts LLC,Materials,342.16,3/11/2024
Chicagoland Truck Parts LLC,Materials,1620.69,3/18/2024
Chicagoland Truck Parts LLC,Materials,532.35,3/20/2024
Chicagoland Truck Parts LLC,Materials,548.1,4/8/2024
Chicagoland Truck Parts LLC,Materials,614.37,4/8/2024
Chicagoland Truck Parts LLC,Materials,771.75,4/11/2024
Chicagoland Truck Parts LLC,Materials,197.4,5/6/2024
Chicagoland Truck Parts LLC,Materials,1719,6/5/2024
Chicagoland Truck Parts LLC,Materials,1080,6/24/2024
Choose Chicago,Services,699,4/30/2024
Christina Morris,Services,445.77,6/18/2024
Christina Morris,Services,26.5,6/18/2024
Christina Morris,Services,147.5,6/18/2024
CHRISTINE HAYES,,29.64,3/19/2024
Christopher A Prutsman,Services,48.47,2/20/2024
CHRISTOPHER BUFORD,Services,868.12,3/12/2024
CHRISTOPHER BUFORD,Services,919.64,5/2/2024
CHRISTOPHER BUFORD,Services,615.66,5/17/2024
Christopher Dunn,Services,123.28,2/21/2024
Christopher Dunn,Services,80.4,2/21/2024
Christopher Dunn,Services,428.8,4/10/2024
Christopher Dunn,Services,101.84,6/18/2024
Christopher Dunn,Services,80.4,6/18/2024
CHRISTOPHER GARDINER,,17325,1/16/2024
CHRISTOPHER JOHNSON,Services,5208.99,5/13/2024
Chrome Crankshaft Company LLC,Services,12301,6/13/2024
"Cicero Mfg. & Supply Company, Inc.",Services,25,6/6/2024
"Cicero Mfg. & Supply Company, Inc.",Materials,163.47,6/6/2024
"Cicero Mfg. & Supply Company, Inc.",Materials,725,6/6/2024
"Cicero Mfg. & Supply Company, Inc.",Materials,1257.9,6/14/2024
"Cicero Mfg. & Supply Company, Inc.",Materials,489.5,6/24/2024
Citibank N.A.,,381952.77,1/4/2024
Citibank N.A.,,315000,1/8/2024
Citibank N.A.,,75000,1/11/2024
Citibank N.A.,,170290.92,1/17/2024
Citibank N.A.,,50000,1/18/2024
Citibank N.A.,,300000,1/23/2024
Citibank N.A.,,180000,1/26/2024
Citibank N.A.,,50000,1/31/2024
Citibank N.A.,,75000,2/1/2024
Citibank N.A.,,26515.19,2/13/2024
Citibank N.A.,,159634.71,2/21/2024
Citibank N.A.,,167967.24,3/12/2024
Citibank N.A.,,72225.96,3/19/2024
Citibank N.A.,,128831.32,4/9/2024
Citibank N.A.,,155544.82,4/16/2024
Citibank N.A.,,120594.22,4/22/2024
Citibank N.A.,,235000,4/30/2024
Citibank N.A.,,150000,5/1/2024
Citibank N.A.,,300000,5/7/2024
Citibank N.A.,,50000,5/23/2024
Citibank N.A.,,43792.52,5/31/2024
Citibank N.A.,,319692.7,6/3/2024
Citibank N.A.,,2500000,6/26/2024
Citibank N.A.,,101729.48,6/27/2024
City Of Blue Island,Utilities,240.57,1/10/2024
City Of Blue Island,Utilities,29.16,1/16/2024
City Of Blue Island,Utilities,218.7,1/16/2024
City Of Blue Island,Utilities,218.7,1/16/2024
City Of Blue Island,Utilities,29.16,1/16/2024
City Of Blue Island,Utilities,408.24,1/16/2024
City Of Blue Island,Utilities,29.16,1/16/2024
City Of Blue Island,Utilities,704.7,1/16/2024
City Of Blue Island,Utilities,218.7,2/12/2024
City Of Blue Island,Utilities,196.83,2/12/2024
City Of Blue Island,Utilities,218.7,2/12/2024
City Of Blue Island,Utilities,29.16,2/12/2024
City Of Blue Island,Utilities,29.16,2/12/2024
City Of Blue Island,Utilities,704.7,2/12/2024
City Of Blue Island,Utilities,29.16,2/12/2024
City Of Blue Island,Utilities,29.16,3/11/2024
City Of Blue Island,Utilities,218.7,3/11/2024
City Of Blue Island,Utilities,393.66,3/11/2024
City Of Blue Island,Utilities,218.7,3/11/2024
City Of Blue Island,Utilities,29.16,3/11/2024
City Of Blue Island,Utilities,29.16,3/11/2024
City Of Blue Island,Utilities,704.7,3/11/2024
City Of Blue Island,Utilities,218.7,4/10/2024
City Of Blue Island,Utilities,29.16,4/10/2024
City Of Blue Island,Utilities,218.7,4/10/2024
City Of Blue Island,Utilities,29.16,4/10/2024
City Of Blue Island,Utilities,704.7,4/10/2024
City Of Blue Island,Utilities,29.16,4/10/2024
City Of Blue Island,Utilities,218.7,4/11/2024
City Of Blue Island,Utilities,364.5,5/8/2024
City Of Blue Island,Utilities,218.7,5/8/2024
City Of Blue Island,Utilities,29.16,5/8/2024
City Of Blue Island,Utilities,29.16,5/8/2024
City Of Blue Island,Utilities,218.7,5/8/2024
City Of Blue Island,Utilities,218.7,5/8/2024
City Of Blue Island,Utilities,29.16,5/8/2024
City Of Blue Island,Utilities,486,5/9/2024
City Of Blue Island,Utilities,29.16,6/17/2024
City Of Blue Island,Utilities,29.16,6/17/2024
City Of Blue Island,Utilities,218.7,6/17/2024
City Of Blue Island,Utilities,218.7,6/17/2024
City Of Blue Island,Utilities,349.92,6/17/2024
City Of Blue Island,Utilities,29.16,6/17/2024
City Of Blue Island,Utilities,704.7,6/17/2024
City of Chicago,Services,620,2/1/2024
City of Chicago,Services,105,2/21/2024
City of Chicago,Services,100,5/7/2024
City of Chicago,Services,315,5/28/2024
City of Country Club Hills,Services,100,5/14/2024
City Of Elgin,Utilities,224.07,1/2/2024
City Of Elgin,Utilities,54.63,1/9/2024
City Of Elgin,Utilities,1503.92,1/9/2024
City Of Elgin,Utilities,268.56,2/8/2024
City Of Elgin,Utilities,329.08,2/20/2024
City Of Elgin,Utilities,1028.16,2/20/2024
City Of Elgin,Utilities,265.43,2/28/2024
City Of Elgin,Utilities,56.65,3/11/2024
City Of Elgin,Utilities,1750.55,3/11/2024
City Of Elgin,Utilities,241.27,4/1/2024
City Of Elgin,Utilities,42,4/8/2024
City Of Elgin,Utilities,1473.63,4/8/2024
City Of Elgin,Utilities,282.56,5/6/2024
City Of Elgin,Utilities,278.58,5/13/2024
City Of Elgin,Utilities,53.13,5/13/2024
City Of Elgin,Utilities,1295.55,5/14/2024
City Of Elgin,Utilities,248.31,6/4/2024
City Of Elgin,Utilities,1616.94,6/17/2024
City Of Harvey Water Department,Utilities,36.34,1/10/2024
City Of Harvey Water Department,Utilities,36.33,1/10/2024
City Of Harvey Water Department,Utilities,40.87,2/8/2024
City Of Harvey Water Department,Utilities,36.02,2/8/2024
City Of Harvey Water Department,Utilities,36.06,3/14/2024
City Of Harvey Water Department,Utilities,32.73,3/14/2024
City Of Harvey Water Department,Utilities,36.33,4/9/2024
City Of Harvey Water Department,Utilities,36.11,4/9/2024
City Of Harvey Water Department,Utilities,36.03,5/8/2024
City Of Harvey Water Department,Utilities,9.07,5/8/2024
City Of Harvey Water Department,Utilities,39.63,6/26/2024
City Of Harvey Water Department,Utilities,39.96,6/26/2024
City Of Highland Park,Utilities,28.78,3/20/2024
City Of Highland Park,Utilities,28.78,6/26/2024
City Of Oak Forest Ill.,Utilities,56.34,1/25/2024
City Of Oak Forest Ill.,Utilities,72.33,4/24/2024
CJ's Towing & Recovery LLC,Services,718.15,1/5/2024
CJ's Towing & Recovery LLC,Services,4657.95,1/5/2024
CJ's Towing & Recovery LLC,Services,888.2,1/16/2024
CJ's Towing & Recovery LLC,Services,1081.1,2/9/2024
CJ's Towing & Recovery LLC,Services,6729,2/9/2024
CJ's Towing & Recovery LLC,Services,324.25,2/15/2024
CJ's Towing & Recovery LLC,Services,662.15,3/5/2024
CJ's Towing & Recovery LLC,Services,1627.7,3/5/2024
CJ's Towing & Recovery LLC,Services,482,3/12/2024
CJ's Towing & Recovery LLC,Services,112.6,3/12/2024
CJ's Towing & Recovery LLC,Services,816,3/14/2024
CJ's Towing & Recovery LLC,Services,326,3/15/2024
CJ's Towing & Recovery LLC,Services,1944.75,3/15/2024
CJ's Towing & Recovery LLC,Services,388.75,3/28/2024
CJ's Towing & Recovery LLC,Services,166.15,4/1/2024
CJ's Towing & Recovery LLC,Services,1589.9,4/1/2024
CJ's Towing & Recovery LLC,Services,1657.95,4/3/2024
CJ's Towing & Recovery LLC,Services,2560,4/8/2024
CJ's Towing & Recovery LLC,Services,1949.65,4/17/2024
CJ's Towing & Recovery LLC,Services,302.25,4/23/2024
CJ's Towing & Recovery LLC,Services,1233.25,4/23/2024
CJ's Towing & Recovery LLC,Services,4603.15,5/30/2024
CJ's Towing & Recovery LLC,Services,732.6,6/7/2024
CJ's Towing & Recovery LLC,Services,298.5,6/17/2024
CJ's Towing & Recovery LLC,Services,1772.15,6/24/2024
Claeven  Ltd.,Materials,495.95,1/1/2024
Claeven  Ltd.,Services,4321.85,1/5/2024
Claeven  Ltd.,Services,2338.05,1/5/2024
Claeven  Ltd.,Services,779.35,1/5/2024
Claeven  Ltd.,Services,495.95,1/5/2024
Claeven  Ltd.,Services,782.89,1/10/2024
Claeven  Ltd.,Services,2621.45,1/11/2024
Claeven  Ltd.,Services,921.05,1/16/2024
Claeven  Ltd.,Services,495.95,1/16/2024
Claeven  Ltd.,Services,255.06,1/16/2024
Claeven  Ltd.,Services,779.35,1/17/2024
Claeven  Ltd.,Services,779.35,2/1/2024
Claeven  Ltd.,Services,1629.55,2/9/2024
Claeven  Ltd.,Services,921.05,2/9/2024
Claeven  Ltd.,Services,1091.09,2/9/2024
Claeven  Ltd.,Services,1275.3,2/9/2024
Claeven  Ltd.,Services,1398.52,2/14/2024
Claeven  Ltd.,Services,495.95,2/14/2024
Claeven  Ltd.,Services,1062.75,2/15/2024
Claeven  Ltd.,Services,495.95,2/15/2024
Claeven  Ltd.,Services,1246.89,2/20/2024
Claeven  Ltd.,Services,68.66,3/4/2024
Claeven  Ltd.,Services,857.24,3/4/2024
Claeven  Ltd.,Services,211.9,3/4/2024
Claeven  Ltd.,Services,389.65,3/5/2024
Claeven  Ltd.,Services,545.51,3/5/2024
Claeven  Ltd.,Services,1558.61,3/15/2024
Claeven  Ltd.,Services,857.24,3/15/2024
Claeven  Ltd.,Services,857.24,3/15/2024
Claeven  Ltd.,Services,1293.65,3/18/2024
Claeven  Ltd.,Services,857.24,3/18/2024
Claeven  Ltd.,Services,5766.86,3/20/2024
Claeven  Ltd.,Services,857.23,3/28/2024
Claeven  Ltd.,Services,1246.89,3/28/2024
Claeven  Ltd.,Services,545.51,3/28/2024
Claeven  Ltd.,Services,545.51,3/28/2024
Claeven  Ltd.,Services,701.38,3/28/2024
Claeven  Ltd.,Services,1324.81,4/1/2024
Claeven  Ltd.,Services,545.51,4/1/2024
Claeven  Ltd.,Services,1792.39,4/3/2024
Claeven  Ltd.,Services,1558.61,4/4/2024
Claeven  Ltd.,Services,1168.95,4/11/2024
Claeven  Ltd.,Services,545.51,4/18/2024
Claeven  Ltd.,Services,1948.25,4/18/2024
Claeven  Ltd.,Services,545.51,4/23/2024
Claeven  Ltd.,Services,1168.96,5/6/2024
Claeven  Ltd.,Services,857.23,5/7/2024
Claeven  Ltd.,Services,389.62,5/7/2024
Claeven  Ltd.,Services,1013.1,5/7/2024
Claeven  Ltd.,Materials,211.89,5/20/2024
Claeven  Ltd.,Materials,857.23,5/20/2024
Claeven  Ltd.,Materials,592.28,5/20/2024
Claeven  Ltd.,Services,1558.6,5/20/2024
Claeven  Ltd.,Services,1237.61,5/20/2024
Claeven  Ltd.,Services,545.51,5/23/2024
Claeven  Ltd.,Services,545.51,5/24/2024
Claeven  Ltd.,Materials,2027.84,5/24/2024
Claeven  Ltd.,Services,1091.02,6/6/2024
Claeven  Ltd.,Services,389.65,6/6/2024
Claeven  Ltd.,Services,1870.32,6/7/2024
Claeven  Ltd.,Services,389.65,6/10/2024
Claeven  Ltd.,Services,647.46,6/13/2024
Claeven  Ltd.,Services,1402.74,6/13/2024
Claeven  Ltd.,Services,209.77,6/13/2024
Claeven  Ltd.,Services,839.81,6/14/2024
Claeven  Ltd.,Services,95.35,6/14/2024
Claeven  Ltd.,Services,545.51,6/24/2024
Claeven  Ltd.,Services,545.51,6/26/2024
Clarity Partners  Llc,Capital Purchases,8811.25,1/11/2024
Clarity Partners  Llc,Services,2283.32,1/11/2024
Clarity Partners  Llc,Capital Purchases,13370,2/2/2024
Clarity Partners  Llc,Services,1752.83,2/2/2024
Clarity Partners  Llc,Services,8017.5,2/20/2024
Clarity Partners  Llc,Services,2121.1,2/20/2024
Clarity Partners  Llc,Capital Purchases,23450,2/20/2024
Clarity Partners  Llc,Services,682.33,2/20/2024
Clarity Partners  Llc,Capital Purchases,38011.83,5/29/2024
Clarity Partners  Llc,Services,54020.08,5/29/2024
Clarity Partners  Llc,Services,20379.83,6/5/2024
Clarity Partners  Llc,Capital Purchases,9065,6/5/2024
Clarity Partners  Llc,Services,1584.83,6/24/2024
Clarity Partners  Llc,Capital Purchases,17998.75,6/27/2024
Clark Catering Inc,Services,3146.5,2/20/2024
Clark Catering Inc,Services,3494.5,3/4/2024
Clark Catering Inc,Services,677.5,3/4/2024
Clark Catering Inc,Services,995,3/4/2024
Clark Catering Inc,Services,373.3,3/5/2024
Clark Catering Inc,Services,3354.5,3/5/2024
Clark Catering Inc,Services,807.5,5/13/2024
Clark Catering Inc,Services,191.5,5/13/2024
Clark Catering Inc,Services,4121.75,5/13/2024
Clark Catering Inc,Services,3172,5/30/2024
Clark Catering Inc,Services,405,5/30/2024
Clark Catering Inc,Services,2422,5/30/2024
Clark Catering Inc,Services,2389,5/30/2024
Clark Catering Inc,Services,4929.25,6/1/2024
Clark Catering Inc,Services,3196.25,7/1/2024
Clark Industrial Power,Materials,2700,3/5/2024
Claybourne Miller,Services,41.92,1/17/2024
Claybourne Miller,Services,42.88,6/11/2024
Cle Shaw,Services,3,5/15/2024
Cle Shaw,Services,46.43,5/15/2024
Cleaning Specialist  Inc.,Services,17531.68,1/10/2024
Cleaning Specialist  Inc.,Services,4905.68,2/14/2024
Cleaning Specialist  Inc.,Capital Purchases,4750,2/15/2024
Cleaning Specialist  Inc.,Services,5671.31,4/8/2024
Cleaning Specialist  Inc.,Services,3121.7,5/13/2024
Cleaning Specialist  Inc.,Services,1202.75,5/24/2024
Cleaning Specialist  Inc.,Services,11215.76,6/7/2024
Cleaning Specialist  Inc.,Capital Purchases,4750,6/11/2024
Cleveland Punch & Die,Materials,51,2/15/2024
Cleveland Punch & Die,Services,20.08,2/15/2024
Clever Devices Ltd.,Services,719793,3/26/2024
Clever Devices Ltd.,Services,185298.91,5/3/2024
CLINE AVENUE BRIDGE,Services,7.9,6/27/2024
"Clutch Solutions, LLC",Materials,1375.74,1/10/2024
"Clutch Solutions, LLC",Capital Purchases,103700,1/10/2024
"Clutch Solutions, LLC",Materials,3600,1/10/2024
"Clutch Solutions, LLC",Capital Purchases,53430.5,1/11/2024
"Clutch Solutions, LLC",Capital Purchases,2914.82,1/16/2024
"Clutch Solutions, LLC",Materials,3948.28,1/16/2024
"Clutch Solutions, LLC",Capital Purchases,10820.88,1/24/2024
"Clutch Solutions, LLC",Capital Purchases,65319.8,2/14/2024
"Clutch Solutions, LLC",Materials,9951.48,2/14/2024
"Clutch Solutions, LLC",Capital Purchases,5030.3,2/15/2024
"Clutch Solutions, LLC",Materials,7785.58,2/15/2024
"Clutch Solutions, LLC",Materials,4981.8,2/21/2024
"Clutch Solutions, LLC",Materials,5829.64,2/27/2024
"Clutch Solutions, LLC",Capital Purchases,28969.92,2/28/2024
"Clutch Solutions, LLC",Capital Purchases,9053.1,3/1/2024
"Clutch Solutions, LLC",Materials,11092.79,3/1/2024
"Clutch Solutions, LLC",Services,2674.25,3/1/2024
"Clutch Solutions, LLC",Capital Purchases,125898,3/11/2024
"Clutch Solutions, LLC",Capital Purchases,41470.9,3/14/2024
"Clutch Solutions, LLC",Capital Purchases,12968,3/18/2024
"Clutch Solutions, LLC",Capital Purchases,1950,3/18/2024
"Clutch Solutions, LLC",Materials,31747.2,3/19/2024
"Clutch Solutions, LLC",Materials,10811.44,3/25/2024
"Clutch Solutions, LLC",Materials,3892.79,3/26/2024
"Clutch Solutions, LLC",Capital Purchases,2914.82,3/26/2024
"Clutch Solutions, LLC",Materials,11510.99,4/16/2024
"Clutch Solutions, LLC",Capital Purchases,21723.08,4/16/2024
"Clutch Solutions, LLC",Capital Purchases,2761.9,4/17/2024
"Clutch Solutions, LLC",Capital Purchases,308,4/18/2024
"Clutch Solutions, LLC",Capital Purchases,1729.02,4/23/2024
"Clutch Solutions, LLC",Materials,2393.6,4/23/2024
"Clutch Solutions, LLC",Capital Purchases,14434.75,5/1/2024
"Clutch Solutions, LLC",Materials,7200,5/1/2024
"Clutch Solutions, LLC",Capital Purchases,736,5/3/2024
"Clutch Solutions, LLC",Materials,23169.82,5/22/2024
"Clutch Solutions, LLC",Capital Purchases,241879.94,5/22/2024
"Clutch Solutions, LLC",Capital Purchases,45265.5,6/4/2024
"Clutch Solutions, LLC",Capital Purchases,131018.5,6/5/2024
"Clutch Solutions, LLC",Capital Purchases,51188.93,6/24/2024
"Clutch Solutions, LLC",Capital Purchases,6962.2,6/27/2024
Cmp Corp.,Services,31.63,5/6/2024
Cmp Corp.,Materials,2704.8,5/6/2024
Cmp Corp.,Services,25.25,5/6/2024
Cmp Corp.,Materials,1131.6,5/6/2024
Cmp Corp.,Services,1242.28,5/16/2024
Cmp Corp.,Materials,21437.59,5/16/2024
Cogent Communications Inc.,Utilities,1662.29,1/2/2024
Cogent Communications Inc.,Utilities,1662.29,1/9/2024
Cogent Communications Inc.,Utilities,1662.29,1/18/2024
Cogent Communications Inc.,Utilities,1663.55,2/14/2024
Cogent Communications Inc.,Utilities,3327.1,3/12/2024
Cogent Communications Inc.,Utilities,1640.91,6/26/2024
Cohnreznick Llp,Services,29559.5,2/9/2024
Cohnreznick Llp,Services,5005,3/12/2024
Colleen F Ocon,Services,14.41,1/11/2024
Colleen F Ocon,Services,14.74,4/18/2024
Collins Engineers  Inc.,Capital Purchases,11000,1/2/2024
Collins Engineers  Inc.,Capital Purchases,12500,5/13/2024
Columbia Pipe & Supply,Materials,2680.63,1/11/2024
Columbia Pipe & Supply,Materials,1008.09,1/12/2024
Columbia Pipe & Supply,Materials,12435.82,1/12/2024
Columbia Pipe & Supply,Materials,6887.47,1/18/2024
Columbia Pipe & Supply,Materials,216.19,1/26/2024
Columbia Pipe & Supply,Materials,5514.4,2/1/2024
Columbia Pipe & Supply,Materials,35.32,2/6/2024
Columbia Pipe & Supply,Materials,72.06,2/9/2024
Columbia Pipe & Supply,Materials,2423.4,2/15/2024
Columbia Pipe & Supply,Materials,992.48,2/15/2024
Columbia Pipe & Supply,Materials,9197.05,2/15/2024
Columbia Pipe & Supply,Materials,7095.45,2/20/2024
Columbia Pipe & Supply,Materials,1747.84,2/21/2024
Columbia Pipe & Supply,Materials,2060.12,3/4/2024
Columbia Pipe & Supply,Materials,894.82,3/4/2024
Columbia Pipe & Supply,Materials,1565.52,3/7/2024
Columbia Pipe & Supply,Materials,399.94,3/12/2024
Columbia Pipe & Supply,Materials,12438.79,3/26/2024
Columbia Pipe & Supply,Materials,8785.77,4/4/2024
Columbia Pipe & Supply,Materials,138,5/15/2024
Columbia Pipe & Supply,Materials,9689.81,6/3/2024
Columbia Pipe & Supply,Materials,1952.44,6/4/2024
Columbia Pipe & Supply,Materials,3871.29,6/4/2024
Columbia Pipe & Supply,Materials,6127.2,6/5/2024
Columbia Pipe & Supply,Materials,75.19,6/5/2024
Columbia Pipe & Supply,Materials,2129.6,6/6/2024
Columbia Pipe & Supply,Materials,3883.8,6/19/2024
Columbia Pipe & Supply,Materials,2761.58,6/19/2024
Columbia Pipe & Supply,Services,750,6/19/2024
Columbia Pipe & Supply,Materials,3887.46,6/24/2024
Comcast,Utilities,5283.23,1/11/2024
Comcast,Utilities,163.12,1/11/2024
Comcast,Utilities,1490.14,1/11/2024
Comcast,Utilities,189.59,1/30/2024
Comcast,Utilities,5353.41,2/7/2024
Comcast,Utilities,1509.94,2/7/2024
Comcast,Utilities,179.59,3/4/2024
Comcast,Utilities,5353.41,3/14/2024
Comcast,Utilities,1509.94,3/14/2024
Comcast,Utilities,179.59,4/2/2024
Comcast,Utilities,1509.94,4/8/2024
Comcast,Utilities,5353.41,4/8/2024
Comcast,Utilities,179.59,5/1/2024
Comcast,Utilities,34.62,6/26/2024
Comcast Business,Utilities,29308.5,1/11/2024
Comcast Business,Utilities,43962.75,1/11/2024
Comcast Business,Utilities,29331.25,1/30/2024
Comcast Business,Utilities,43996.87,1/30/2024
Comcast Business,Utilities,44656.31,3/4/2024
Comcast Business,Utilities,29770.88,3/4/2024
Comcast Business,Utilities,43996.87,4/2/2024
Comcast Business,Utilities,29331.25,4/2/2024
Comcast Business,Utilities,43735.97,4/30/2024
Comcast Business,Utilities,29157.31,4/30/2024
Commercial Group Lifting Products,Services,330,1/12/2024
Commercial Group Lifting Products,Materials,3281.52,1/16/2024
Commercial Tire Service,Services,197,1/12/2024
Commercial Tire Service,Materials,856.3,1/12/2024
Commercial Tire Service,Materials,640.08,2/12/2024
Commercial Tire Service,Services,96,2/12/2024
Commercial Tire Service,Materials,1565.4,2/20/2024
Commercial Tire Service,Services,240,2/20/2024
Commercial Tire Service,Materials,347.44,2/20/2024
Commercial Tire Service,Services,96,2/20/2024
Commercial Tire Service,Materials,616.88,4/17/2024
Commercial Tire Service,Materials,361,4/17/2024
Commercial Tire Service,Services,96,4/17/2024
Commercial Tire Service,Services,231.5,4/17/2024
Commercial Tire Service,Materials,622,6/13/2024
Commercial Tire Service,Services,315,6/13/2024
Commonwealth Edison,Utilities,263.65,1/2/2024
Commonwealth Edison,Utilities,126.85,1/2/2024
Commonwealth Edison,Utilities,94.93,1/2/2024
Commonwealth Edison,Utilities,186.54,1/4/2024
Commonwealth Edison,Utilities,302932.86,1/11/2024
Commonwealth Edison,Utilities,89.13,1/12/2024
Commonwealth Edison,Utilities,987.38,1/12/2024
Commonwealth Edison,Utilities,270.01,1/12/2024
Commonwealth Edison,Utilities,45.55,1/12/2024
Commonwealth Edison,Utilities,381.47,1/12/2024
Commonwealth Edison,Utilities,355.34,1/12/2024
Commonwealth Edison,Utilities,936.25,1/16/2024
Commonwealth Edison,Utilities,226.1,1/16/2024
Commonwealth Edison,Utilities,79.92,1/16/2024
Commonwealth Edison,Utilities,27.1,1/16/2024
Commonwealth Edison,Utilities,179.3,1/16/2024
Commonwealth Edison,Utilities,112.01,1/16/2024
Commonwealth Edison,Utilities,71.42,1/16/2024
Commonwealth Edison,Utilities,62.06,1/16/2024
Commonwealth Edison,Utilities,69.88,1/16/2024
Commonwealth Edison,Utilities,560.92,1/26/2024
Commonwealth Edison,Utilities,1425.61,1/26/2024
Commonwealth Edison,Utilities,25.35,1/26/2024
Commonwealth Edison,Utilities,480.67,1/26/2024
Commonwealth Edison,Utilities,35.48,1/26/2024
Commonwealth Edison,Utilities,3894.1,2/1/2024
Commonwealth Edison,Utilities,3550.41,2/1/2024
Commonwealth Edison,Utilities,51.52,2/1/2024
Commonwealth Edison,Utilities,300.86,2/1/2024
Commonwealth Edison,Utilities,254.43,2/1/2024
Commonwealth Edison,Utilities,28.98,2/1/2024
Commonwealth Edison,Utilities,282.35,2/1/2024
Commonwealth Edison,Utilities,375.16,2/9/2024
Commonwealth Edison,Utilities,404.49,2/9/2024
Commonwealth Edison,Utilities,801.58,2/9/2024
Commonwealth Edison,Utilities,921.46,2/9/2024
Commonwealth Edison,Utilities,2253.43,2/9/2024
Commonwealth Edison,Utilities,25.02,2/9/2024
Commonwealth Edison,Utilities,225.55,2/9/2024
Commonwealth Edison,Utilities,74.24,2/9/2024
Commonwealth Edison,Utilities,354.88,2/9/2024
Commonwealth Edison,Utilities,84.32,2/9/2024
Commonwealth Edison,Utilities,25.33,2/9/2024
Commonwealth Edison,Utilities,83.19,2/9/2024
Commonwealth Edison,Utilities,1273.62,2/9/2024
Commonwealth Edison,Utilities,389190.1,2/12/2024
Commonwealth Edison,Utilities,87.76,2/13/2024
Commonwealth Edison,Utilities,438.07,2/13/2024
Commonwealth Edison,Utilities,210.45,2/13/2024
Commonwealth Edison,Utilities,687.95,2/27/2024
Commonwealth Edison,Utilities,1809.44,2/27/2024
Commonwealth Edison,Utilities,25.37,2/27/2024
Commonwealth Edison,Utilities,731.23,2/27/2024
Commonwealth Edison,Utilities,35.4,2/27/2024
Commonwealth Edison,Utilities,25,2/27/2024
Commonwealth Edison,Utilities,166792.44,3/1/2024
Commonwealth Edison,Utilities,152509.06,3/1/2024
Commonwealth Edison,Utilities,142909.08,3/1/2024
Commonwealth Edison,Utilities,1381.77,3/4/2024
Commonwealth Edison,Utilities,25.02,3/4/2024
Commonwealth Edison,Utilities,207.24,3/7/2024
Commonwealth Edison,Utilities,1760.85,3/7/2024
Commonwealth Edison,Utilities,98.94,3/7/2024
Commonwealth Edison,Utilities,302.29,3/7/2024
Commonwealth Edison,Utilities,3960.23,3/7/2024
Commonwealth Edison,Utilities,339.52,3/18/2024
Commonwealth Edison,Utilities,377.99,3/18/2024
Commonwealth Edison,Utilities,1317.96,3/20/2024
Commonwealth Edison,Utilities,46.29,3/20/2024
Commonwealth Edison,Utilities,715.86,3/20/2024
Commonwealth Edison,Utilities,266.49,3/20/2024
Commonwealth Edison,Utilities,81.14,3/20/2024
Commonwealth Edison,Utilities,389.03,3/20/2024
Commonwealth Edison,Utilities,25.33,3/20/2024
Commonwealth Edison,Utilities,64.95,3/20/2024
Commonwealth Edison,Utilities,25.02,3/20/2024
Commonwealth Edison,Utilities,71.65,3/20/2024
Commonwealth Edison,Utilities,1061.85,4/1/2024
Commonwealth Edison,Utilities,482.7,4/1/2024
Commonwealth Edison,Utilities,25.02,4/1/2024
Commonwealth Edison,Utilities,1009.08,4/1/2024
Commonwealth Edison,Utilities,590.62,4/1/2024
Commonwealth Edison,Utilities,64.3,4/1/2024
Commonwealth Edison,Utilities,25.37,4/1/2024
Commonwealth Edison,Utilities,1322.42,4/8/2024
Commonwealth Edison,Utilities,2892.42,4/8/2024
Commonwealth Edison,Utilities,133.95,4/8/2024
Commonwealth Edison,Utilities,201.04,4/8/2024
Commonwealth Edison,Utilities,195.79,4/8/2024
Commonwealth Edison,Utilities,34.1,4/8/2024
Commonwealth Edison,Utilities,347604.88,4/15/2024
Commonwealth Edison,Utilities,159884.83,4/22/2024
Commonwealth Edison,Utilities,186756.44,4/22/2024
Commonwealth Edison,Utilities,210907.49,4/22/2024
Commonwealth Edison,Utilities,247.85,4/23/2024
Commonwealth Edison,Utilities,279693.36,4/23/2024
Commonwealth Edison,Utilities,968.17,4/23/2024
Commonwealth Edison,Utilities,251.43,4/23/2024
Commonwealth Edison,Utilities,25.33,4/23/2024
Commonwealth Edison,Utilities,328.22,4/23/2024
Commonwealth Edison,Utilities,257.22,4/23/2024
Commonwealth Edison,Utilities,72.57,4/23/2024
Commonwealth Edison,Utilities,56.45,4/23/2024
Commonwealth Edison,Utilities,138.31,4/24/2024
Commonwealth Edison,Utilities,200.5,4/24/2024
Commonwealth Edison,Utilities,170.09,4/24/2024
Commonwealth Edison,Utilities,25.02,4/24/2024
Commonwealth Edison,Utilities,63.68,4/24/2024
Commonwealth Edison,Utilities,964.89,5/1/2024
Commonwealth Edison,Utilities,562.84,5/1/2024
Commonwealth Edison,Utilities,660.4,5/1/2024
Commonwealth Edison,Utilities,25.02,5/1/2024
Commonwealth Edison,Utilities,504.7,5/1/2024
Commonwealth Edison,Utilities,25.37,5/1/2024
Commonwealth Edison,Utilities,63.35,5/1/2024
Commonwealth Edison,Utilities,35.64,5/2/2024
Commonwealth Edison,Utilities,171.04,5/2/2024
Commonwealth Edison,Utilities,1369.37,5/2/2024
Commonwealth Edison,Utilities,3343.43,5/2/2024
Commonwealth Edison,Utilities,117.76,5/7/2024
Commonwealth Edison,Utilities,72.17,5/7/2024
Commonwealth Edison,Utilities,26.24,5/9/2024
Commonwealth Edison,Utilities,927.85,5/22/2024
Commonwealth Edison,Utilities,50.2,5/22/2024
Commonwealth Edison,Utilities,242.36,5/22/2024
Commonwealth Edison,Utilities,55.64,5/22/2024
Commonwealth Edison,Utilities,731.48,5/22/2024
Commonwealth Edison,Utilities,37.46,5/22/2024
Commonwealth Edison,Utilities,105.72,5/22/2024
Commonwealth Edison,Utilities,185.42,6/1/2024
Commonwealth Edison,Utilities,52.79,6/1/2024
Commonwealth Edison,Utilities,59.44,6/1/2024
Commonwealth Edison,Utilities,186.94,6/1/2024
Commonwealth Edison,Utilities,154.23,6/1/2024
Commonwealth Edison,Utilities,25.92,6/1/2024
Commonwealth Edison,Utilities,123.41,6/1/2024
Commonwealth Edison,Utilities,45.48,6/1/2024
Commonwealth Edison,Utilities,53.11,6/1/2024
Commonwealth Edison,Utilities,506,6/3/2024
Commonwealth Edison,Utilities,218.59,6/3/2024
Commonwealth Edison,Utilities,26.28,6/3/2024
Commonwealth Edison,Utilities,241.35,6/3/2024
Commonwealth Edison,Utilities,27.67,6/3/2024
Commonwealth Edison,Utilities,927.62,6/5/2024
Commonwealth Edison,Utilities,4225.77,6/5/2024
Commonwealth Edison,Utilities,25.92,6/5/2024
Commonwealth Edison,Utilities,341.33,6/17/2024
Commonwealth Edison,Utilities,624.71,6/17/2024
Commonwealth Edison,Utilities,129.09,6/17/2024
Commonwealth Edison,Utilities,122.33,6/17/2024
Commonwealth Edison,Utilities,34.95,6/17/2024
Commonwealth Edison,Utilities,25.89,6/17/2024
Commonwealth Edison,Utilities,2.71,6/17/2024
Commonwealth Edison,Utilities,95.07,6/17/2024
Commonwealth Edison,Utilities,97.68,6/17/2024
Commonwealth Edison,Utilities,450.9,7/1/2024
Commonwealth Edison,Utilities,201.65,7/1/2024
Commonwealth Edison,Utilities,183.42,7/1/2024
Commonwealth Edison,Utilities,169.25,7/1/2024
Commonwealth Edison,Utilities,208.47,7/1/2024
Commonwealth Edison,Utilities,55.16,7/1/2024
Commonwealth Edison,Utilities,44.89,7/1/2024
Commonwealth Edison,Utilities,44.71,7/1/2024
Commonwealth Edison Co.,Capital Purchases,2284.8,5/16/2024
Commonwealth Edison Co.,Capital Purchases,11581,6/1/2024
Commonwealth Edison Co.,Capital Purchases,11424,7/1/2024
Communications Direct Inc.,Capital Purchases,86250,2/13/2024
Communications Direct Inc.,Capital Purchases,17400,4/10/2024
Commuter Rail Coalition,Services,31500,3/28/2024
"COMPIN, INC.",Materials,44.77,3/18/2024
"COMPIN, INC.",Materials,1901.85,5/6/2024
"COMPIN, INC.",Materials,268.62,6/1/2024
"COMPIN, INC.",Materials,1256,6/17/2024
Comply365 LLC,Capital Purchases,107735,5/1/2024
Computer Aid  Inc.,Services,174129.6,1/10/2024
Computer Aid  Inc.,Services,184598.61,1/12/2024
Computer Aid  Inc.,Services,35043.31,1/24/2024
Computer Aid  Inc.,Services,217580.57,2/9/2024
Computer Aid  Inc.,Services,47900,3/4/2024
Computer Aid  Inc.,Services,187244.01,3/5/2024
Computer Aid  Inc.,Services,361399.25,4/30/2024
Computer Aid  Inc.,Services,11445.52,5/6/2024
Computer Aid  Inc.,Services,16703.7,6/5/2024
Comto,Services,500,5/8/2024
Conklin & Conklin LLC,Claims & Insurance,12236.64,2/14/2024
Conklin & Conklin LLC,Claims & Insurance,2218.5,2/14/2024
Conklin & Conklin LLC,Claims & Insurance,2043,2/20/2024
Conklin & Conklin LLC,Claims & Insurance,81257,2/20/2024
Conklin & Conklin LLC,Claims & Insurance,662,4/4/2024
Conklin & Conklin LLC,Claims & Insurance,26561,4/4/2024
Conklin & Conklin LLC,Claims & Insurance,1550,5/24/2024
Conklin & Conklin LLC,Claims & Insurance,25295.4,5/24/2024
Connie Coffin,Services,54.94,4/16/2024
Connie Coffin,Services,2.35,4/16/2024
Construction Inc.,Capital Purchases,115491,5/1/2024
Cook County Sheriffs Police Finance Dept. Rm 106,Services,260701.02,2/1/2024
Cook County Sheriffs Police Finance Dept. Rm 106,Services,260701.02,4/11/2024
Cook County Sheriff's Police Training Academy,Services,3250,6/19/2024
Corey Brown,Services,172.92,1/12/2024
Cornell D. Smith,Services,5250,5/9/2024
Corner Bakery,Services,65.5,2/15/2024
Corner Bakery,Services,675,2/15/2024
Corner Bakery,Services,20,6/24/2024
Corner Bakery,Services,1504.8,6/24/2024
Corys Inc.,Services,7130,1/9/2024
Corys Inc.,Services,7130,2/14/2024
Corys Inc.,Services,14260,3/5/2024
Corys Inc.,Services,7130,4/17/2024
Corys Inc.,Services,7130,5/6/2024
Corys Inc.,Services,7130,6/5/2024
Corys Inc.,Services,75033,6/7/2024
Courtney Aubrecht,Services,4.5,1/11/2024
Courtney Aubrecht,Services,76.77,1/11/2024
Courtney Aubrecht,Services,27.59,2/22/2024
Courtney Aubrecht,Services,842.16,2/22/2024
Courtney Aubrecht,Services,74.47,2/22/2024
Courtney Aubrecht,Services,30,5/23/2024
Courtney Aubrecht,Services,26.53,5/23/2024
COVERT MEDIA CONSULTING LLC,Services,325,2/22/2024
COVERT MEDIA CONSULTING LLC,Services,375,4/9/2024
COVERT MEDIA CONSULTING LLC,Services,375,4/11/2024
"CPS Chicago Parking , LLC",,205035.69,2/20/2024
"CR Quality Services, Inc.",Capital Purchases,1032.62,3/28/2024
"CR Quality Services, Inc.",Capital Purchases,333.37,3/28/2024
"CR Quality Services, Inc.",Capital Purchases,927.47,4/1/2024
"CR Quality Services, Inc.",Capital Purchases,311.97,4/1/2024
"CR Quality Services, Inc.",Capital Purchases,1159.39,4/5/2024
"CR Quality Services, Inc.",Capital Purchases,760.71,4/8/2024
"CR Quality Services, Inc.",Services,2082.02,4/8/2024
"CR Quality Services, Inc.",Capital Purchases,2155.35,4/16/2024
"CR Quality Services, Inc.",Capital Purchases,547.58,4/16/2024
"CR Quality Services, Inc.",Capital Purchases,494.89,4/16/2024
"CR Quality Services, Inc.",Services,429.44,4/23/2024
"CR Quality Services, Inc.",Services,429.49,4/23/2024
"CR Quality Services, Inc.",Services,429.48,4/23/2024
"CR Quality Services, Inc.",Services,1404.54,6/10/2024
Cranemasters Inc.,Services,1005,3/5/2024
Creative Promotional Products,Services,1582.91,4/29/2024
Creative Safety Supply LLC,Services,14.48,3/4/2024
Creative Safety Supply LLC,Materials,614.95,3/4/2024
"CRISIS CONSULTANT GROUP, LLC",Services,4000,6/17/2024
CRISTINA DIAZ MUNOZ,,16.14,3/27/2024
Critical Reach,Services,1395,3/19/2024
Crowe LLP,Capital Purchases,11738.14,2/14/2024
Crowe LLP,Capital Purchases,32526.11,3/11/2024
Crowe LLP,Services,2317.5,3/11/2024
Crowe LLP,Services,347.32,3/12/2024
Crowe LLP,Services,60375,3/12/2024
Crowe LLP,Capital Purchases,20231.79,3/14/2024
Crowe LLP,Capital Purchases,11796.08,3/14/2024
Crowe LLP,Services,695.25,5/1/2024
Crowe LLP,Capital Purchases,22085.78,5/1/2024
Crowe LLP,Capital Purchases,17043.36,6/5/2024
Crowe LLP,Capital Purchases,42851.08,6/24/2024
Crown Battery Mfg. Co.,Materials,2550,1/1/2024
Crown Battery Mfg. Co.,Materials,525,1/12/2024
Crown Battery Mfg. Co.,Materials,2550,2/14/2024
Crown Battery Mfg. Co.,Materials,218968,3/4/2024
Crown Battery Mfg. Co.,Materials,415,3/26/2024
Crown Battery Mfg. Co.,Materials,9640,5/24/2024
Crown Battery Mfg. Co.,Materials,368.4,5/24/2024
Crown Battery Mfg. Co.,Materials,336,6/4/2024
Crown Battery Mfg. Co.,Materials,9640,6/17/2024
Csx Transportation Inc.,Capital Purchases,466692.19,1/2/2024
Csx Transportation Inc.,Rental Expense,9506.09,2/1/2024
Csx Transportation Inc.,Capital Purchases,55309.89,2/8/2024
Csx Transportation Inc.,Capital Purchases,249162.71,4/4/2024
Csx Transportation Inc.,Capital Purchases,769333.82,6/1/2024
Cubic-Transportation Systems  Inc.,Services,77647.49,1/26/2024
Cubic-Transportation Systems  Inc.,Services,327720.87,1/26/2024
Cubic-Transportation Systems  Inc.,Services,309006.17,2/9/2024
Cubic-Transportation Systems  Inc.,Services,70038.74,2/9/2024
Cubic-Transportation Systems  Inc.,Services,316583.39,2/20/2024
Cubic-Transportation Systems  Inc.,Services,144654.74,2/20/2024
Cubic-Transportation Systems  Inc.,Services,307611.71,4/3/2024
Cubic-Transportation Systems  Inc.,Services,213877.14,4/3/2024
Cubic-Transportation Systems  Inc.,Services,345150.03,5/6/2024
Cubic-Transportation Systems  Inc.,Services,197412.66,5/6/2024
Cummins Allison Corp.,Services,1144.1,6/14/2024
"Custom Glass Solutions Trumbauersville, LLC",Materials,372.6,1/8/2024
"Custom Glass Solutions Trumbauersville, LLC",Materials,6026.2,2/14/2024
"Custom Glass Solutions Trumbauersville, LLC",Materials,2610,2/20/2024
"Custom Glass Solutions Trumbauersville, LLC",Materials,704.4,2/23/2024
"Custom Glass Solutions Trumbauersville, LLC",Materials,4000,4/17/2024
"Custom Glass Solutions Trumbauersville, LLC",Materials,18572.05,5/6/2024
"Custom Glass Solutions Trumbauersville, LLC",Materials,10000,5/6/2024
"Custom Glass Solutions Trumbauersville, LLC",Materials,6000,5/29/2024
"Custom Glass Solutions Trumbauersville, LLC",Materials,1740,5/31/2024
"Custom Glass Solutions Trumbauersville, LLC",Materials,2000,6/4/2024
"Custom Glass Solutions Trumbauersville, LLC",Materials,1506.55,6/10/2024
"Custom Glass Solutions Trumbauersville, LLC",Materials,1692.85,6/11/2024
Cwi Inc,Materials,3897,5/24/2024
Cwi Inc,Services,75,5/24/2024
Cynthia Ochoa,Services,1261,1/2/2024
Cynthia Ochoa,Services,805.5,5/28/2024
Dacra Adjudication Systems LLC dba Dacra Tech LLC,Services,2250,1/1/2024
Dacra Adjudication Systems LLC dba Dacra Tech LLC,Services,4500,2/1/2024
Dacra Adjudication Systems LLC dba Dacra Tech LLC,Services,2250,3/7/2024
Dacra Adjudication Systems LLC dba Dacra Tech LLC,Services,4500,5/3/2024
Dacra Adjudication Systems LLC dba Dacra Tech LLC,Services,2500,6/24/2024
DAIDA,Services,5861.51,3/19/2024
Damaso Munoz,Services,310.5,4/22/2024
Damaso Munoz,Services,713.32,4/22/2024
Damaso Munoz,Services,34.21,4/22/2024
Dan McNeill,Services,254.56,6/6/2024
Dan McNeill,Services,911.88,6/6/2024
Dan McNeill,Services,333,6/6/2024
D'ANDRA STEPHENSON,Services,60.26,1/2/2024
D'ANDRA STEPHENSON,Services,61.64,1/23/2024
D'ANDRA STEPHENSON,Services,40.2,2/5/2024
D'ANDRA STEPHENSON,Services,40.2,3/28/2024
D'ANDRA STEPHENSON,Services,40.2,4/10/2024
D'ANDRA STEPHENSON,Services,134,4/16/2024
D'ANDRA STEPHENSON,Services,286.76,4/25/2024
D'ANDRA STEPHENSON,Services,80.4,5/21/2024
D'ANDRA STEPHENSON,Services,120.6,6/18/2024
Danella Rental Systems Inc.,Rental Expense,6750,1/22/2024
Danella Rental Systems Inc.,Rental Expense,22701.5,1/22/2024
Danella Rental Systems Inc.,Rental Expense,33111.87,1/22/2024
Danella Rental Systems Inc.,Rental Expense,369.39,2/9/2024
Danella Rental Systems Inc.,Rental Expense,4144.66,2/9/2024
Danella Rental Systems Inc.,Rental Expense,30260,2/12/2024
Danella Rental Systems Inc.,Rental Expense,24246.72,2/12/2024
Danella Rental Systems Inc.,Rental Expense,6750,2/12/2024
Danella Rental Systems Inc.,Rental Expense,3510,3/26/2024
Danella Rental Systems Inc.,Rental Expense,22695,3/26/2024
Danella Rental Systems Inc.,Rental Expense,7565,3/27/2024
Danella Rental Systems Inc.,Rental Expense,19350,3/27/2024
Danella Rental Systems Inc.,Rental Expense,6750,3/27/2024
Danella Rental Systems Inc.,Rental Expense,14187.51,4/1/2024
Danella Rental Systems Inc.,Rental Expense,11270.56,4/11/2024
Danella Rental Systems Inc.,Rental Expense,6680.77,4/11/2024
Danella Rental Systems Inc.,Rental Expense,7565,4/19/2024
Danella Rental Systems Inc.,Rental Expense,5706.69,4/19/2024
Danella Rental Systems Inc.,Rental Expense,15130,4/19/2024
Danella Rental Systems Inc.,Rental Expense,2340,4/22/2024
Danella Rental Systems Inc.,Rental Expense,12015,4/22/2024
Danella Rental Systems Inc.,Rental Expense,6750,4/22/2024
Danella Rental Systems Inc.,Rental Expense,1345,5/1/2024
Danella Rental Systems Inc.,Rental Expense,6750,5/13/2024
Danella Rental Systems Inc.,Rental Expense,2340,5/13/2024
Danella Rental Systems Inc.,Rental Expense,15130,5/13/2024
Danella Rental Systems Inc.,Rental Expense,7565,5/14/2024
Danella Rental Systems Inc.,Rental Expense,2690,5/14/2024
Danella Rental Systems Inc.,Rental Expense,13010,5/14/2024
Danella Rental Systems Inc.,Rental Expense,7565,5/17/2024
Danella Rental Systems Inc.,Rental Expense,6750,6/7/2024
Danella Rental Systems Inc.,Rental Expense,10145,6/7/2024
Danella Rental Systems Inc.,Rental Expense,22695,6/7/2024
Danella Rental Systems Inc.,Rental Expense,7565,6/10/2024
Danella Rental Systems Inc.,Rental Expense,6550,6/10/2024
Danella Rental Systems Inc.,Rental Expense,3685,7/1/2024
Daniel G O'Shea,Services,459.89,5/14/2024
Daniel G O'Shea,Services,160,5/14/2024
Daniel Gallacher,Services,42.88,5/14/2024
Daniel Heer,Services,141.44,3/12/2024
Daniel Heer,Services,8.5,3/12/2024
Daniel Heer,Services,184.92,5/15/2024
Daniel Hernandez,Services,131,1/2/2024
Daniel Ortega,Services,96.94,1/2/2024
Daniel Ortega,Services,132.74,1/23/2024
Daniel Ortega,Services,176.88,2/22/2024
Daniel Ortega,Services,105.86,3/14/2024
Daniel Ortega,Services,105.86,3/21/2024
Daniel Ortega,Services,77.72,4/16/2024
Daniel Ortega,Services,49.58,5/20/2024
Daniel Ortega,Services,198.32,6/4/2024
Daniel Ortega,Services,28.14,6/6/2024
Daniel Santiago,Services,261.3,1/23/2024
Daniel Vandermeer,Services,1700,1/4/2024
Daniel Vandermeer,Services,1785,1/9/2024
Daniel Vandermeer,Services,1530,2/9/2024
Daniel Vandermeer,Services,1020,3/8/2024
Daniel Vandermeer,Services,425,4/3/2024
Daniel Vandermeer,Services,1742.5,5/13/2024
Daniel Vandermeer,Services,1445,6/10/2024
Danny Zapata,Services,389.7,4/1/2024
Danny Zapata,Services,1154.75,4/1/2024
Danny Zapata,Services,983,4/1/2024
Danny Zapata,Services,407,4/1/2024
Danny Zapata,Services,1040.04,5/21/2024
Danny Zapata,Services,3011.93,5/21/2024
Danny Zapata,Services,448.5,5/21/2024
Danon Cameron,Services,40.2,1/12/2024
Danon Cameron,Services,13.4,1/22/2024
Danon Cameron,Services,61.64,1/22/2024
Danon Cameron,Services,40.2,1/30/2024
Danon Cameron,Services,40.2,2/8/2024
Danon Cameron,Services,16.08,2/15/2024
Danon Cameron,Services,61.64,2/23/2024
Danon Cameron,Services,16.08,2/23/2024
Danon Cameron,Services,40.2,2/27/2024
Danon Cameron,Services,40.2,3/5/2024
Danon Cameron,Services,40.2,3/14/2024
Danon Cameron,Services,40.2,3/26/2024
Danon Cameron,Services,40.2,5/7/2024
Danon Cameron,Services,80.4,5/30/2024
Danon Cameron,Services,40.2,6/4/2024
DARIEN STEELE,Services,134,2/20/2024
DARIEN STEELE,Services,99.16,3/18/2024
DARIEN STEELE,Services,49.58,3/18/2024
DARIEN STEELE,Services,77.72,4/10/2024
Darlynn Ball,Services,288.86,1/2/2024
Darlynn Ball,Services,251.52,1/12/2024
Darlynn Ball,Services,268,1/25/2024
Darlynn Ball,Services,264.65,2/8/2024
Darlynn Ball,Services,281.67,2/21/2024
Darlynn Ball,Services,263.98,3/14/2024
Darlynn Ball,Services,243.61,3/20/2024
Darlynn Ball,Services,292.12,4/5/2024
Darlynn Ball,Services,296.14,4/23/2024
Darlynn Ball,Services,218.42,5/15/2024
Darlynn Ball,Services,295,5/21/2024
Darlynn Ball,Services,294.53,6/7/2024
Darlynn Ball,Services,295.87,6/18/2024
Darnell Hart,Services,69.68,1/31/2024
Darnell Hart,Services,80.4,2/26/2024
Darnell Hart,Services,16.08,3/13/2024
Darnell Hart,Services,40.2,4/9/2024
Darnell Hart,Services,13.4,4/9/2024
Darnell Hart,Services,96.48,5/13/2024
DARRELL KING,Services,77.72,5/14/2024
DARRELL KING,Services,381.9,6/11/2024
David Booth,Services,75.98,1/11/2024
David Booth,Services,75.98,1/11/2024
David Booth,Services,75.98,1/17/2024
David Booth,Services,38.86,2/15/2024
David Booth,Services,49.58,2/15/2024
David Booth,Services,49.58,3/7/2024
David Booth,Services,38.86,3/7/2024
David Booth,Services,148.74,4/15/2024
David Booth,Services,205.02,5/7/2024
David Booth,Services,49.58,5/7/2024
David Booth,Services,138.02,5/30/2024
David Booth,Services,77.72,6/18/2024
DAVID J KING,Services,14.74,2/7/2024
DAVID J KING,Services,29.48,4/2/2024
DAVID J KING,Services,14.74,4/9/2024
DAVID J KING,Services,14.74,4/22/2024
David J. Kralik,Services,118.5,2/13/2024
David J. Kralik,Services,93.48,2/13/2024
David J. Kralik,Services,230.74,2/13/2024
David Krienke,Services,160,6/27/2024
David Krienke,Services,604.99,6/27/2024
David L. McQueen,Services,96.94,1/2/2024
David L. McQueen,Services,49.58,4/2/2024
David L. McQueen,Services,148.74,5/20/2024
David L. McQueen,Services,49.58,6/11/2024
David Lee,Services,563.52,3/12/2024
David Lee,Services,17.42,3/12/2024
David Lee,Services,197.5,3/12/2024
David Lee,Services,525,3/13/2024
David Lewis,Services,275,4/16/2024
David Lewis,Services,53.94,4/16/2024
David Lewis,Services,78.66,5/2/2024
David Lewis,Services,116.45,6/6/2024
David M Watkins,Services,47.84,5/16/2024
David M. Pedroza,Services,164.55,3/12/2024
David M. Pedroza,Services,20,4/18/2024
David M. Pedroza,Services,160,4/18/2024
David M. Pedroza,Services,276.5,4/18/2024
David M. Pedroza,Services,34.97,4/18/2024
David M. Pedroza,Services,921.75,4/18/2024
David M. Pedroza,Services,184.25,4/25/2024
David R. Mason,Services,47.3,5/14/2024
DAVID TORRES,Services,160.8,5/15/2024
DAVID TORRES,Services,42.88,5/15/2024
DAVID TORRES,Services,225.12,6/4/2024
David W. Opilka,Services,37.32,4/9/2024
David W. Opilka,Services,7.2,5/1/2024
David W. Opilka,Services,40.74,5/1/2024
Davis Bancorp,Services,1586,1/3/2024
Davis Bancorp,Services,788,1/3/2024
Davis Bancorp,Services,3214,1/3/2024
Davis Bancorp,Services,5255,1/3/2024
Davis Bancorp,Services,1472,1/22/2024
Davis Bancorp,Services,3100,1/22/2024
Davis Bancorp,Services,114,1/22/2024
Davis Bancorp,Services,788,1/22/2024
Davis Bancorp,Services,5369,1/22/2024
Davis Bancorp,Services,805,3/26/2024
Davis Bancorp,Services,3267,3/26/2024
Davis Bancorp,Services,1507,3/26/2024
Davis Bancorp,Services,117,3/26/2024
Davis Bancorp,Services,5363,3/26/2024
Davis Bancorp,Services,805,3/27/2024
Davis Bancorp,Services,5363,3/27/2024
Davis Bancorp,Services,3267,3/27/2024
Davis Bancorp,Services,1624,3/27/2024
Davis Bancorp,Services,950,4/17/2024
Davis Bancorp,Services,695,4/17/2024
Davis Bancorp,Services,695,4/17/2024
Davis Bancorp,Services,695,4/17/2024
Davis Bancorp,Services,695,4/17/2024
Davis Bancorp,Services,695,6/10/2024
Davis Bancorp,Services,695,6/10/2024
Davis Bancorp,Services,1645,6/10/2024
Davis Bancorp,Services,695,6/10/2024
"Davis Vision, Inc",Services,6980.8,1/5/2024
"Davis Vision, Inc",Services,6264.66,2/5/2024
"Davis Vision, Inc",Services,6235.06,3/4/2024
"Davis Vision, Inc",Services,6375.42,4/2/2024
"Davis Vision, Inc",Services,6614.28,5/14/2024
"Davis Vision, Inc",Services,6531.61,6/3/2024
Dawn Bruce,Services,184.97,5/15/2024
Dawn Bruce,Services,70.75,5/15/2024
Dayton-Phoenix Group  Inc.,Materials,139,3/22/2024
Dayton-Phoenix Group  Inc.,Services,13.97,3/22/2024
Dayton-Phoenix Group  Inc.,Capital Purchases,153458.48,3/27/2024
DB E.C.O. NORTH AMERICA INC,Claims & Insurance,11620,4/18/2024
DEANDRE NEELY,Services,55.02,1/17/2024
DEANDRE NEELY,Services,196.98,1/25/2024
DEANDRE NEELY,Services,49.58,2/21/2024
DEANDRE NEELY,Services,28.14,2/21/2024
DEANDRE NEELY,Services,112.56,3/12/2024
DEANDRE NEELY,Services,274.7,4/9/2024
DEANDRE NEELY,Services,24.79,5/7/2024
DEANDRE NEELY,Services,236.51,5/7/2024
Dell Marketing  L.P.,Services,1062,1/3/2024
Dell Marketing  L.P.,Services,11091.17,1/4/2024
Deloitte & Touche  Llp,Services,249000,6/1/2024
Delta Dental Plan Of Illinois,Services,74859.87,1/5/2024
Delta Dental Plan Of Illinois,Services,70587.82,2/5/2024
Delta Dental Plan Of Illinois,Services,57498.47,3/4/2024
Delta Dental Plan Of Illinois,Services,1293.24,4/2/2024
Delta Dental Plan Of Illinois,Services,121794,5/2/2024
Delta Dental Plan Of Illinois,Services,1308.52,6/3/2024
Delta Dental Plan Of Illinois,Services,79926.29,6/11/2024
Delta Industries Inc.,Services,1170.05,1/3/2024
Delta Industries Inc.,Services,4446.24,1/8/2024
Delta Industries Inc.,Services,559.29,1/8/2024
Delta Industries Inc.,Services,2909.39,2/1/2024
Delta Industries Inc.,Services,1698.21,2/21/2024
Delta Industries Inc.,Services,1003.39,3/11/2024
Delta Industries Inc.,Capital Purchases,180247.5,4/1/2024
Delta Industries Inc.,Services,571.06,4/1/2024
Delta Industries Inc.,Services,5752.94,5/15/2024
Delta Industries Inc.,Services,1845.04,5/17/2024
Delta Industries Inc.,Services,3586.68,5/17/2024
Delta Industries Inc.,Services,6582.57,6/5/2024
Delta Industries Inc.,Services,676.11,6/24/2024
Delta Sonic Car Wash System Inc,Services,736,1/3/2024
Delta Sonic Car Wash System Inc,Services,626.75,1/22/2024
Delta Sonic Car Wash System Inc,Services,425.5,2/1/2024
Delta Sonic Car Wash System Inc,Services,782,3/11/2024
Delta Sonic Car Wash System Inc,Services,759,4/22/2024
Delta Sonic Car Wash System Inc,Services,672.75,5/16/2024
Delta Sonic Car Wash System Inc,Services,667,6/5/2024
Delta Star Connector Co. C/O A Star Electric Co.,Materials,9961.9,2/21/2024
Delta Star Connector Co. C/O A Star Electric Co.,Services,115.06,2/21/2024
"Deltek, Inc.",Capital Purchases,56000,5/2/2024
"Deltek, Inc.",Services,11200,5/2/2024
Demoulin Brothers & Co.,Services,3412.11,1/3/2024
Demoulin Brothers & Co.,Services,22462.03,1/3/2024
Demoulin Brothers & Co.,Services,40404.93,1/3/2024
Demoulin Brothers & Co.,Services,4132.98,1/3/2024
Demoulin Brothers & Co.,Services,8097.3,1/4/2024
Demoulin Brothers & Co.,Services,3546.69,1/4/2024
Demoulin Brothers & Co.,Services,1494.31,1/4/2024
Demoulin Brothers & Co.,Services,2811.05,1/4/2024
Demoulin Brothers & Co.,Services,3700.97,2/12/2024
Demoulin Brothers & Co.,Services,8088.06,2/12/2024
Demoulin Brothers & Co.,Services,1275.15,2/12/2024
Demoulin Brothers & Co.,Services,2991.38,2/12/2024
Demoulin Brothers & Co.,Services,2015.86,2/12/2024
Demoulin Brothers & Co.,Services,1700.5,2/20/2024
Demoulin Brothers & Co.,Services,1567.85,2/20/2024
Demoulin Brothers & Co.,Services,3199.18,3/6/2024
Demoulin Brothers & Co.,Services,1275.92,3/6/2024
Demoulin Brothers & Co.,Services,3257.38,3/6/2024
Demoulin Brothers & Co.,Services,9556.05,3/6/2024
Demoulin Brothers & Co.,Services,5176.58,3/27/2024
Demoulin Brothers & Co.,Services,16175.96,4/1/2024
Demoulin Brothers & Co.,Services,11661.97,4/1/2024
Demoulin Brothers & Co.,Services,4836.07,4/1/2024
Demoulin Brothers & Co.,Services,11661.95,4/1/2024
Demoulin Brothers & Co.,Services,2101.42,4/1/2024
Demoulin Brothers & Co.,Services,3623.4,4/1/2024
Demoulin Brothers & Co.,Services,11451.35,4/1/2024
Demoulin Brothers & Co.,Services,4102.16,4/1/2024
Demoulin Brothers & Co.,Services,14882.02,4/1/2024
Demoulin Brothers & Co.,Services,3842.67,4/3/2024
Demoulin Brothers & Co.,Services,2392.77,4/3/2024
Demoulin Brothers & Co.,Services,2935.86,4/3/2024
Demoulin Brothers & Co.,Services,1322.36,4/3/2024
Demoulin Brothers & Co.,Services,1411.68,4/3/2024
Demoulin Brothers & Co.,Services,1570.75,4/17/2024
Demoulin Brothers & Co.,Services,1553.65,4/17/2024
Demoulin Brothers & Co.,Services,1519.06,4/17/2024
Demoulin Brothers & Co.,Services,1115.83,4/17/2024
Demoulin Brothers & Co.,Services,2457.97,4/17/2024
Demoulin Brothers & Co.,Services,5010.91,4/17/2024
Demoulin Brothers & Co.,Services,15017.34,5/3/2024
Demoulin Brothers & Co.,Services,4193.69,5/3/2024
Demoulin Brothers & Co.,Services,10192.34,5/3/2024
Demoulin Brothers & Co.,Services,7435.54,5/3/2024
Demoulin Brothers & Co.,Services,13146.15,5/3/2024
Demoulin Brothers & Co.,Services,3642.16,5/16/2024
Demoulin Brothers & Co.,Services,3497.74,5/16/2024
Demoulin Brothers & Co.,Services,4128.33,5/21/2024
Demoulin Brothers & Co.,Services,3834.57,5/21/2024
Demoulin Brothers & Co.,Services,11671.33,5/21/2024
Demoulin Brothers & Co.,Services,4628.14,5/21/2024
Demoulin Brothers & Co.,Services,1878.44,5/21/2024
Demoulin Brothers & Co.,Services,1672.04,5/28/2024
Demoulin Brothers & Co.,Services,801,5/28/2024
Demoulin Brothers & Co.,Services,71.4,5/28/2024
Demoulin Brothers & Co.,Services,5036.86,5/28/2024
Demoulin Brothers & Co.,Services,3419.81,6/4/2024
Demoulin Brothers & Co.,Services,3186.35,6/4/2024
Demoulin Brothers & Co.,Services,2676.64,6/5/2024
Demoulin Brothers & Co.,Services,1288.56,6/5/2024
Demoulin Brothers & Co.,Services,3961.15,6/10/2024
Demoulin Brothers & Co.,Services,2730.05,6/10/2024
Demoulin Brothers & Co.,Services,1324.46,6/10/2024
Demoulin Brothers & Co.,Services,2904.9,6/10/2024
Demoulin Brothers & Co.,Services,5701.86,6/19/2024
Demoulin Brothers & Co.,Services,4895.3,6/19/2024
Demoulin Brothers & Co.,Services,2264.73,6/19/2024
Demoulin Brothers & Co.,Services,6851.87,6/24/2024
Demoulin Brothers & Co.,Services,10914.55,6/24/2024
Demoulin Brothers & Co.,Services,9452.22,6/24/2024
Demoulin Brothers & Co.,Services,3623.19,6/24/2024
Demoulin Brothers & Co.,Services,1259.25,6/24/2024
Demoulin Brothers & Co.,Services,3738.5,6/24/2024
Demoulin Brothers & Co.,Services,3388.41,6/24/2024
Denise  King,,1460,3/4/2024
Denise Arroyo-Feliciano,Services,7.1,5/2/2024
Denise Arroyo-Feliciano,Services,96.21,5/2/2024
Dennis Daffron,Services,112.56,5/14/2024
Dennis Daffron,Services,80.4,5/15/2024
Denzil Garcia,Services,40.2,1/25/2024
Denzil Garcia,Services,16.08,5/7/2024
Denzil Garcia,Services,40.2,5/7/2024
Denzil Garcia,Services,61.64,5/7/2024
Dept Of Water Super Of Water Collections,Utilities,86.89,1/2/2024
Dept Of Water Super Of Water Collections,Utilities,86.89,1/2/2024
Dept Of Water Super Of Water Collections,Utilities,46.36,1/2/2024
Dept Of Water Super Of Water Collections,Utilities,18.12,1/2/2024
Dept Of Water Super Of Water Collections,Utilities,11.62,1/9/2024
Dept Of Water Super Of Water Collections,Utilities,34.74,1/9/2024
Dept Of Water Super Of Water Collections,Utilities,11.62,1/18/2024
Dept Of Water Super Of Water Collections,Utilities,18.12,1/18/2024
Dept Of Water Super Of Water Collections,Utilities,197.02,1/18/2024
Dept Of Water Super Of Water Collections,Utilities,3348.64,1/18/2024
Dept Of Water Super Of Water Collections,Utilities,46.36,1/18/2024
Dept Of Water Super Of Water Collections,Utilities,3480.42,1/19/2024
Dept Of Water Super Of Water Collections,Utilities,462.86,1/19/2024
Dept Of Water Super Of Water Collections,Utilities,5893.98,1/19/2024
Dept Of Water Super Of Water Collections,Utilities,226.92,1/29/2024
Dept Of Water Super Of Water Collections,Utilities,2741.26,1/29/2024
Dept Of Water Super Of Water Collections,Utilities,99.82,1/29/2024
Dept Of Water Super Of Water Collections,Utilities,971.24,1/29/2024
Dept Of Water Super Of Water Collections,Utilities,426.62,1/29/2024
Dept Of Water Super Of Water Collections,Utilities,944.02,1/30/2024
Dept Of Water Super Of Water Collections,Utilities,1784.4,1/30/2024
Dept Of Water Super Of Water Collections,Utilities,23.14,1/30/2024
Dept Of Water Super Of Water Collections,Utilities,92.66,2/8/2024
Dept Of Water Super Of Water Collections,Utilities,19,2/12/2024
Dept Of Water Super Of Water Collections,Utilities,18.12,2/12/2024
Dept Of Water Super Of Water Collections,Utilities,115.88,2/12/2024
Dept Of Water Super Of Water Collections,Utilities,46.36,2/14/2024
Dept Of Water Super Of Water Collections,Utilities,27.22,2/14/2024
Dept Of Water Super Of Water Collections,Utilities,475.08,2/14/2024
Dept Of Water Super Of Water Collections,Utilities,11.62,2/14/2024
Dept Of Water Super Of Water Collections,Utilities,3730.98,2/14/2024
Dept Of Water Super Of Water Collections,Utilities,706.84,2/14/2024
Dept Of Water Super Of Water Collections,Utilities,339.5,2/14/2024
Dept Of Water Super Of Water Collections,Utilities,127.42,2/14/2024
Dept Of Water Super Of Water Collections,Utilities,9894.44,2/20/2024
Dept Of Water Super Of Water Collections,Utilities,726.12,2/20/2024
Dept Of Water Super Of Water Collections,Utilities,254.14,2/22/2024
Dept Of Water Super Of Water Collections,Utilities,9.1,2/22/2024
Dept Of Water Super Of Water Collections,Utilities,6671.52,2/22/2024
Dept Of Water Super Of Water Collections,Utilities,81.68,2/22/2024
Dept Of Water Super Of Water Collections,Utilities,18.12,2/22/2024
Dept Of Water Super Of Water Collections,Utilities,1.62,2/22/2024
Dept Of Water Super Of Water Collections,Utilities,86.89,2/23/2024
Dept Of Water Super Of Water Collections,Utilities,86.89,2/23/2024
Dept Of Water Super Of Water Collections,Utilities,9.1,2/23/2024
Dept Of Water Super Of Water Collections,Utilities,81.14,2/23/2024
Dept Of Water Super Of Water Collections,Utilities,1316.18,2/23/2024
Dept Of Water Super Of Water Collections,Utilities,5037.7,2/27/2024
Dept Of Water Super Of Water Collections,Utilities,1098.28,2/28/2024
Dept Of Water Super Of Water Collections,Utilities,23.14,3/11/2024
Dept Of Water Super Of Water Collections,Utilities,471.98,3/15/2024
Dept Of Water Super Of Water Collections,Utilities,3441.3,3/15/2024
Dept Of Water Super Of Water Collections,Utilities,46.36,3/15/2024
Dept Of Water Super Of Water Collections,Utilities,741.62,3/15/2024
Dept Of Water Super Of Water Collections,Utilities,281.38,3/19/2024
Dept Of Water Super Of Water Collections,Utilities,2700.34,3/19/2024
Dept Of Water Super Of Water Collections,Utilities,5633.94,3/19/2024
Dept Of Water Super Of Water Collections,Utilities,1166.84,3/22/2024
Dept Of Water Super Of Water Collections,Utilities,226.92,3/22/2024
Dept Of Water Super Of Water Collections,Utilities,9.1,3/22/2024
Dept Of Water Super Of Water Collections,Utilities,3023.76,3/22/2024
Dept Of Water Super Of Water Collections,Utilities,762.44,3/22/2024
Dept Of Water Super Of Water Collections,Utilities,1334.3,3/22/2024
Dept Of Water Super Of Water Collections,Utilities,9403.66,3/22/2024
Dept Of Water Super Of Water Collections,Utilities,2444.88,3/28/2024
Dept Of Water Super Of Water Collections,Utilities,92.66,4/2/2024
Dept Of Water Super Of Water Collections,Utilities,19,4/2/2024
Dept Of Water Super Of Water Collections,Utilities,115.88,4/2/2024
Dept Of Water Super Of Water Collections,Utilities,11.62,4/2/2024
Dept Of Water Super Of Water Collections,Utilities,27.22,4/2/2024
Dept Of Water Super Of Water Collections,Utilities,104.26,4/2/2024
Dept Of Water Super Of Water Collections,Utilities,339.5,4/2/2024
Dept Of Water Super Of Water Collections,Utilities,695.22,4/2/2024
Dept Of Water Super Of Water Collections,Utilities,46.36,4/15/2024
Dept Of Water Super Of Water Collections,Utilities,3105.36,4/15/2024
Dept Of Water Super Of Water Collections,Utilities,36.32,4/15/2024
Dept Of Water Super Of Water Collections,Utilities,428.7,4/15/2024
Dept Of Water Super Of Water Collections,Utilities,499.2,4/24/2024
Dept Of Water Super Of Water Collections,Utilities,3567.1,4/24/2024
Dept Of Water Super Of Water Collections,Utilities,6154,4/24/2024
Dept Of Water Super Of Water Collections,Utilities,9.1,4/26/2024
Dept Of Water Super Of Water Collections,Utilities,69.52,4/26/2024
Dept Of Water Super Of Water Collections,Utilities,8368.94,4/26/2024
Dept Of Water Super Of Water Collections,Utilities,63.71,4/26/2024
Dept Of Water Super Of Water Collections,Utilities,63.71,4/26/2024
Dept Of Water Super Of Water Collections,Utilities,9.1,4/26/2024
Dept Of Water Super Of Water Collections,Utilities,27.22,4/26/2024
Dept Of Water Super Of Water Collections,Utilities,925.82,4/26/2024
Dept Of Water Super Of Water Collections,Utilities,3086.12,4/30/2024
Dept Of Water Super Of Water Collections,Utilities,245.06,4/30/2024
Dept Of Water Super Of Water Collections,Utilities,1152.74,4/30/2024
Dept Of Water Super Of Water Collections,Utilities,9.1,4/30/2024
Dept Of Water Super Of Water Collections,Utilities,23.14,5/6/2024
Dept Of Water Super Of Water Collections,Utilities,11.62,5/13/2024
Dept Of Water Super Of Water Collections,Utilities,3255.9,5/22/2024
Dept Of Water Super Of Water Collections,Utilities,5720.62,5/22/2024
Dept Of Water Super Of Water Collections,Utilities,45.36,5/22/2024
Dept Of Water Super Of Water Collections,Utilities,46.36,5/22/2024
Dept Of Water Super Of Water Collections,Utilities,535.52,5/22/2024
Dept Of Water Super Of Water Collections,Utilities,254.14,5/22/2024
Dept Of Water Super Of Water Collections,Utilities,208.54,5/22/2024
Dept Of Water Super Of Water Collections,Utilities,2078.62,5/23/2024
Dept Of Water Super Of Water Collections,Utilities,245.06,5/23/2024
Dept Of Water Super Of Water Collections,Utilities,1279.84,5/23/2024
Dept Of Water Super Of Water Collections,Utilities,807.88,5/23/2024
Dept Of Water Super Of Water Collections,Utilities,9.1,5/23/2024
Dept Of Water Super Of Water Collections,Utilities,8604.96,5/23/2024
Dept Of Water Super Of Water Collections,Utilities,1806.34,5/23/2024
Dept Of Water Super Of Water Collections,Utilities,23.14,5/23/2024
Dept Of Water Super Of Water Collections,Utilities,57.9,5/28/2024
Dept Of Water Super Of Water Collections,Utilities,2787.02,5/28/2024
Dept Of Water Super Of Water Collections,Utilities,27.22,6/4/2024
Dept Of Water Super Of Water Collections,Utilities,81.14,6/4/2024
Dept Of Water Super Of Water Collections,Utilities,30.62,6/4/2024
Dept Of Water Super Of Water Collections,Utilities,104.26,6/4/2024
Dept Of Water Super Of Water Collections,Utilities,2201.5,6/5/2024
Dept Of Water Super Of Water Collections,Utilities,660.48,6/12/2024
Dept Of Water Super Of Water Collections,Utilities,11.62,6/12/2024
Dept Of Water Super Of Water Collections,Utilities,271.6,6/12/2024
Dept Of Water Super Of Water Collections,Utilities,104.26,6/12/2024
Dept Of Water Super Of Water Collections,Utilities,46.36,6/19/2024
Dept Of Water Super Of Water Collections,Utilities,3360.18,6/19/2024
Dept Of Water Super Of Water Collections,Utilities,45.36,6/19/2024
Dept Of Water Super Of Water Collections,Utilities,197.02,6/19/2024
Dept Of Water Super Of Water Collections,Utilities,3466.96,6/24/2024
Dept Of Water Super Of Water Collections,Utilities,780.64,6/24/2024
Dept Of Water Super Of Water Collections,Utilities,1257.18,6/26/2024
Dept Of Water Super Of Water Collections,Utilities,9.12,6/26/2024
Dept Of Water Super Of Water Collections,Utilities,530.32,6/26/2024
Dept Of Water Super Of Water Collections,Utilities,237.24,6/26/2024
Dept Of Water Super Of Water Collections,Utilities,5720.62,6/26/2024
Dept Of Water Super Of Water Collections,Utilities,82.1,6/26/2024
Dept Of Water Super Of Water Collections,Utilities,9.12,6/26/2024
Dept Of Water Super Of Water Collections,Utilities,9269.5,6/26/2024
Dept Of Water Super Of Water Collections,Utilities,9.16,6/26/2024
Derrick Forest,Services,124.45,1/2/2024
Derrick Forest,Services,145.41,1/17/2024
Derrick Forest,Services,11.52,1/30/2024
Derrick Forest,Services,99.16,2/15/2024
Derrick Forest,Services,49.58,2/15/2024
Derrick Forest,Services,49.58,3/13/2024
Derrick Forest,Services,10.72,3/14/2024
Derrick Forest,Services,127.3,3/26/2024
Derrick Forest,Services,10.99,3/26/2024
Derrick Forest,Services,148.74,4/10/2024
Derrick Forest,Services,386.19,4/18/2024
Derrick Forest,Services,282.74,5/14/2024
Derrick Forest,Services,84.42,6/4/2024
Derrick Forest,Services,168.84,6/10/2024
Derrick Forest,Services,105.86,6/20/2024
Design Group Signage Corp.,Materials,530.75,1/22/2024
Design Group Signage Corp.,Materials,743.05,2/1/2024
Design Group Signage Corp.,Materials,31500,2/12/2024
Design Group Signage Corp.,Capital Purchases,7981.76,2/12/2024
Design Group Signage Corp.,Capital Purchases,13111.76,3/15/2024
Design Group Signage Corp.,Capital Purchases,4798.8,3/27/2024
Design Group Signage Corp.,Materials,701.5,4/5/2024
Design Group Signage Corp.,Capital Purchases,36007.5,4/16/2024
Design Group Signage Corp.,Materials,1481.25,5/16/2024
Design Group Signage Corp.,Capital Purchases,426.62,6/1/2024
Design Group Signage Corp.,Materials,636.9,6/3/2024
Deutz Power Center Great Lakes,Materials,1409.4,3/6/2024
Deutz Power Center Great Lakes,Materials,63.88,4/2/2024
Deutz Power Center Great Lakes,Materials,1301.87,5/14/2024
Diane B. Querubin,Services,200,6/18/2024
Diesel Electrical Equipment  Inc.,Services,16412,2/12/2024
Diesel Electrical Equipment  Inc.,Services,11936,2/23/2024
Diesel Electrical Equipment  Inc.,Services,7460,4/2/2024
Diesel Electrical Equipment  Inc.,Services,13428,4/4/2024
Diesel Electrical Equipment  Inc.,Services,7460,4/4/2024
Diesel Electrical Equipment  Inc.,Services,1492,4/16/2024
Diesel Electrical Equipment  Inc.,Services,11936,4/16/2024
Diesel Electrical Equipment  Inc.,Services,13428,5/3/2024
Diesel Electrical Equipment  Inc.,Capital Purchases,4185,5/15/2024
Diesel Electrical Equipment  Inc.,Services,16412,5/29/2024
Diesel Electrical Equipment  Inc.,Services,17904,6/19/2024
Diesel Electrical Equipment  Inc.,Capital Purchases,4185,6/26/2024
Dillard Dabney,Services,52.78,2/1/2024
Dina Consulting & Design,Materials,285,1/22/2024
Dina Consulting & Design,Materials,536,1/22/2024
Dion Kimble,Services,450.95,4/2/2024
Dion Kimble,Services,206.5,4/2/2024
Ditch Witch Of Illinois,Services,4867.04,1/4/2024
Ditch Witch Of Illinois,Services,1599.64,1/18/2024
Diversified Communications,Services,2070,4/10/2024
Diversified Communications,Services,199,5/14/2024
Diversified Communications,Services,395,5/14/2024
DIVERSITY TRAINING & CONSULTING INC,Services,2200,3/27/2024
DIVERSITY TRAINING & CONSULTING INC,Services,4400,5/28/2024
Dixie Precast  Inc.,Capital Purchases,25275,4/2/2024
Dixie Precast  Inc.,Materials,7320,6/10/2024
Dominic Vella,Services,95.86,2/5/2024
"Door Systems Assa Abloy US, Inc.",Capital Purchases,0,1/22/2024
"Door Systems Assa Abloy US, Inc.",Capital Purchases,268906,1/22/2024
"Door Systems Assa Abloy US, Inc.",Services,258,5/28/2024
Doris Williams,Services,107.4,2/26/2024
"Drive Construction, Inc.",Services,58403.08,1/1/2024
"Drive Construction, Inc.",Services,23246.58,1/4/2024
"Drive Construction, Inc.",Services,22392.72,1/4/2024
"Drive Construction, Inc.",Materials,312.31,1/4/2024
"Drive Construction, Inc.",Services,21895.64,1/18/2024
"Drive Construction, Inc.",Services,25716.72,2/6/2024
"Drive Construction, Inc.",Services,57906,2/9/2024
"Drive Construction, Inc.",Services,21755.34,3/1/2024
"Drive Construction, Inc.",Materials,524.33,3/5/2024
"Drive Construction, Inc.",Services,25527.56,3/5/2024
"Drive Construction, Inc.",Services,115270.8,3/6/2024
"Drive Construction, Inc.",Services,88765.11,5/1/2024
"Drive Construction, Inc.",Services,77328,5/3/2024
"Drive Construction, Inc.",Materials,47890.75,5/3/2024
"Drive Construction, Inc.",Services,45640,5/16/2024
"Drive Construction, Inc.",Services,33616,6/1/2024
"Drive Construction, Inc.",Services,50964,6/7/2024
"Drive Construction, Inc.",Services,158428,6/19/2024
Dun & Bradstreet  Inc.,Services,7478,3/1/2024
Dupage County Chiefs of Police Association,Services,275,1/17/2024
Dupage County Chiefs of Police Association,Services,275,3/19/2024
Dupage County Fire Chiefs' Assoc.,Services,50,1/17/2024
DuPage County Senior Police Management Assoc.,Services,125,4/8/2024
Dynamic Metals  LLC,Capital Purchases,55080,1/4/2024
Dynamic Metals  LLC,Capital Purchases,54580,1/18/2024
Dynamic Metals  LLC,Capital Purchases,33278,1/22/2024
Dynamic Metals  LLC,Materials,7748,2/1/2024
Dynamic Metals  LLC,Capital Purchases,41234,3/27/2024
Dynamic Metals  LLC,Capital Purchases,20617,3/27/2024
Dynamic Metals  LLC,Materials,4648.8,4/2/2024
Dynamic Metals  LLC,Materials,1920,4/11/2024
Dynamic Metals  LLC,Capital Purchases,28320,4/17/2024
Dynamic Metals  LLC,Capital Purchases,14160,4/17/2024
Dynamic Metals  LLC,Capital Purchases,90171,5/3/2024
Dynamic Metals  LLC,Materials,14160,5/16/2024
Dynamic Metals  LLC,Materials,4648.8,5/16/2024
Dynamic Metals  LLC,Materials,1920,5/21/2024
Dynamic Metals  LLC,Capital Purchases,35400,5/24/2024
Dynamic Metals  LLC,Capital Purchases,20617,5/28/2024
Dynamic Metals  LLC,Capital Purchases,82468,6/6/2024
Dynamic Metals  LLC,Capital Purchases,21240,6/10/2024
Dynamic Metals  LLC,Materials,3525,6/24/2024
EAO Switch Corporation,Services,20.53,6/18/2024
EAO Switch Corporation,Materials,318.06,6/18/2024
Eddie Castillo,Services,99.04,1/9/2024
Edgar E. Alvarado,Services,28.14,3/26/2024
Edgar E. Alvarado,Services,155.44,3/26/2024
Edgar E. Alvarado,Services,282.74,5/21/2024
Edgar I. Jimenez,Services,2724,1/2/2024
Edgar I. Jimenez,Services,31.7,1/11/2024
Edgar I. Jimenez,Services,140.24,1/11/2024
Edgar I. Jimenez,Services,288,1/11/2024
Edgar I. Jimenez,Services,606.2,1/11/2024
Edgar I. Jimenez,Services,140.24,2/13/2024
Edgar I. Jimenez,Services,579.25,2/13/2024
Edgar I. Jimenez,Services,221.19,2/13/2024
Edgar I. Jimenez,Services,32.16,2/13/2024
Edgar I. Jimenez,Services,333,2/13/2024
Edgar I. Jimenez,Services,67.3,2/20/2024
Edgar I. Jimenez,Services,507.86,2/20/2024
Edgar I. Jimenez,Services,32.29,2/20/2024
Edgar I. Jimenez,Services,96.25,2/20/2024
Edgar I. Jimenez,Services,197.5,2/20/2024
Edgar I. Jimenez,Services,32.29,3/26/2024
Edgar I. Jimenez,Services,98.6,3/26/2024
Edgar I. Jimenez,Services,859.77,3/26/2024
Edgar I. Jimenez,Services,276.5,3/26/2024
Edgar I. Jimenez,Services,3594.51,5/16/2024
Edgar I. Jimenez,Services,50.73,5/23/2024
Edgar I. Jimenez,Services,32.29,5/23/2024
Edgar I. Jimenez,Services,73.95,5/23/2024
Edgar I. Jimenez,Services,847.6,5/23/2024
Edgar I. Jimenez,Services,197.5,5/23/2024
Edgar Jimenez,Services,68.34,3/12/2024
Edgar Jimenez,Services,96.48,6/1/2024
Edgar Jimenez,Services,20,6/1/2024
Edna Flores,Services,38.93,3/20/2024
Eduardo Andrade  Jr.,Services,233.16,3/20/2024
Eduardo Andrade  Jr.,Services,42.88,3/20/2024
Eduardo Fallad,Services,55.01,6/20/2024
Edward C. Blaise,Services,31.5,4/1/2024
Edward C. Blaise,Services,929.42,4/1/2024
Edward C. Blaise,Services,185,4/1/2024
Edward R. Gower,Services,6215,2/6/2024
Edward R. Gower,Services,4290,3/14/2024
Edward R. Gower,Services,3080,4/17/2024
Elaine Carnithan,Services,50,6/10/2024
Elaine Davenport,Claims & Insurance,119.88,1/2/2024
Elcon  Inc.,Materials,2085,1/5/2024
Elcon  Inc.,Materials,2100,1/8/2024
Elcon  Inc.,Materials,1500,1/8/2024
Elcon  Inc.,Materials,295,1/12/2024
Elcon  Inc.,Materials,295,1/29/2024
Elcon  Inc.,Capital Purchases,2500,4/2/2024
Elcon  Inc.,Materials,1200,4/2/2024
Elcon  Inc.,Materials,815,4/18/2024
Elcon  Inc.,Materials,2640,4/19/2024
Elcon  Inc.,Capital Purchases,7500,5/1/2024
Elcon  Inc.,Materials,1320,5/30/2024
Elcon  Inc.,Materials,4480,6/19/2024
Electric Motor Services  Inc.,Capital Purchases,5000,1/8/2024
Electric Motor Services  Inc.,Capital Purchases,129240,1/9/2024
Electric Motor Services  Inc.,Services,15295,1/29/2024
Electric Motor Services  Inc.,Capital Purchases,103560,2/1/2024
Electric Motor Services  Inc.,Capital Purchases,13720,2/2/2024
Electric Motor Services  Inc.,Capital Purchases,31090,2/20/2024
Electric Motor Services  Inc.,Capital Purchases,15000,2/27/2024
Electric Motor Services  Inc.,Capital Purchases,15000,3/1/2024
Electric Motor Services  Inc.,Capital Purchases,12325,3/5/2024
Electric Motor Services  Inc.,Capital Purchases,16600,3/6/2024
Electric Motor Services  Inc.,Capital Purchases,12200,3/13/2024
Electric Motor Services  Inc.,Capital Purchases,16825,3/26/2024
Electric Motor Services  Inc.,Capital Purchases,15600,4/1/2024
Electric Motor Services  Inc.,Capital Purchases,10490,4/2/2024
Electric Motor Services  Inc.,Capital Purchases,16708,4/4/2024
Electric Motor Services  Inc.,Capital Purchases,34580,4/5/2024
Electric Motor Services  Inc.,Capital Purchases,53890,4/10/2024
Electric Motor Services  Inc.,Capital Purchases,32908,4/19/2024
Electric Motor Services  Inc.,Capital Purchases,15200,5/1/2024
Electric Motor Services  Inc.,Services,24750,5/3/2024
Electric Motor Services  Inc.,Capital Purchases,18615,5/6/2024
Electric Motor Services  Inc.,Capital Purchases,36500,5/30/2024
Electric Motor Services  Inc.,Capital Purchases,16800,6/1/2024
Electric Motor Services  Inc.,Capital Purchases,5000,6/3/2024
Electric Motor Services  Inc.,Capital Purchases,14540,6/21/2024
Electrical Resource Management,Materials,1846.3,3/1/2024
"Electro Wire a Division of EIS Intermediate Holdings, LLC DBA Genuine Cable Group, LLC",Materials,3240,1/8/2024
"Electro Wire a Division of EIS Intermediate Holdings, LLC DBA Genuine Cable Group, LLC",Capital Purchases,10776,1/8/2024
"Electro Wire a Division of EIS Intermediate Holdings, LLC DBA Genuine Cable Group, LLC",Capital Purchases,29440,2/20/2024
Eliceo Martinez,Services,14.46,6/18/2024
Eliceo Martinez,Services,85.89,6/18/2024
eLineup LLC,Services,600,4/10/2024
Elise Gluck,Services,94.72,3/13/2024
Elise Gluck,Services,241.5,3/13/2024
Elise Gluck,Services,615.54,3/13/2024
Engineered Plastics  Inc.,Capital Purchases,106148,2/8/2024
Engineered Plastics  Inc.,Materials,99200,2/8/2024
Engineered Plastics  Inc.,Capital Purchases,212436,2/12/2024
Engineered Plastics  Inc.,Materials,45396,2/27/2024
Engineered Plastics  Inc.,Capital Purchases,240380,3/21/2024
ENO Transportation Foundation,Services,4900,4/4/2024
ENO Transportation Foundation,Services,4900,5/16/2024
Enviroplus  Inc.,Services,3353,3/1/2024
Enviroplus  Inc.,Services,38888.17,4/1/2024
EnviroServe Inc.,Services,4278.28,1/9/2024
EnviroServe Inc.,Services,31346.06,1/29/2024
EnviroServe Inc.,Services,22779.66,2/1/2024
EnviroServe Inc.,Services,10249.42,2/27/2024
EnviroServe Inc.,Services,528.3,3/7/2024
EnviroServe Inc.,Services,12440.69,3/7/2024
EnviroServe Inc.,Services,11373.9,3/7/2024
EnviroServe Inc.,Services,2317.5,3/7/2024
EnviroServe Inc.,Services,9033.59,3/27/2024
EnviroServe Inc.,Services,5160.9,6/1/2024
EnviroServe Inc.,Services,2149.65,6/12/2024
EnviroServe Inc.,Services,7530.53,6/19/2024
Epic Equipment Sales & Services,Services,4600,6/17/2024
Equipment Development LLC,Materials,8948,6/19/2024
Equity Industrial Supply  Inc.,Materials,234,1/9/2024
Equity Industrial Supply  Inc.,Materials,341.25,2/20/2024
Equity Industrial Supply  Inc.,Materials,390,4/1/2024
ERASTO AVILA,Services,190.28,4/11/2024
Eriberto Caneda,Services,734.5,1/9/2024
Eriberto Caneda,Services,791,1/12/2024
Eriberto Caneda,Services,113,2/1/2024
Eric Aspenson,Services,76.38,2/5/2024
Eric Aspenson,Services,432.75,2/5/2024
Eric Aspenson,Services,222.98,2/5/2024
Eric Aspenson,Services,114.99,2/5/2024
Eric Aspenson,Services,186.85,2/5/2024
Eric Aspenson,Services,259,2/5/2024
Eric Aspenson,Services,76.38,3/12/2024
Eric Aspenson,Services,295.07,3/12/2024
Eric Aspenson,Services,859.77,3/12/2024
Eric Aspenson,Services,102.99,3/12/2024
Eric Aspenson,Services,93.76,3/12/2024
Eric Aspenson,Services,206.5,3/12/2024
Eric Aspenson,Services,111.35,4/17/2024
Eric Aspenson,Services,20,5/8/2024
Eric Aspenson,Services,399.86,5/8/2024
Eric Golden,Services,145.41,1/2/2024
Eric Golden,Services,48.47,1/2/2024
Eric Golden,Services,158.51,1/18/2024
Eric Golden,Services,99.16,1/22/2024
Eric Golden,Services,148.74,3/13/2024
Eric Golden,Services,28.14,4/23/2024
Eric Golden,Services,28.14,6/4/2024
Eric Gonzales,Services,300.83,5/13/2024
Eric Gonzales,Services,8.5,5/13/2024
Eric Gonzales,Services,8.7,5/23/2024
Eric Gonzales,Services,298.82,5/23/2024
Eric Hargett,Services,40.2,2/13/2024
Eric Hargett,Services,87.1,2/13/2024
Eric Hargett,Services,40.2,6/18/2024
Eric Hargett,Services,80.4,6/18/2024
Eric Jagiela,Services,75.98,1/2/2024
Eric Jeffrey Bales Jr,Services,13,4/8/2024
Eric Jeffrey Bales Jr,Services,197.5,4/8/2024
Eric Jeffrey Bales Jr,Services,1194.28,4/8/2024
Eric Keyes  Jr.,Services,10,2/26/2024
Eric Keyes  Jr.,Services,271.03,2/26/2024
Eric Keyes  Jr.,Services,448.5,2/26/2024
Eric Keyes  Jr.,Services,248.18,2/26/2024
Eric Keyes  Jr.,Services,244.6,2/26/2024
ESRI  Inc.,Services,21922.4,1/29/2024
Evergreen Supply Co.,Materials,700,2/1/2024
Evergreen Supply Co.,Materials,115,2/20/2024
Evergreen Supply Co.,Materials,1925,4/2/2024
Evergreen Supply Co.,Materials,700,4/5/2024
Evergreen Supply Co.,Materials,875,4/23/2024
Evergreen Supply Co.,Materials,765,4/29/2024
Evergreen Supply Co.,Materials,900,5/6/2024
Exp Us Services  Inc.,Capital Purchases,34876.75,2/7/2024
F. H. Paschen &  S. N. Nielson & Associates LLC,Capital Purchases,262620,2/20/2024
F. H. Paschen &  S. N. Nielson & Associates LLC,Capital Purchases,149570.37,4/1/2024
F. H. Paschen &  S. N. Nielson & Associates LLC,Capital Purchases,451836.31,5/3/2024
F. H. Paschen &  S. N. Nielson & Associates LLC,Capital Purchases,1478533.36,6/18/2024
Fabricacion Asientos Vehiculos Industriales S.A. DBA Fainsa,Capital Purchases,77711.1,1/3/2024
Fabricacion Asientos Vehiculos Industriales S.A. DBA Fainsa,Capital Purchases,77711.1,1/10/2024
Fabricacion Asientos Vehiculos Industriales S.A. DBA Fainsa,Capital Purchases,77711.1,1/30/2024
Fabricacion Asientos Vehiculos Industriales S.A. DBA Fainsa,Capital Purchases,155422.2,2/1/2024
Fabricacion Asientos Vehiculos Industriales S.A. DBA Fainsa,Capital Purchases,77711.1,2/1/2024
Fabricacion Asientos Vehiculos Industriales S.A. DBA Fainsa,Capital Purchases,72182.3,3/7/2024
Fabricacion Asientos Vehiculos Industriales S.A. DBA Fainsa,Capital Purchases,147129,3/7/2024
Fabricacion Asientos Vehiculos Industriales S.A. DBA Fainsa,Capital Purchases,72182.3,3/26/2024
Fabricacion Asientos Vehiculos Industriales S.A. DBA Fainsa,Capital Purchases,72182.3,4/16/2024
Fabricacion Asientos Vehiculos Industriales S.A. DBA Fainsa,Capital Purchases,72182.3,5/3/2024
Fabricacion Asientos Vehiculos Industriales S.A. DBA Fainsa,Capital Purchases,72182.3,5/8/2024
Fabricacion Asientos Vehiculos Industriales S.A. DBA Fainsa,Capital Purchases,72182.3,5/29/2024
Fabricacion Asientos Vehiculos Industriales S.A. DBA Fainsa,Capital Purchases,81761.2,7/1/2024
Faegre Drinker Biddle & Reath LLP,Services,25551,6/3/2024
Fastenal Co.,Services,600,1/3/2024
Fastenal Co.,Materials,540.4,1/5/2024
Fastenal Co.,Services,240,1/5/2024
Fastenal Co.,Materials,11851.89,1/8/2024
Fastenal Co.,Materials,50,1/10/2024
Fastenal Co.,Materials,403.88,1/18/2024
Fastenal Co.,Materials,140.42,1/18/2024
Fastenal Co.,Materials,252.08,1/22/2024
Fastenal Co.,Materials,3823.81,1/22/2024
Fastenal Co.,Materials,936.99,1/22/2024
Fastenal Co.,Materials,2694.38,1/22/2024
Fastenal Co.,Services,800,1/22/2024
Fastenal Co.,Materials,4041.32,1/29/2024
Fastenal Co.,Materials,1749.93,1/30/2024
Fastenal Co.,Materials,1214.87,2/1/2024
Fastenal Co.,Materials,140.42,2/1/2024
Fastenal Co.,Materials,13699.69,2/1/2024
Fastenal Co.,Services,600,2/2/2024
Fastenal Co.,Materials,3069.94,2/2/2024
Fastenal Co.,Materials,50,2/7/2024
Fastenal Co.,Materials,2016.25,2/7/2024
Fastenal Co.,Materials,5079.01,2/8/2024
Fastenal Co.,Materials,4698.07,2/8/2024
Fastenal Co.,Materials,1323.91,2/12/2024
Fastenal Co.,Services,840.53,2/12/2024
Fastenal Co.,Materials,12189.29,2/12/2024
Fastenal Co.,Services,3044.97,2/13/2024
Fastenal Co.,Materials,50,2/15/2024
Fastenal Co.,Materials,3084.71,2/20/2024
Fastenal Co.,Materials,297.16,2/20/2024
Fastenal Co.,Materials,4003.8,2/23/2024
Fastenal Co.,Services,769.22,2/23/2024
Fastenal Co.,Materials,3406.37,3/7/2024
Fastenal Co.,Materials,8656.77,3/7/2024
Fastenal Co.,Materials,50,3/14/2024
Fastenal Co.,Materials,744,3/18/2024
Fastenal Co.,Materials,6087.4,3/20/2024
Fastenal Co.,Services,401.85,3/20/2024
Fastenal Co.,Materials,4206.9,3/27/2024
Fastenal Co.,Materials,8886.75,3/27/2024
Fastenal Co.,Materials,2639.39,4/2/2024
Fastenal Co.,Materials,1191.4,4/2/2024
Fastenal Co.,Materials,12606.54,4/3/2024
Fastenal Co.,Services,245.87,4/3/2024
Fastenal Co.,Services,595.06,4/4/2024
Fastenal Co.,Materials,2800.52,4/9/2024
Fastenal Co.,Materials,1176.88,4/9/2024
Fastenal Co.,Materials,2379.19,4/10/2024
Fastenal Co.,Materials,50,4/11/2024
Fastenal Co.,Materials,1844.96,4/11/2024
Fastenal Co.,Materials,2325.63,4/18/2024
Fastenal Co.,Materials,1902.2,4/22/2024
Fastenal Co.,Materials,2347.01,4/22/2024
Fastenal Co.,Materials,4622.13,4/23/2024
Fastenal Co.,Materials,6627.17,4/23/2024
Fastenal Co.,Materials,43.66,5/17/2024
Fastenal Co.,Materials,1280.79,5/17/2024
Fastenal Co.,Materials,4162.38,5/17/2024
Fastenal Co.,Services,403.58,5/17/2024
Fastenal Co.,Materials,40,5/20/2024
Fastenal Co.,Materials,2125.18,5/21/2024
Fastenal Co.,Materials,26.63,5/21/2024
Fastenal Co.,Materials,1740,5/21/2024
Fastenal Co.,Materials,1130.23,5/22/2024
Fastenal Co.,Services,938.4,5/28/2024
Fastenal Co.,Materials,9284.14,5/28/2024
Fastenal Co.,Materials,596.54,5/28/2024
Fastenal Co.,Materials,4740.68,5/28/2024
Fastenal Co.,Materials,1248.64,5/29/2024
Fastenal Co.,Materials,149.23,5/29/2024
Fastenal Co.,Materials,8130.98,6/4/2024
Fastenal Co.,Materials,1260.45,6/4/2024
Fastenal Co.,Services,3510,6/7/2024
Fastenal Co.,Materials,40,6/12/2024
Fastenal Co.,Materials,1240.39,6/26/2024
Fastenal Co.,Materials,828.32,6/26/2024
Fastenal Co.,Materials,4891.89,6/27/2024
Fastenal Co.,Materials,3497.34,6/27/2024
Fastenal Co.,Materials,2753.21,7/1/2024
Favian Ochoa,Services,246.7,3/12/2024
FBI - LEEDA,Services,795,4/25/2024
FBI - LEEDA,Services,795,5/23/2024
FBI - LEEDA,Services,1590,6/13/2024
FBI - LEEDA,Services,795,6/17/2024
Federal Express Corp.,Services,4972.14,1/3/2024
Federal Express Corp.,Services,592.68,1/18/2024
Federal Express Corp.,Services,1070.14,1/29/2024
Federal Express Corp.,Services,698.08,2/1/2024
Federal Express Corp.,Services,301.16,2/26/2024
Federal Express Corp.,Services,1300.67,2/28/2024
Federal Express Corp.,Services,4103.09,3/12/2024
Federal Express Corp.,Services,3567.44,3/19/2024
Federal Express Corp.,Services,1690.42,3/19/2024
Federal Express Corp.,Services,2133.3,3/21/2024
Federal Express Corp.,Services,3186.75,4/8/2024
Federal Express Corp.,Services,1485.87,4/15/2024
Federal Express Corp.,Services,3435.36,4/18/2024
Federal Express Corp.,Services,3036.52,4/18/2024
Federal Express Corp.,Services,799.78,4/23/2024
Federal Express Corp.,Services,681,5/13/2024
Federal Express Corp.,Services,6963.17,6/27/2024
FEDERAL TRANSIT AUTHORITY,,21076,1/23/2024
FEDERAL TRANSIT AUTHORITY,,40000,4/18/2024
Fernando Ramon Gomez,Services,162.81,5/14/2024
Fibergrate Composite Structures Inc,Materials,46400,1/11/2024
Fibergrate Composite Structures Inc,Materials,8055,4/22/2024
Field Training Associates,Services,8200,5/31/2024
"FilterBuy, Inc",Materials,16298.52,1/5/2024
"FilterBuy, Inc",Materials,15811.2,2/1/2024
"FilterBuy, Inc",Materials,9223.2,2/15/2024
"FilterBuy, Inc",Materials,2635.2,2/22/2024
"FilterBuy, Inc",Materials,15811.2,3/27/2024
"FilterBuy, Inc",Materials,16104,5/3/2024
"FilterBuy, Inc",Materials,2781.6,5/6/2024
"FilterBuy, Inc",Materials,13176,6/10/2024
"FilterBuy, Inc",Materials,2928,6/12/2024
"FilterBuy, Inc",Materials,389.04,7/1/2024
Fis,Services,1753.09,1/3/2024
Fis,Services,1515.49,1/29/2024
Fis,Services,151.48,2/20/2024
FISSION CUBE 555 LLC,Services,1000,3/19/2024
Flawtech America LLC,Materials,5423,1/29/2024
Flawtech America LLC,Services,60,1/29/2024
Fletcher & Sippel  Llc,Claims & Insurance,146515.59,2/1/2024
Fletcher & Sippel  Llc,Services,3141.4,2/1/2024
Fletcher & Sippel  Llc,Claims & Insurance,8299.2,3/12/2024
Fletcher & Sippel  Llc,Claims & Insurance,5644,5/23/2024
Fletcher & Sippel  Llc,Claims & Insurance,8124.4,6/4/2024
Fletcher & Sippel  Llc,Services,310.5,6/27/2024
Fletcher & Sippel  Llc,Claims & Insurance,9266.1,6/27/2024
Floor-Chem Inc.,Materials,2118,4/22/2024
Floor-Chem Inc.,Materials,3280.5,5/17/2024
Floor-Chem Inc.,Materials,437.4,6/24/2024
Foley & Lardner LLP Three First National Plaza,Services,4543,1/29/2024
Foley & Lardner LLP Three First National Plaza,Services,56.11,5/24/2024
Foley & Lardner LLP Three First National Plaza,Services,36890,5/24/2024
"Ford & Britton, PC",Services,3767.5,2/13/2024
"Ford & Britton, PC",Services,3025,2/22/2024
Fotokite US LLC,Materials,4075,5/9/2024
Frances Alvarado,Services,42.88,6/27/2024
Francis Mascarenhas,Services,331.46,1/23/2024
Francis Mascarenhas,Services,147.5,1/23/2024
Francis Mascarenhas,Services,173.4,2/1/2024
Francis Mascarenhas,Services,197.5,2/1/2024
Francis Mascarenhas,Services,486.42,2/1/2024
Francis Mascarenhas,Services,30.02,5/7/2024
Francis Mascarenhas,Services,225.67,6/18/2024
Francis Mascarenhas,Services,293.25,6/18/2024
Francis Mascarenhas,Services,902.98,6/18/2024
Francois Jean,Services,63.78,5/23/2024
Francois Jean,Services,63.78,5/28/2024
"Frank Ralphs, Inc.",Capital Purchases,22586.6,2/1/2024
"Frank Ralphs, Inc.",Capital Purchases,41834,3/6/2024
"Frank Ralphs, Inc.",Capital Purchases,6919.8,5/6/2024
"Frank Ralphs, Inc.",Capital Purchases,23160,5/30/2024
Fraser Stamp & Seal Co.,Services,411.6,1/5/2024
Fraser Stamp & Seal Co.,Services,10.8,1/12/2024
Fraser Stamp & Seal Co.,Services,301.1,2/12/2024
Fraser Stamp & Seal Co.,Services,10.8,2/20/2024
Fraser Stamp & Seal Co.,Services,281.05,2/23/2024
Fraser Stamp & Seal Co.,Services,59.3,3/7/2024
Fraser Stamp & Seal Co.,Services,280.2,3/11/2024
Fraser Stamp & Seal Co.,Services,47.4,3/15/2024
Fraser Stamp & Seal Co.,Services,21.6,4/4/2024
Fraser Stamp & Seal Co.,Services,195.6,4/9/2024
Fraser Stamp & Seal Co.,Services,101.1,4/22/2024
Fraser Stamp & Seal Co.,Services,134.3,5/17/2024
Fraser Stamp & Seal Co.,Services,109.8,5/21/2024
Fraser Stamp & Seal Co.,Services,109.7,5/23/2024
Fraser Stamp & Seal Co.,Services,43.2,5/29/2024
Fraser Stamp & Seal Co.,Services,280.6,6/3/2024
Fraser Stamp & Seal Co.,Services,15.5,6/28/2024
Fraser Stamp & Seal Co.,Services,240.7,7/1/2024
FREDRICK JONES,Services,452,1/9/2024
FREDRICK JONES,Services,395.5,4/23/2024
FREDRICK JONES,Services,678,5/7/2024
FREDRICK JONES,Services,565,5/30/2024
FREDRICK JONES,Services,452,6/18/2024
FREDRICK JONES,Services,395.5,6/27/2024
FSS TECHNOLOGIES LLC,Services,516,2/22/2024
FSS TECHNOLOGIES LLC,Services,123,6/17/2024
Fullife Safety Center,Services,196,1/12/2024
Fullife Safety Center,Services,196,3/14/2024
Fullife Safety Center,Services,196,4/2/2024
Fullife Safety Center,Services,196,5/20/2024
Fullife Safety Center,Services,196,5/24/2024
Fullife Safety Center,Services,98,6/26/2024
Fyre Marketing LLC,Materials,943.76,1/5/2024
Fyre Marketing LLC,Services,2206.5,2/1/2024
Fyre Marketing LLC,Services,119.98,2/1/2024
Fyre Marketing LLC,Services,7621.76,2/13/2024
Fyre Marketing LLC,Materials,8600,3/6/2024
Fyre Marketing LLC,Services,8480,3/14/2024
Fyre Marketing LLC,Services,246.64,4/5/2024
Fyre Marketing LLC,Services,3678.15,4/5/2024
Fyre Marketing LLC,Services,3901.5,4/5/2024
Fyre Marketing LLC,Services,2160,5/1/2024
Fyre Marketing LLC,Services,8890.5,5/17/2024
Fyre Marketing LLC,Services,4223.9,5/22/2024
Fyre Marketing LLC,Services,5400,5/22/2024
G & O Thermal Supply,Materials,171.44,1/1/2024
G & O Thermal Supply,Materials,428.6,2/5/2024
G & O Thermal Supply,Materials,514.32,2/7/2024
G & O Thermal Supply,Materials,257.16,2/14/2024
G & O Thermal Supply,Materials,171.44,3/25/2024
G & O Thermal Supply,Materials,17616.48,3/25/2024
G & O Thermal Supply,Materials,809.34,4/3/2024
G & O Thermal Supply,Materials,428.6,4/11/2024
G & O Thermal Supply,Materials,166.77,4/23/2024
G & O Thermal Supply,Materials,2190.11,4/24/2024
G & O Thermal Supply,Materials,702.42,5/1/2024
G & O Thermal Supply,Materials,484.3,5/9/2024
G & O Thermal Supply,Materials,1331.35,5/10/2024
G & O Thermal Supply,Materials,166.77,5/15/2024
G & O Thermal Supply,Materials,432.76,5/15/2024
G & O Thermal Supply,Materials,1326.96,5/30/2024
G & O Thermal Supply,Materials,139.78,6/1/2024
G & O Thermal Supply,Materials,1990.44,6/3/2024
G & O Thermal Supply,Materials,257.21,6/5/2024
G & O Thermal Supply,Materials,138.98,6/6/2024
G & O Thermal Supply,Materials,8397.63,6/10/2024
G & O Thermal Supply,Materials,1395,6/11/2024
G & O Thermal Supply,Materials,171.47,6/11/2024
G & O Thermal Supply,Materials,274.89,6/19/2024
G & O Thermal Supply,Materials,394.49,6/26/2024
G&G Hydraulics Corporation,Materials,945.2,6/18/2024
G&G Hydraulics Corporation,Services,24.74,6/18/2024
"G.E. Riddiford Company, Inc. dba Riddiford Roofing Company",Capital Purchases,119854.11,2/1/2024
GABRIEL MEDINA,Services,130.87,1/17/2024
GABRIEL MEDINA,Services,89.24,2/2/2024
GABRIEL MEDINA,Services,34.57,5/15/2024
"Gabriel, Roeder, Smith & Company",Services,24000,5/29/2024
Galco Industrial Electronics Inc.,Materials,2554.92,2/5/2024
Galco Industrial Electronics Inc.,Materials,1277.46,2/7/2024
Galco Industrial Electronics Inc.,Materials,1813.35,4/23/2024
Galco Industrial Electronics Inc.,Materials,1881.91,5/1/2024
Galco Industrial Electronics Inc.,Services,22.42,5/7/2024
Galco Industrial Electronics Inc.,Materials,1582.96,5/7/2024
"Gallagher Bassett Services, Inc.",Services,358916,1/3/2024
"Gallagher Bassett Services, Inc.",Services,89729,1/8/2024
"Gallagher Bassett Services, Inc.",Services,89729,2/5/2024
"Gallagher Bassett Services, Inc.",Services,5205,2/22/2024
"Gallagher Bassett Services, Inc.",Services,8229,2/27/2024
"Gallagher Bassett Services, Inc.",Services,89729,3/11/2024
"Gallagher Bassett Services, Inc.",Services,872,3/27/2024
"Gallagher Bassett Services, Inc.",Services,89729,4/4/2024
"Gallagher Bassett Services, Inc.",Services,436,4/24/2024
"Gallagher Bassett Services, Inc.",Services,1558,6/6/2024
"Gallagher Bassett Services, Inc.",Services,1558,6/11/2024
"Gallagher Bassett Services, Inc.",Services,97500,6/26/2024
Gallup Inc,Services,7020,4/16/2024
Gallup Inc,Services,26000,6/1/2024
Garveys Office Products,Materials,2806.25,1/1/2024
Garveys Office Products,Materials,2744.5,1/4/2024
Garveys Office Products,Materials,1996,1/8/2024
Garveys Office Products,Capital Purchases,73147.14,1/24/2024
Garveys Office Products,Materials,2250.75,1/25/2024
Garveys Office Products,Capital Purchases,24071.44,2/5/2024
Garveys Office Products,Materials,1099.9,2/7/2024
Garveys Office Products,Materials,748.5,2/8/2024
Garveys Office Products,Capital Purchases,5655.2,3/6/2024
Garveys Office Products,Materials,998,3/14/2024
Garveys Office Products,Materials,1762.2,3/18/2024
Garveys Office Products,Capital Purchases,21279.6,3/18/2024
Garveys Office Products,Capital Purchases,4902.18,3/18/2024
Garveys Office Products,Capital Purchases,5624.49,3/25/2024
Garveys Office Products,Materials,1996,3/27/2024
Garveys Office Products,Materials,998,3/28/2024
Garveys Office Products,Materials,3992,4/1/2024
Garveys Office Products,Capital Purchases,3118.48,4/1/2024
Garveys Office Products,Materials,2296.75,4/1/2024
Garveys Office Products,Capital Purchases,5014.17,4/2/2024
Garveys Office Products,Materials,1996,4/3/2024
Garveys Office Products,Capital Purchases,11259.9,4/11/2024
Garveys Office Products,Capital Purchases,10424.18,4/18/2024
Garveys Office Products,Capital Purchases,1178.4,4/18/2024
Garveys Office Products,Materials,1996,5/7/2024
Garveys Office Products,Materials,748.5,5/10/2024
Garveys Office Products,Capital Purchases,4275.92,5/31/2024
Garveys Office Products,Capital Purchases,9738.03,6/1/2024
Garveys Office Products,Capital Purchases,4677.72,6/1/2024
Garveys Office Products,Capital Purchases,2262.08,6/1/2024
Garveys Office Products,Materials,1996,6/1/2024
Garveys Office Products,Capital Purchases,13284.68,6/6/2024
Garveys Office Products,Capital Purchases,9178.56,6/6/2024
Garveys Office Products,Capital Purchases,21321.12,6/7/2024
Garveys Office Products,Materials,998,6/19/2024
Garveys Office Products,Materials,998,6/26/2024
Garveys Office Products,Capital Purchases,14627.28,7/1/2024
Garveys Office Products,Capital Purchases,4677.72,7/1/2024
Gateway Rail Services  Inc.,Services,2975,4/17/2024
Gateway Rail Services  Inc.,Services,15177.41,4/24/2024
Gateway Rail Services  Inc.,Services,4819.5,4/24/2024
GDS,Capital Purchases,49680,2/1/2024
GDS,Capital Purchases,74520,3/1/2024
GDS,Capital Purchases,56250,4/1/2024
GDS,Capital Purchases,73350,4/16/2024
GDS,Capital Purchases,56250,6/1/2024
GDS,Capital Purchases,74520,6/13/2024
Geib Industries  Inc.,Materials,2064,4/2/2024
Geib Industries  Inc.,Services,74.48,4/2/2024
"Geismar North America, Inc.",Capital Purchases,33080,5/7/2024
Genaro Morales  Jr.,Services,61.64,3/20/2024
Genaro Morales  Jr.,Services,61.64,5/28/2024
Genaro Morales  Jr.,Services,61.64,6/18/2024
Genfare  A Division Of Spx Corp,Materials,925,3/1/2024
"Genuine Cable Group, LLC",Capital Purchases,68385,5/17/2024
GEOFF MUELLER,,12.9,2/5/2024
Geoffrey  L. Lacina,Services,286.33,2/6/2024
Geoffrey  L. Lacina,Services,872,3/28/2024
Geoffrey  L. Lacina,Services,104.12,4/23/2024
Geoffrey  L. Lacina,Services,169.2,6/1/2024
Geoffrey  L. Lacina,Services,390.45,6/24/2024
Gerber Glass Chicago,Services,75,1/11/2024
Gerber Glass Chicago,Services,1070,1/11/2024
Gerber Glass Chicago,Materials,831.25,2/5/2024
Gerber Glass Chicago,Materials,1040.92,2/5/2024
Gerber Glass Chicago,Services,391.06,2/5/2024
Gerber Glass Chicago,Services,588.11,2/23/2024
Gerber Glass Chicago,Services,348.52,2/28/2024
Gerber Glass Chicago,Services,75,3/22/2024
Gerber Glass Chicago,Services,1154.88,3/22/2024
Gerber Glass Chicago,Services,351.58,4/3/2024
Gerber Glass Chicago,Services,414.92,4/11/2024
Gerber Glass Chicago,Services,1176.23,4/11/2024
Gerber Glass Chicago,Services,359.99,4/24/2024
Gerber Glass Chicago,Services,549.44,5/9/2024
Gerber Glass Chicago,Services,979.6,5/21/2024
Germaine Jackson,Services,131,1/12/2024
Germaine Jackson,Services,62.98,2/14/2024
Germaine Jackson,Services,49.58,3/19/2024
Germaine Jackson,Services,56.28,5/13/2024
Germaine Jackson,Services,62.98,5/13/2024
Germaine Jackson,Services,205.02,6/11/2024
"GFL Environmental Services USA, Inc.",Services,25,1/18/2024
"GFL Environmental Services USA, Inc.",Services,25,3/28/2024
"GFL Environmental Services USA, Inc.",Services,25,4/3/2024
"GFL Environmental Services USA, Inc.",Services,25,4/23/2024
Gina Drinkwater,Services,9,5/16/2024
Gina Drinkwater,Services,46.23,5/16/2024
"GIS Cloud, Inc.",Services,800,1/18/2024
Giselle Chavez,Services,145.41,1/22/2024
Giselle Chavez,Services,48.47,1/22/2024
Giselle Chavez,Services,127.3,2/15/2024
Giselle Chavez,Services,127.3,3/12/2024
Giselle Chavez,Services,304.18,4/10/2024
Giselle Chavez,Services,36.31,5/15/2024
Giselle Chavez,Services,226.46,5/15/2024
Giselle Chavez,Services,198.32,6/10/2024
Giselle Chavez,Services,49.58,6/12/2024
"Gist Entities, LLC dba ARCpoint Labs of Orland Park",Services,16150,2/5/2024
"Gist Entities, LLC dba ARCpoint Labs of Orland Park",Services,15960,2/16/2024
"Gist Entities, LLC dba ARCpoint Labs of Orland Park",Services,18855.54,3/14/2024
"Gist Entities, LLC dba ARCpoint Labs of Orland Park",Services,18020.12,4/11/2024
"Gist Entities, LLC dba ARCpoint Labs of Orland Park",Services,19720,5/14/2024
"Gladwin Machinery Solutions, Inc.",Materials,2844,6/14/2024
"Gladwin Machinery Solutions, Inc.",Services,350,6/14/2024
"Gladwin Machinery Solutions, Inc.",Services,113.76,6/14/2024
Glass America,Services,2244,3/6/2024
Glass America,Services,606.5,3/18/2024
Glass America,Services,606.5,4/1/2024
Glass America,Services,717.5,4/1/2024
Glen Mushinski,Services,29.13,5/15/2024
Global Display Solutions  Inc.,Capital Purchases,56250,1/1/2024
Global Display Solutions  Inc.,Capital Purchases,19923,1/4/2024
Global Display Solutions  Inc.,Capital Purchases,172666,2/21/2024
Global Display Solutions  Inc.,Services,33205,2/21/2024
Global Display Solutions  Inc.,Capital Purchases,5280,2/23/2024
Global Display Solutions  Inc.,Capital Purchases,159384,3/28/2024
Global Display Solutions  Inc.,Services,15938.4,3/28/2024
Global Display Solutions  Inc.,Capital Purchases,39846,4/1/2024
Global Display Solutions  Inc.,Services,3984.6,4/1/2024
Global Display Solutions  Inc.,Capital Purchases,132820,4/24/2024
Global Display Solutions  Inc.,Services,13282,4/24/2024
Global Display Solutions  Inc.,Capital Purchases,199230,4/24/2024
Global Display Solutions  Inc.,Services,19923,4/24/2024
Global Display Solutions  Inc.,Capital Purchases,9820,5/7/2024
Global Display Solutions  Inc.,Services,13282,5/15/2024
Global Display Solutions  Inc.,Capital Purchases,132820,5/15/2024
Global Industrial Equipment,Materials,4736.36,1/1/2024
Global Industrial Equipment,Materials,402,1/2/2024
Global Industrial Equipment,Materials,1368.54,2/1/2024
Global Industrial Equipment,Materials,676.45,2/5/2024
Global Industrial Equipment,Materials,147.14,2/5/2024
Global Industrial Equipment,Materials,1713.84,2/20/2024
Global Industrial Equipment,Materials,2369.5,2/28/2024
Global Industrial Equipment,Services,795.8,3/1/2024
Global Industrial Equipment,Services,397.9,3/1/2024
Global Industrial Equipment,Materials,4408,3/1/2024
Global Industrial Equipment,Materials,2204,3/1/2024
Global Industrial Equipment,Materials,3602.28,3/6/2024
Global Industrial Equipment,Materials,287.5,3/25/2024
Global Industrial Equipment,Materials,6167.2,4/1/2024
Global Industrial Equipment,Materials,404.55,4/1/2024
Global Industrial Equipment,Materials,36.99,4/1/2024
Global Industrial Equipment,Materials,2399.76,4/1/2024
Global Industrial Equipment,Materials,1012.7,4/1/2024
Global Industrial Equipment,Materials,269.7,4/1/2024
Global Industrial Equipment,Materials,1199.7,4/2/2024
Global Industrial Equipment,Materials,3222.4,4/3/2024
Global Industrial Equipment,Materials,1371.59,4/5/2024
Global Industrial Equipment,Services,18.95,4/9/2024
Global Industrial Equipment,Materials,1649,4/9/2024
Global Industrial Equipment,Materials,1352,4/15/2024
Global Industrial Equipment,Materials,24440.7,4/23/2024
Global Industrial Equipment,Materials,469.95,4/23/2024
Global Industrial Equipment,Materials,29.06,5/8/2024
Global Industrial Equipment,Materials,224.75,5/9/2024
Global Industrial Equipment,Services,26367,5/10/2024
Global Industrial Equipment,Materials,2053.44,5/15/2024
Global Industrial Equipment,Materials,639,5/15/2024
Global Industrial Equipment,Services,0,5/15/2024
Global Industrial Equipment,Materials,840.62,5/17/2024
Global Industrial Equipment,Materials,1819.56,6/6/2024
Global Industrial Equipment,Materials,138,6/11/2024
Global Industrial Equipment,Materials,3599,6/11/2024
Global Industrial Equipment,Materials,7193.25,6/14/2024
Global Industrial Equipment,Services,486.04,6/14/2024
Global Industrial Equipment,Materials,91.9,6/26/2024
Global Industrial Equipment,Materials,1484.1,6/26/2024
Global Industrial Group,Materials,3077.56,6/14/2024
Global Industrial Group,Services,693.89,6/14/2024
"Global Knowledge Training, LLC",Services,4335,3/27/2024
"Global Knowledge Training, LLC",Services,2600,4/11/2024
Global Project Management,Services,1595,6/17/2024
Global Vision Eyewear,Materials,1284,1/2/2024
Global Vision Eyewear,Materials,224,1/3/2024
Global Vision Eyewear,Materials,222,1/9/2024
Global Vision Eyewear,Materials,88,2/8/2024
Global Vision Eyewear,Materials,441,2/14/2024
Global Vision Eyewear,Materials,702.5,2/20/2024
Global Vision Eyewear,Materials,429,2/21/2024
Global Vision Eyewear,Materials,459,2/23/2024
Global Vision Eyewear,Materials,1217.5,3/13/2024
Global Vision Eyewear,Materials,336,3/21/2024
Global Vision Eyewear,Materials,680,4/3/2024
Global Vision Eyewear,Materials,549,4/23/2024
Global Vision Eyewear,Materials,1011,4/24/2024
Global Vision Eyewear,Materials,64,5/1/2024
Global Vision Eyewear,Materials,3217,6/11/2024
Globetrotters Engineering Corp.,Capital Purchases,23094.54,4/16/2024
Glock Professional Inc,Services,250,4/4/2024
Gma Construction Group,Capital Purchases,33939.64,6/24/2024
GME Supply Company,Materials,8000,2/21/2024
GME Supply Company,Services,0,2/21/2024
GME Supply Company,Materials,7452,4/3/2024
GME Supply Company,Services,110.76,4/3/2024
GME Supply Company,Materials,231.49,4/9/2024
GME Supply Company,Materials,564.75,5/10/2024
GME Supply Company,Materials,1820,5/17/2024
GME Supply Company,Services,78.45,5/17/2024
GME Supply Company,Materials,280,6/6/2024
"GNB Industrial Power, Div. of Stryten Energy LLC",Capital Purchases,131941.2,1/1/2024
"GNB Industrial Power, Div. of Stryten Energy LLC",Materials,665.72,5/20/2024
"GNB Industrial Power, Div. of Stryten Energy LLC",Materials,3328.6,6/14/2024
"GNB Industrial Power, Div. of Stryten Energy LLC",Materials,9320.08,6/19/2024
"GNB Industrial Power, Div. of Stryten Energy LLC",Materials,28487.9,6/24/2024
Gordon Electric Supply,Materials,67670,4/22/2024
Gordon Electric Supply,Services,1710,4/22/2024
Government Finance Officers Assc.,Services,315,2/7/2024
Government Finance Officers Assc.,Services,180,2/27/2024
Government Finance Officers Assc.,Services,280,4/1/2024
Government Finance Officers Assc.,Services,170,6/18/2024
GovHR USA,Services,10545.45,1/11/2024
GovHR USA,Services,8200,1/11/2024
GPS Networking Inc.,Materials,2115,6/6/2024
GPS Networking Inc.,Services,25,6/6/2024
Grainger,Materials,746.38,1/1/2024
Grainger,Materials,1625.37,1/1/2024
Grainger,Services,139,1/1/2024
Grainger,Materials,1234.08,1/1/2024
Grainger,Materials,1658.8,1/1/2024
Grainger,Materials,2196.2,1/1/2024
Grainger,Materials,47.46,1/3/2024
Grainger,Materials,254.56,1/4/2024
Grainger,Materials,4411.54,1/8/2024
Grainger,Materials,839.72,1/8/2024
Grainger,Materials,7600.32,1/8/2024
Grainger,Materials,168.36,1/8/2024
Grainger,Materials,537.91,1/8/2024
Grainger,Materials,295.55,1/8/2024
Grainger,Materials,2435.6,1/8/2024
Grainger,Services,149,1/8/2024
Grainger,Materials,284.22,1/9/2024
Grainger,Materials,2874,1/9/2024
Grainger,Materials,740.8,1/9/2024
Grainger,Services,278,1/9/2024
Grainger,Materials,1059.01,1/9/2024
Grainger,Materials,2168.81,1/9/2024
Grainger,Materials,1613.14,1/11/2024
Grainger,Materials,2113.64,1/11/2024
Grainger,Materials,1498.82,1/11/2024
Grainger,Materials,965.53,1/11/2024
Grainger,Materials,40.02,1/11/2024
Grainger,Materials,484.63,1/11/2024
Grainger,Services,87.95,1/11/2024
Grainger,Materials,883.35,1/12/2024
Grainger,Materials,551.93,1/12/2024
Grainger,Services,149,1/12/2024
Grainger,Materials,345.04,1/12/2024
Grainger,Materials,3289.12,1/12/2024
Grainger,Materials,887.5,1/12/2024
Grainger,Materials,2307.48,1/18/2024
Grainger,Services,61.05,1/18/2024
Grainger,Materials,330.3,1/18/2024
Grainger,Materials,666.2,1/25/2024
Grainger,Materials,23.4,1/25/2024
Grainger,Materials,1306.6,1/25/2024
Grainger,Materials,455.33,1/25/2024
Grainger,Materials,1421.45,1/25/2024
Grainger,Materials,112.64,2/1/2024
Grainger,Materials,448.65,2/1/2024
Grainger,Materials,295.42,2/6/2024
Grainger,Materials,27.68,2/6/2024
Grainger,Materials,624,2/6/2024
Grainger,Materials,709.98,2/7/2024
Grainger,Materials,2380.64,2/7/2024
Grainger,Materials,1778.64,2/7/2024
Grainger,Materials,7718.05,2/7/2024
Grainger,Materials,399.96,2/7/2024
Grainger,Materials,6179.94,2/7/2024
Grainger,Materials,379.31,2/7/2024
Grainger,Materials,71,2/7/2024
Grainger,Materials,2202.47,2/8/2024
Grainger,Materials,280.48,2/12/2024
Grainger,Materials,6149.41,2/12/2024
Grainger,Materials,327.6,2/12/2024
Grainger,Materials,1243.8,2/12/2024
Grainger,Services,2596.69,2/12/2024
Grainger,Services,8.87,2/13/2024
Grainger,Materials,56.94,2/13/2024
Grainger,Materials,468.62,2/13/2024
Grainger,Materials,346.24,2/20/2024
Grainger,Materials,1350.14,2/21/2024
Grainger,Materials,533,2/21/2024
Grainger,Materials,3600.55,2/21/2024
Grainger,Materials,2261.3,2/21/2024
Grainger,Materials,637.54,2/21/2024
Grainger,Materials,8637.13,2/22/2024
Grainger,Materials,164.95,2/22/2024
Grainger,Services,149,2/22/2024
Grainger,Materials,588.64,2/27/2024
Grainger,Materials,671.8,2/27/2024
Grainger,Services,139,2/27/2024
Grainger,Materials,4208.58,2/27/2024
Grainger,Materials,2349.21,2/27/2024
Grainger,Materials,1176.82,2/27/2024
Grainger,Materials,1193.92,3/1/2024
Grainger,Materials,861.97,3/1/2024
Grainger,Materials,2603.76,3/1/2024
Grainger,Materials,253.49,3/1/2024
Grainger,Materials,2603.76,3/1/2024
Grainger,Materials,317.49,3/1/2024
Grainger,Services,149,3/1/2024
Grainger,Materials,453.53,3/1/2024
Grainger,Services,25,3/1/2024
Grainger,Materials,1378.62,3/1/2024
Grainger,Services,149,3/1/2024
Grainger,Materials,3618,3/1/2024
Grainger,Materials,3644.09,3/1/2024
Grainger,Materials,947.28,3/1/2024
Grainger,Materials,5134.8,3/1/2024
Grainger,Services,149,3/1/2024
Grainger,Services,149,3/1/2024
Grainger,Services,157.89,3/1/2024
Grainger,Materials,464.58,4/1/2024
Grainger,Materials,1115.95,4/1/2024
Grainger,Materials,975.55,4/1/2024
Grainger,Materials,20,4/1/2024
Grainger,Materials,1990,4/1/2024
Grainger,Materials,391.36,4/1/2024
Grainger,Materials,2940.39,4/1/2024
Grainger,Materials,3291.6,4/1/2024
Grainger,Services,25,4/1/2024
Grainger,Services,45,4/1/2024
Grainger,,253.92,4/2/2024
Grainger,Materials,5001.18,4/2/2024
Grainger,Materials,1760.59,4/2/2024
Grainger,Materials,872.6,4/2/2024
Grainger,Materials,4711.62,4/2/2024
Grainger,Materials,9633.33,4/2/2024
Grainger,Materials,8591.89,4/2/2024
Grainger,Materials,5561.04,4/2/2024
Grainger,Services,139,4/2/2024
Grainger,Materials,700,4/2/2024
Grainger,Materials,690.94,4/2/2024
Grainger,Services,149,4/2/2024
Grainger,Materials,767.5,4/2/2024
Grainger,Materials,601.58,4/2/2024
Grainger,Materials,305.72,4/2/2024
Grainger,Services,1642.44,4/2/2024
Grainger,Services,50,4/2/2024
Grainger,Materials,289.6,4/3/2024
Grainger,Materials,760.64,4/3/2024
Grainger,Materials,99.8,4/3/2024
Grainger,Materials,466.87,4/3/2024
Grainger,Materials,1169.24,4/3/2024
Grainger,Materials,8826.72,4/3/2024
Grainger,Services,25,4/3/2024
Grainger,Materials,1159.02,4/8/2024
Grainger,Materials,1211.24,4/8/2024
Grainger,Materials,454.76,4/8/2024
Grainger,Materials,2658.31,4/8/2024
Grainger,Materials,2576.3,4/8/2024
Grainger,Materials,2449.77,4/8/2024
Grainger,Materials,2205.4,4/8/2024
Grainger,Materials,377.59,4/8/2024
Grainger,Services,1093.98,4/8/2024
Grainger,Services,149,4/8/2024
Grainger,Materials,1447.11,4/11/2024
Grainger,Materials,4452.38,4/11/2024
Grainger,Materials,164.42,4/11/2024
Grainger,Materials,152.55,4/11/2024
Grainger,Materials,2163.96,4/11/2024
Grainger,Materials,686.65,4/11/2024
Grainger,Materials,1811.02,4/11/2024
Grainger,Services,149,4/11/2024
Grainger,Services,149,4/12/2024
Grainger,Materials,1076.64,4/12/2024
Grainger,Materials,261.23,4/18/2024
Grainger,Materials,1683.87,4/22/2024
Grainger,Services,25,4/22/2024
Grainger,Materials,428.08,4/22/2024
Grainger,Materials,2943.25,4/24/2024
Grainger,Materials,1546.08,4/24/2024
Grainger,Services,149,4/24/2024
Grainger,Services,149,4/24/2024
Grainger,Materials,780.24,5/1/2024
Grainger,Materials,1821.94,5/1/2024
Grainger,Materials,12479.31,5/1/2024
Grainger,Materials,573.98,5/1/2024
Grainger,Materials,446.52,5/1/2024
Grainger,Materials,2673.38,5/1/2024
Grainger,Materials,545.18,5/1/2024
Grainger,Materials,740.8,5/1/2024
Grainger,Services,149,5/1/2024
Grainger,Services,25,5/1/2024
Grainger,Materials,956.54,5/1/2024
Grainger,Services,149,5/1/2024
Grainger,Materials,9409.92,5/1/2024
Grainger,Materials,2657.53,5/1/2024
Grainger,Services,0,5/1/2024
Grainger,Services,25,5/1/2024
Grainger,Services,39.32,5/7/2024
Grainger,Materials,1033.29,5/7/2024
Grainger,Materials,3150.42,5/9/2024
Grainger,Materials,501.5,5/9/2024
Grainger,Materials,1962.44,5/9/2024
Grainger,Services,0,5/9/2024
Grainger,Materials,1271.88,5/9/2024
Grainger,Materials,510.21,5/10/2024
Grainger,Materials,3206.98,5/10/2024
Grainger,Materials,1854.96,5/10/2024
Grainger,Materials,9574.95,5/10/2024
Grainger,Services,734.65,5/10/2024
Grainger,Materials,74.38,5/10/2024
Grainger,Services,25,5/10/2024
Grainger,Materials,6872.65,5/10/2024
Grainger,Services,25,5/10/2024
Grainger,Materials,755.52,5/10/2024
Grainger,Services,149,5/10/2024
Grainger,Services,109.68,5/10/2024
Grainger,Materials,857.55,5/15/2024
Grainger,Materials,529.2,5/15/2024
Grainger,Materials,21.05,5/15/2024
Grainger,Materials,441.68,5/15/2024
Grainger,Materials,127.45,5/21/2024
Grainger,Materials,4301.07,5/21/2024
Grainger,Materials,281.97,5/21/2024
Grainger,Materials,179.39,5/21/2024
Grainger,Materials,923.6,5/21/2024
Grainger,Materials,1733.16,5/21/2024
Grainger,Materials,320.6,5/28/2024
Grainger,Materials,107.2,5/29/2024
Grainger,Materials,1230.54,5/30/2024
Grainger,Materials,992.57,5/30/2024
Grainger,Materials,672,5/30/2024
Grainger,Materials,2976,5/30/2024
Grainger,Materials,691.85,5/30/2024
Grainger,Materials,504,6/1/2024
Grainger,Materials,5207.05,6/1/2024
Grainger,Materials,1663.46,6/1/2024
Grainger,Materials,1566.06,6/1/2024
Grainger,Materials,1663.46,6/1/2024
Grainger,Materials,671.57,6/1/2024
Grainger,Materials,238.8,6/1/2024
Grainger,Services,149,6/1/2024
Grainger,Materials,153.18,6/1/2024
Grainger,Materials,6124.99,6/1/2024
Grainger,Materials,1907.09,6/1/2024
Grainger,Services,25,6/1/2024
Grainger,Services,149,6/1/2024
Grainger,Services,149,6/1/2024
Grainger,Services,25,6/1/2024
Grainger,Materials,50.2,6/5/2024
Grainger,Materials,554.13,6/6/2024
Grainger,Materials,1826.64,6/6/2024
Grainger,Materials,1437.08,6/6/2024
Grainger,Materials,3085.28,6/7/2024
Grainger,Materials,15954.4,6/11/2024
Grainger,Materials,1240.2,6/11/2024
Grainger,Services,149,6/11/2024
Grainger,Materials,2937.67,6/11/2024
Grainger,Materials,191.27,6/11/2024
Grainger,Services,149,6/11/2024
Grainger,Materials,1554,6/12/2024
Grainger,Materials,983.28,6/14/2024
Grainger,Materials,146.6,6/14/2024
Grainger,Materials,3939.73,6/14/2024
Grainger,Services,25,6/14/2024
Grainger,Materials,1340.16,6/17/2024
Grainger,Materials,5800.64,6/17/2024
Grainger,Materials,3502.12,6/17/2024
Grainger,Services,139,6/17/2024
Grainger,Materials,221.04,6/17/2024
Grainger,Services,139,6/17/2024
Grainger,Materials,649.84,6/18/2024
Grainger,Services,149,6/19/2024
Grainger,Materials,1127.62,6/19/2024
Grainger,Materials,547.68,6/19/2024
Grainger,Services,15672.2,6/19/2024
Grainger,Materials,664.22,6/20/2024
Grainger,Materials,5629.25,6/20/2024
Grainger,Services,25,6/20/2024
Grainger,Materials,686.53,6/20/2024
Grainger,Materials,388.8,6/26/2024
Grainger,Materials,751.12,6/26/2024
Graphic Arts Studio,Services,18369.33,2/8/2024
Graphic Arts Studio,Services,11346.04,2/13/2024
Graphic Arts Studio,Services,35058.12,4/2/2024
Graphic Arts Studio,Services,30522.04,4/22/2024
Graphic Arts Studio,Services,20853.38,5/10/2024
Graphic Arts Studio,Services,5240,6/6/2024
Graphic Products  Inc.,Materials,1795,2/5/2024
Graphic Products  Inc.,Materials,3284.9,5/8/2024
Graphic Products  Inc.,Materials,507.98,5/21/2024
Graybar Electric Co.  Inc.,Materials,11169.37,2/21/2024
Graymills Corp.,Materials,2424,1/11/2024
Graymills Corp.,Services,60.52,1/11/2024
Graymills Corp.,Materials,833,6/18/2024
Graymills Corp.,Services,27,6/18/2024
Great Realty Advisors  Inc.,Services,1000,2/20/2024
Great Realty Advisors  Inc.,Services,1000,3/20/2024
Great Realty Advisors  Inc.,Services,1300,5/1/2024
Great Realty Advisors  Inc.,Services,1300,5/3/2024
Great Realty Advisors  Inc.,Services,4800,6/6/2024
Greater Cook County Council Of Police Chiefs,Services,50,1/23/2024
Greenbrier Rail Services,Materials,2589,2/8/2024
Gregory Godfrey,Services,159.23,1/11/2024
Gregory Godfrey,Services,17,3/20/2024
Gregory Godfrey,Services,192.87,3/20/2024
Gregory Godfrey,Services,30,4/25/2024
"GSG-Material Testing, Inc. DBA The HOH Group, Inc.",Capital Purchases,34085.71,2/1/2024
"GSG-Material Testing, Inc. DBA The HOH Group, Inc.",Capital Purchases,32045.47,2/1/2024
"GSG-Material Testing, Inc. DBA The HOH Group, Inc.",Capital Purchases,36796.35,5/10/2024
"GSG-Material Testing, Inc. DBA The HOH Group, Inc.",Capital Purchases,23485.3,6/12/2024
"GSG-Material Testing, Inc. DBA The HOH Group, Inc.",Capital Purchases,6990.57,6/24/2024
Guadalupe Franco,Services,13.31,1/22/2024
Gwendolyn Parks,Services,43.82,5/16/2024
Gwendolyn Parks,Services,3,5/16/2024
H W Lochner  Inc.,Capital Purchases,97825.54,1/22/2024
H W Lochner  Inc.,Capital Purchases,347852.77,4/22/2024
H W Lochner  Inc.,Capital Purchases,142427.15,6/12/2024
"Hadady, LLC",Materials,560,2/7/2024
"Hadady, LLC",Materials,693.75,6/13/2024
Harkamel Mann,Services,49.9,1/25/2024
Harkamel Mann,Services,386,5/16/2024
Harkamel Mann,Services,372.18,5/16/2024
Harkamel Mann,Services,185,5/16/2024
Harlan Weivoda,Services,25.46,1/11/2024
Harlan Weivoda,Services,24.12,1/23/2024
Harlan Weivoda,Services,25.46,2/15/2024
Harlan Weivoda,Services,25.46,3/7/2024
Harlan Weivoda,Services,25.46,5/21/2024
Harlan Weivoda,Services,50.92,5/28/2024
Harlan Weivoda,Services,25.46,6/27/2024
Harris Ice Co.  Inc.,Materials,200,1/18/2024
Harris Ice Co.  Inc.,Materials,178,2/1/2024
Harris Ice Co.  Inc.,Materials,250,4/1/2024
Harsco Rail LLC,Materials,213.64,1/1/2024
Harsco Rail LLC,Materials,6168.95,1/23/2024
Harsco Rail LLC,Materials,959.97,2/1/2024
Harsco Rail LLC,Materials,1979.5,2/2/2024
Harsco Rail LLC,Materials,616.2,2/5/2024
Harsco Rail LLC,Materials,2521.44,2/7/2024
Harsco Rail LLC,Materials,692.25,2/15/2024
Harsco Rail LLC,Materials,367.1,2/20/2024
Harsco Rail LLC,Materials,8161.35,2/20/2024
Harsco Rail LLC,Materials,1379.16,2/23/2024
Harsco Rail LLC,Materials,39636.12,2/28/2024
Harsco Rail LLC,Materials,517.86,3/1/2024
Harsco Rail LLC,Materials,11.88,3/5/2024
Harsco Rail LLC,Materials,44.16,3/5/2024
Harsco Rail LLC,Materials,9880.78,3/14/2024
Harsco Rail LLC,Materials,1722.44,3/14/2024
Harsco Rail LLC,Materials,40332.54,3/15/2024
Harsco Rail LLC,Materials,4745.01,3/19/2024
Harsco Rail LLC,Materials,4408.5,3/25/2024
Harsco Rail LLC,Materials,1685.64,3/25/2024
Harsco Rail LLC,Materials,247.76,3/26/2024
Harsco Rail LLC,Materials,687.63,4/1/2024
Harsco Rail LLC,Materials,9265.11,4/9/2024
Harsco Rail LLC,Materials,16308.9,4/10/2024
Harsco Rail LLC,Materials,689.91,4/10/2024
Harsco Rail LLC,Materials,1857.76,4/17/2024
Harsco Rail LLC,Materials,23025.43,4/17/2024
Harsco Rail LLC,Materials,2146.82,4/19/2024
Harsco Rail LLC,Materials,2650.57,4/29/2024
Harsco Rail LLC,Materials,7677.12,5/1/2024
Harsco Rail LLC,Materials,1379.82,5/1/2024
Harsco Rail LLC,Materials,41.6,5/1/2024
Harsco Rail LLC,Materials,29542.19,5/16/2024
Harsco Rail LLC,Materials,306.98,6/7/2024
Harsco Rail LLC,Materials,9164.95,6/11/2024
Harsco Rail LLC,Materials,17835.9,6/14/2024
Harsco Rail LLC,Materials,1052.9,6/18/2024
Harsco Rail LLC,Materials,13675.74,6/26/2024
Harsco Rail LLC,Materials,1818.82,6/27/2024
Harsco Rail LLC,Materials,133.48,6/28/2024
"Hatch Associates Consultants, Inc.",Capital Purchases,112161.52,1/1/2024
"Hatch Associates Consultants, Inc.",Capital Purchases,4919.14,1/12/2024
"Hatch Associates Consultants, Inc.",Services,55067.08,1/22/2024
"Hatch Associates Consultants, Inc.",Capital Purchases,11555.13,1/25/2024
"Hatch Associates Consultants, Inc.",Capital Purchases,56555.48,1/25/2024
"Hatch Associates Consultants, Inc.",Capital Purchases,60327.88,1/26/2024
"Hatch Associates Consultants, Inc.",Capital Purchases,13427.12,2/1/2024
"Hatch Associates Consultants, Inc.",Capital Purchases,56912.4,2/9/2024
"Hatch Associates Consultants, Inc.",Capital Purchases,11204.14,2/13/2024
"Hatch Associates Consultants, Inc.",Capital Purchases,303316.88,2/21/2024
"Hatch Associates Consultants, Inc.",Services,43965.16,2/21/2024
"Hatch Associates Consultants, Inc.",Capital Purchases,140201.9,2/23/2024
"Hatch Associates Consultants, Inc.",Capital Purchases,118679.22,3/14/2024
"Hatch Associates Consultants, Inc.",Capital Purchases,11385.99,3/14/2024
"Hatch Associates Consultants, Inc.",Capital Purchases,73072.86,3/21/2024
"Hatch Associates Consultants, Inc.",Services,20092.29,3/21/2024
"Hatch Associates Consultants, Inc.",Capital Purchases,22561.1,3/27/2024
"Hatch Associates Consultants, Inc.",Capital Purchases,14625.74,4/1/2024
"Hatch Associates Consultants, Inc.",Capital Purchases,18571.31,4/3/2024
"Hatch Associates Consultants, Inc.",Capital Purchases,34825.16,5/1/2024
"Hatch Associates Consultants, Inc.",Capital Purchases,68967.57,5/1/2024
"Hatch Associates Consultants, Inc.",Capital Purchases,32451.66,5/8/2024
"Hatch Associates Consultants, Inc.",Capital Purchases,187243.04,6/12/2024
"Hatch Associates Consultants, Inc.",Capital Purchases,3298.44,6/24/2024
"Hatch Associates Consultants, Inc.",Capital Purchases,60753.53,6/24/2024
Haysite Reinforced Plastics  LLC,Capital Purchases,77405.04,1/1/2024
Haysite Reinforced Plastics  LLC,Capital Purchases,77405.04,2/5/2024
Haysite Reinforced Plastics  LLC,Capital Purchases,100178.62,3/15/2024
Haysite Reinforced Plastics  LLC,Capital Purchases,24287.63,4/1/2024
Haysite Reinforced Plastics  LLC,Capital Purchases,24287.63,4/3/2024
Haysite Reinforced Plastics  LLC,Capital Purchases,48575.26,4/11/2024
Haysite Reinforced Plastics  LLC,Capital Purchases,24287.63,5/1/2024
Haysite Reinforced Plastics  LLC,Capital Purchases,48575.26,5/21/2024
Haysite Reinforced Plastics  LLC,Capital Purchases,24287.63,6/1/2024
Haysite Reinforced Plastics  LLC,Capital Purchases,24287.63,6/17/2024
Hdr Engineering  Inc.,Capital Purchases,95063.83,1/4/2024
Hdr Engineering  Inc.,Capital Purchases,77210.33,2/13/2024
Hdr Engineering  Inc.,Capital Purchases,156448.06,3/5/2024
Hdr Engineering  Inc.,Capital Purchases,176534.66,4/1/2024
Hdr Engineering  Inc.,Capital Purchases,130487.73,5/8/2024
Hdr Engineering  Inc.,Capital Purchases,82854.27,6/12/2024
Hdr Engineering  Inc.,Capital Purchases,29623.07,6/24/2024
Hector Becerra,Services,53.59,3/14/2024
Hector Escalante Jr.,Services,182.48,1/12/2024
Hector Escalante Jr.,Services,220.03,2/8/2024
Hector Escalante Jr.,Services,245.89,3/5/2024
Hector Escalante Jr.,Services,277.92,4/5/2024
Hector Escalante Jr.,Services,314.1,5/7/2024
Hector Escalante Jr.,Services,300.96,6/4/2024
Helsel-Jepperson Electrical Inc.,Materials,1860,1/23/2024
Helsel-Jepperson Electrical Inc.,Materials,7130,3/8/2024
Herbert Carl Nitz,Services,172.5,6/24/2024
Herbert Carl Nitz,Services,25.19,6/24/2024
Herbert Carl Nitz,Services,504,6/24/2024
Herbert Carl Nitz,Services,120,6/24/2024
Herbert Carl Nitz,Services,283.76,6/24/2024
Herman Alexander,Services,127.3,4/11/2024
"Herzog Services, Inc.",Services,9119.12,2/27/2024
Hewlett Packard Enterprise Company,Services,327026.74,6/24/2024
"High Volatage, Inc.",Materials,6800,4/1/2024
"High Volatage, Inc.",Services,165,4/1/2024
Hilary E. Konczal,Services,118.5,1/4/2024
Hilary E. Konczal,Services,66,1/4/2024
Hilary E. Konczal,Services,68.34,1/4/2024
Hilary E. Konczal,Services,124.36,3/14/2024
Hilary E. Konczal,Services,288,3/14/2024
Hilary E. Konczal,Services,310.5,3/19/2024
Hilary E. Konczal,Services,29.28,3/19/2024
Hilary E. Konczal,Services,118.5,4/11/2024
Hinshaw & Culbertson,Claims & Insurance,587.45,1/12/2024
Hinshaw & Culbertson,Services,351,1/12/2024
Hinshaw & Culbertson,Services,117,2/22/2024
Hinshaw & Culbertson,Claims & Insurance,1174.9,2/27/2024
Hirail Corp.,Materials,69785.07,6/26/2024
Hirewell Inc.,Services,17000,1/10/2024
Hirewell Inc.,Services,17000,2/7/2024
Hirewell Inc.,Services,32823.75,3/21/2024
Hirewell Inc.,Services,17000,4/15/2024
Hirewell Inc.,Services,17000,4/19/2024
Hirewell Inc.,Services,17000,5/24/2024
Hirewell Inc.,Services,17000,6/24/2024
Hispanic America Construction Industry Association (HACIA),Services,2000,2/29/2024
"Hitachi Rail STS USA, Inc.",Capital Purchases,12911.46,1/26/2024
"Hitachi Rail STS USA, Inc.",Capital Purchases,2063.4,2/2/2024
"Hitachi Rail STS USA, Inc.",Capital Purchases,85484.36,2/7/2024
"Hitachi Rail STS USA, Inc.",Materials,9692,2/7/2024
"Hitachi Rail STS USA, Inc.",Capital Purchases,188084.41,2/7/2024
"Hitachi Rail STS USA, Inc.",Capital Purchases,62822.98,2/7/2024
"Hitachi Rail STS USA, Inc.",Capital Purchases,78283.97,2/16/2024
"Hitachi Rail STS USA, Inc.",Capital Purchases,113979.15,2/16/2024
"Hitachi Rail STS USA, Inc.",Capital Purchases,12041.63,3/1/2024
"Hitachi Rail STS USA, Inc.",Capital Purchases,7605.24,3/5/2024
"Hitachi Rail STS USA, Inc.",Capital Purchases,90070.5,3/14/2024
"Hitachi Rail STS USA, Inc.",Capital Purchases,36028.2,3/25/2024
"Hitachi Rail STS USA, Inc.",Capital Purchases,14247.39,4/9/2024
"Hitachi Rail STS USA, Inc.",Capital Purchases,23022.05,4/9/2024
"Hitachi Rail STS USA, Inc.",Capital Purchases,5392.73,4/19/2024
"Hitachi Rail STS USA, Inc.",Capital Purchases,57645.12,4/29/2024
"Hitachi Rail STS USA, Inc.",Capital Purchases,3851.95,4/29/2024
"Hitachi Rail STS USA, Inc.",Materials,1649.72,6/1/2024
"Hitachi Rail STS USA, Inc.",Materials,25199.2,6/1/2024
"Hitachi Rail STS USA, Inc.",Capital Purchases,41561.65,6/7/2024
"Hitachi Rail STS USA, Inc.",Materials,11630.4,6/7/2024
"Hitachi Rail STS USA, Inc.",Capital Purchases,27475.8,6/17/2024
H-M Oakbrook Illinois Inc. DBA Chicago Marriott Oak Brook,Services,31422.96,4/22/2024
H-M Oakbrook Illinois Inc. DBA Chicago Marriott Oak Brook,Services,30912.96,5/2/2024
HNTB Corp.,Services,144814,1/1/2024
HNTB Corp.,Services,39366.25,1/22/2024
HNTB Corp.,Capital Purchases,121036.3,4/5/2024
Holland & Knight Llp,Services,25000,3/7/2024
Holland L.P.,Services,42762.5,1/18/2024
Holland L.P.,Services,26950,1/18/2024
Holland L.P.,Services,22412.5,1/18/2024
Holland L.P.,Services,38500,1/18/2024
Holland L.P.,Services,11550,2/21/2024
Holland L.P.,Services,57475,5/20/2024
Holland L.P.,Services,42625,5/20/2024
Holland L.P.,Services,29975,5/20/2024
Holland L.P.,Services,27775,5/20/2024
Home Depot,Services,1040.9,1/1/2024
Home Depot,Services,2565.33,1/2/2024
Home Depot,Materials,124.25,1/11/2024
Home Depot,Services,0,1/11/2024
Home Depot,Materials,397,2/15/2024
Home Depot,Materials,107.99,4/11/2024
Home Depot,Services,35,6/7/2024
Home Depot,Services,689.8,6/7/2024
Home Depot,Materials,3708,6/18/2024
Home Depot,Services,158,6/18/2024
Home Depot,Services,2099.3,6/18/2024
"Home Depot U.S.A., Inc. DBA The Home Depot Pro",Materials,4499.9,2/1/2024
"Home Depot U.S.A., Inc. DBA The Home Depot Pro",Services,55,2/1/2024
Hotstart Sales  Llc,Services,158.91,1/19/2024
Hotstart Sales  Llc,Materials,5435.25,1/19/2024
Hotstart Sales  Llc,Services,84.8,1/23/2024
Hotstart Sales  Llc,Materials,3261.15,1/23/2024
Hp  Inc.,Services,4439.49,1/1/2024
Hp  Inc.,Services,4483.02,3/1/2024
Hp  Inc.,Services,5815.57,3/1/2024
Hp  Inc.,Services,5522.71,6/1/2024
Hp  Inc.,Services,6205.45,6/1/2024
"HUBBELL POWER SYSTEMS, INC",Services,2500,1/19/2024
"HUBBELL POWER SYSTEMS, INC",Services,2000,3/11/2024
Hydraulic Design & Repair Inc.,Materials,6204.69,1/1/2024
Hydraulic Design & Repair Inc.,Materials,1519.66,1/3/2024
Hydraulic Design & Repair Inc.,Materials,343.77,1/12/2024
Hydraulic Design & Repair Inc.,Services,3199.94,1/12/2024
Hydraulic Design & Repair Inc.,Services,850,1/19/2024
Hydraulic Design & Repair Inc.,Services,6190.89,1/23/2024
Hydraulic Design & Repair Inc.,Materials,1739.95,2/2/2024
Hydraulic Design & Repair Inc.,Services,1955.51,2/2/2024
Hydraulic Design & Repair Inc.,Services,2959.5,2/13/2024
Hydraulic Design & Repair Inc.,Materials,7554.27,2/13/2024
Hydraulic Design & Repair Inc.,Materials,29443.02,3/1/2024
Hydraulic Design & Repair Inc.,Services,6067.51,3/1/2024
Hydraulic Design & Repair Inc.,Services,747.83,3/4/2024
Hydraulic Design & Repair Inc.,Services,425,3/14/2024
Hydraulic Design & Repair Inc.,Materials,5640.8,3/26/2024
Hydraulic Design & Repair Inc.,Materials,3118.42,3/26/2024
Hydraulic Design & Repair Inc.,Services,2494.69,3/26/2024
Hydraulic Design & Repair Inc.,Services,1593.17,4/3/2024
Hydraulic Design & Repair Inc.,Services,2382.17,4/9/2024
Hydraulic Design & Repair Inc.,Services,855.45,4/9/2024
Hydraulic Design & Repair Inc.,Services,860.6,4/11/2024
Hydraulic Design & Repair Inc.,Materials,1179.72,4/23/2024
Hydraulic Design & Repair Inc.,Services,425,4/23/2024
Hydraulic Design & Repair Inc.,Services,2034.19,4/30/2024
Hydraulic Design & Repair Inc.,Materials,15582.6,5/16/2024
Hydraulic Design & Repair Inc.,Services,10631.91,5/16/2024
Hydraulic Design & Repair Inc.,Services,752.92,5/21/2024
Hydraulic Design & Repair Inc.,Materials,287.02,6/11/2024
Hydraulic Design & Repair Inc.,Services,4574.42,6/11/2024
Hydraulic Design & Repair Inc.,Services,1187.71,6/20/2024
Hydraulic Design & Repair Inc.,Services,338.43,6/24/2024
Hydraulic Design & Repair Inc.,Services,1347.23,6/26/2024
Hy-Test Safety Shoe Service,Services,20001.89,2/21/2024
Hy-Test Safety Shoe Service,Services,14665.29,4/3/2024
Hy-Test Safety Shoe Service,Services,11764.44,5/8/2024
Hy-Test Safety Shoe Service,Services,5484.74,6/7/2024
"I S Technology Solutions, Inc.",Materials,2500,3/1/2024
IALEIA INC,Services,50,4/5/2024
IAN PASCUAL,Services,32.16,6/21/2024
IBM Corp.,Services,110389.23,1/17/2024
IBM Corp.,Services,763065,1/18/2024
IBM Corp.,Services,110389.23,2/22/2024
IBM Corp.,Services,57500,4/2/2024
IBM Corp.,Services,57500,6/5/2024
"ICC Group, Inc.",Services,228260.09,2/1/2024
"ICC Group, Inc.",Services,180748.81,2/1/2024
"ICC Group, Inc.",Services,207971.33,4/1/2024
"ICC Group, Inc.",Services,178281.76,5/1/2024
"ICC Group, Inc.",Services,510135.81,5/1/2024
"ICC Group, Inc.",Services,148124.4,5/3/2024
"ICC Group, Inc.",Services,25876.54,5/31/2024
"ICC Group, Inc.",Materials,54734.25,5/31/2024
"ICC Group, Inc.",Services,491515.2,6/5/2024
"ICC Group, Inc.",Services,122878.8,6/5/2024
"ICC Group, Inc.",Capital Purchases,836919.15,6/5/2024
"ICC Group, Inc.",Services,285244,6/7/2024
"ICC Group, Inc.",Services,54670,6/7/2024
"ICC Group, Inc.",Services,104600.25,6/7/2024
"Idesco Safety Co., LLC",Materials,393.12,3/5/2024
"Idesco Safety Co., LLC",Materials,2975,3/22/2024
"Idesco Safety Co., LLC",Materials,77.5,3/26/2024
Ihc Construction Companies  Llc,Capital Purchases,1146694.74,1/1/2024
Ihc Construction Companies  Llc,Capital Purchases,5081320.42,2/1/2024
Ihc Construction Companies  Llc,Claims & Insurance,94443.9,2/15/2024
Ihc Construction Companies  Llc,Capital Purchases,3596730.89,3/1/2024
Ihc Construction Companies  Llc,Capital Purchases,4656727.48,4/1/2024
Ihc Construction Companies  Llc,Capital Purchases,914178.67,4/12/2024
Ihc Construction Companies  Llc,Capital Purchases,2127486.37,4/18/2024
Ihc Construction Companies  Llc,Capital Purchases,144925.98,5/1/2024
Ihc Construction Companies  Llc,Capital Purchases,2931431.55,5/1/2024
Ihc Construction Companies  Llc,Services,14700,5/1/2024
Ihc Construction Companies  Llc,Capital Purchases,645308.38,5/15/2024
Ihc Construction Companies  Llc,Capital Purchases,1168135.76,6/5/2024
Ileas,Services,175,1/3/2024
Ileas,Services,175,1/3/2024
Ileas,Services,175,1/3/2024
Ileas,Services,175,1/18/2024
Ileas,Services,350,3/21/2024
ILETSB Executive Institute,Services,900,2/21/2024
ILETSB Executive Institute,Services,175,4/3/2024
Illinois Assn Of Chiefs Of Police,Services,115,2/5/2024
Illinois Assn Of Chiefs Of Police,Services,195,4/26/2024
Illinois Central Railroad,Services,20877.62,1/2/2024
Illinois Central Railroad,Services,12450,1/5/2024
Illinois Central Railroad,Services,11908.97,1/23/2024
Illinois Central Railroad,Services,25259.09,2/5/2024
Illinois Central Railroad,Services,41207,2/23/2024
Illinois Central Railroad,Services,20701.86,3/13/2024
Illinois Central Railroad,Services,20909.66,3/22/2024
Illinois Central Railroad,Services,1340.07,4/9/2024
Illinois Central Railroad,Services,20844.69,4/22/2024
Illinois Central Railroad,Services,5575,5/14/2024
Illinois Central Railroad,Services,21489.05,6/21/2024
Illinois Central Railroad,Services,10550,6/27/2024
Illinois Department of Labor,Claims & Insurance,250,1/3/2024
Illinois Fire Chiefs Association,Services,150,1/2/2024
Illinois Homicide Investigators Assn.,Services,2200,1/22/2024
Illinois Juvenile Officers Assoc.,Services,230,5/30/2024
Illinois Law Enforcement Administrative Professionals (LEAP),Services,75,1/18/2024
Illinois Law Enforcement Administrative Professionals (LEAP),Services,698,5/14/2024
Illinois Law Enforcement Administrative Professionals (LEAP),Services,379,5/20/2024
Illinois Operation Lifesaver,Services,3000,2/7/2024
"ILLINOIS PROSECUTOR SERVICES, LLC",Services,250,5/10/2024
ILLINOIS STATE POLICE ACADEMY,Services,5691.55,3/4/2024
Illinois Tactical Officers Association,Services,160,3/19/2024
Illinois Tactical Officers Association,Services,520,3/19/2024
Illinois Tactical Officers Association,Services,40,3/20/2024
Illinois Tactical Officers Association,Services,40,3/21/2024
Illinois Tactical Officers Association,Services,40,4/17/2024
Illinois Tactical Officers Association,Services,715,6/11/2024
Illinois Tactical Officers Association,Services,715,6/13/2024
Illinois Tollway,Services,44.7,1/2/2024
Illinois Tollway,Services,47.5,1/9/2024
Illinois Tollway,Services,29.7,1/18/2024
Illinois Tollway,Services,16450.93,1/23/2024
Illinois Tollway,Services,33.15,2/13/2024
Illinois Tollway,Services,13.5,2/23/2024
Illinois Tollway,Services,63.9,2/27/2024
Illinois Tollway,Services,22.5,3/4/2024
Illinois Tollway,Services,13.9,4/3/2024
Illinois Tollway,Services,15898.7,4/18/2024
Illinois Tollway,Services,48.9,4/18/2024
Illinois Tollway,Services,164.7,5/24/2024
Illinois Tollway,Services,79.4,5/28/2024
Illinois Tollway,Services,36.15,6/4/2024
Illinois Tollway,Services,284.25,6/27/2024
"Illumia Consulting Group, LLC",Services,12125,2/26/2024
"Illumia Consulting Group, LLC",Services,6380,3/4/2024
"Illumia Consulting Group, LLC",Services,15700,4/10/2024
"Illumia Consulting Group, LLC",Services,12073,6/1/2024
"Illumia Consulting Group, LLC",Services,1200,6/10/2024
Image Systems & Business Solutions Llc,Materials,949,2/6/2024
Impact Networking  Llc,Services,2742.59,1/11/2024
Impact Networking  Llc,Services,2751.04,1/16/2024
Impact Networking  Llc,Services,2742.59,1/25/2024
Impact Networking  Llc,Services,2742.59,2/21/2024
Impact Networking  Llc,Services,36228.57,4/16/2024
Independent Machine Co.  Inc.,Materials,2125,2/6/2024
Independent Machine Co.  Inc.,Materials,1700,6/6/2024
Independent Recycling Services  Inc,Utilities,56069.22,1/10/2024
Independent Recycling Services  Inc,Services,1141.83,1/10/2024
Independent Recycling Services  Inc,Services,335,1/11/2024
Independent Recycling Services  Inc,Services,1942.51,1/12/2024
Independent Recycling Services  Inc,Services,364.54,1/16/2024
Independent Recycling Services  Inc,Services,4684.46,1/16/2024
Independent Recycling Services  Inc,Services,315.65,1/16/2024
Independent Recycling Services  Inc,Services,322.41,2/7/2024
Independent Recycling Services  Inc,Utilities,56069.22,2/9/2024
Independent Recycling Services  Inc,Services,2916.97,2/9/2024
Independent Recycling Services  Inc,Services,1602.38,2/14/2024
Independent Recycling Services  Inc,Services,761.16,2/14/2024
Independent Recycling Services  Inc,Services,393.77,2/15/2024
Independent Recycling Services  Inc,Utilities,56069.22,3/6/2024
Independent Recycling Services  Inc,Services,1770.78,3/8/2024
Independent Recycling Services  Inc,Services,941.46,3/14/2024
Independent Recycling Services  Inc,Services,631.3,4/1/2024
Independent Recycling Services  Inc,Services,337.25,4/10/2024
Independent Recycling Services  Inc,Materials,1586.08,4/10/2024
Independent Recycling Services  Inc,Services,1196.8,4/10/2024
Independent Recycling Services  Inc,Services,2517.34,4/10/2024
Independent Recycling Services  Inc,Utilities,56069.22,4/11/2024
Independent Recycling Services  Inc,Services,331.01,4/12/2024
Independent Recycling Services  Inc,Materials,514.3,5/6/2024
Independent Recycling Services  Inc,Services,1684.53,5/10/2024
Independent Recycling Services  Inc,Services,1726.59,5/10/2024
Independent Recycling Services  Inc,Utilities,56069.22,5/15/2024
Independent Recycling Services  Inc,Services,928.42,5/21/2024
Independent Recycling Services  Inc,Services,512.06,6/5/2024
Independent Recycling Services  Inc,Services,332.85,6/5/2024
Independent Recycling Services  Inc,Services,484.81,6/5/2024
Independent Recycling Services  Inc,Services,250.28,6/10/2024
Independent Recycling Services  Inc,Services,326.37,6/10/2024
Independent Recycling Services  Inc,Utilities,56069.22,6/12/2024
Independent Recycling Services  Inc,Services,1194.54,6/14/2024
Independent Recycling Services  Inc,Services,2583.83,6/14/2024
Independent Recycling Services  Inc,Materials,514.59,6/19/2024
"Industrial Welding Supply Co of Harvey, Inc. DBA Gas and Supply",Materials,283.8,6/26/2024
Industry-Railway Suppliers  Inc.,Materials,2232.7,1/3/2024
Industry-Railway Suppliers  Inc.,Materials,515.5,1/4/2024
Industry-Railway Suppliers  Inc.,Materials,1724.4,1/8/2024
Industry-Railway Suppliers  Inc.,Materials,1516.85,1/10/2024
Industry-Railway Suppliers  Inc.,Materials,17386.6,1/29/2024
Industry-Railway Suppliers  Inc.,Materials,3239.8,2/2/2024
Industry-Railway Suppliers  Inc.,Materials,465.5,2/5/2024
Industry-Railway Suppliers  Inc.,Materials,864.5,2/6/2024
Industry-Railway Suppliers  Inc.,Materials,208.2,2/7/2024
Industry-Railway Suppliers  Inc.,Materials,1134.6,2/9/2024
Industry-Railway Suppliers  Inc.,Materials,137.75,2/13/2024
Industry-Railway Suppliers  Inc.,Materials,3054.25,2/14/2024
Industry-Railway Suppliers  Inc.,Materials,2385.5,2/16/2024
Industry-Railway Suppliers  Inc.,Materials,624.6,2/21/2024
Industry-Railway Suppliers  Inc.,Materials,567.1,2/22/2024
Industry-Railway Suppliers  Inc.,Materials,870,2/26/2024
Industry-Railway Suppliers  Inc.,Materials,3863.15,3/5/2024
Industry-Railway Suppliers  Inc.,Materials,437.25,3/8/2024
Industry-Railway Suppliers  Inc.,Materials,1149.35,3/13/2024
Industry-Railway Suppliers  Inc.,Materials,3807.7,3/20/2024
Industry-Railway Suppliers  Inc.,Materials,7388.65,3/22/2024
Industry-Railway Suppliers  Inc.,Materials,4676.5,4/1/2024
Industry-Railway Suppliers  Inc.,Materials,9595.8,4/3/2024
Industry-Railway Suppliers  Inc.,Materials,3132.6,4/10/2024
Industry-Railway Suppliers  Inc.,Materials,1962.8,4/12/2024
Industry-Railway Suppliers  Inc.,Materials,392.9,4/17/2024
Industry-Railway Suppliers  Inc.,Materials,282.25,4/23/2024
Industry-Railway Suppliers  Inc.,Materials,3109.85,4/29/2024
Industry-Railway Suppliers  Inc.,Materials,1865,5/1/2024
Industry-Railway Suppliers  Inc.,Materials,21700,5/6/2024
Industry-Railway Suppliers  Inc.,Materials,953.5,5/8/2024
Industry-Railway Suppliers  Inc.,Materials,1284.9,5/15/2024
Industry-Railway Suppliers  Inc.,Materials,9120.25,5/30/2024
Industry-Railway Suppliers  Inc.,Materials,1728,6/6/2024
Industry-Railway Suppliers  Inc.,Materials,1728,6/6/2024
Industry-Railway Suppliers  Inc.,Materials,1728,6/6/2024
Industry-Railway Suppliers  Inc.,Materials,1419.9,6/7/2024
Industry-Railway Suppliers  Inc.,Materials,1149.3,6/10/2024
Industry-Railway Suppliers  Inc.,Materials,4681.9,6/11/2024
Industry-Railway Suppliers  Inc.,Materials,3781.75,6/14/2024
Industry-Railway Suppliers  Inc.,Materials,3582.05,6/27/2024
Industry-Railway Suppliers  Inc.,Materials,2160.3,7/1/2024
Innovate Technologies Inc,Materials,260,2/6/2024
Innovate Technologies Inc,Services,50.08,2/6/2024
Innovate Technologies Inc,Services,21.69,2/6/2024
Innovate Technologies Inc,Materials,233.75,2/6/2024
Innovate Technologies Inc,Services,2193.7,2/21/2024
Innovate Technologies Inc,Materials,251,3/1/2024
Innovate Technologies Inc,Services,23.65,3/1/2024
Innovate Technologies Inc,Services,30,4/1/2024
Innovate Technologies Inc,Materials,5440,4/1/2024
Innovate Technologies Inc,Materials,112,5/1/2024
Innovate Technologies Inc,Services,22.39,5/1/2024
Innovate Technologies Inc,Materials,961.5,6/1/2024
Innovate Technologies Inc,Services,22.41,6/1/2024
Innovate Technologies Inc,Services,2474.33,6/5/2024
Insight Public Sector,Services,35677.84,1/1/2024
Insight Public Sector,Services,34956.84,1/1/2024
Insight Public Sector,Services,14607.29,2/1/2024
Insight Public Sector,Services,14930.61,3/5/2024
Insight Public Sector,Services,14885.9,3/22/2024
Insight Strategies  Inc.,Services,30175,1/4/2024
Insight Strategies  Inc.,Services,11537.5,2/2/2024
Insight Strategies  Inc.,Services,10650,3/13/2024
Insight Strategies  Inc.,Services,2662.5,3/26/2024
Insight Strategies  Inc.,Services,1388.44,4/15/2024
Insight Strategies  Inc.,Services,3550,6/7/2024
International Assoc. of Chiefs of Police,Services,380,1/18/2024
International Assoc. of Chiefs of Police,Services,115,4/9/2024
International Assoc. of Chiefs of Police,Services,190,4/9/2024
International Assoc. of Chiefs of Police,Services,190,4/26/2024
International Filter Mfg.  Corp.,Materials,472.32,1/8/2024
International Filter Mfg.  Corp.,Materials,130.32,1/8/2024
International Filter Mfg.  Corp.,Materials,821.76,1/24/2024
International Filter Mfg.  Corp.,Materials,2413.44,2/2/2024
International Filter Mfg.  Corp.,Materials,964.32,2/5/2024
International Filter Mfg.  Corp.,Materials,1403.84,2/6/2024
International Filter Mfg.  Corp.,Materials,354.24,2/15/2024
International Filter Mfg.  Corp.,Materials,777.6,2/16/2024
